Workbook

Sheet 00. MENU
B6: CONCESSÃO DE TRANSPORTE COLETIVO DE PONTA GROSSA
B7: 01. PC
B8: Painel de controle das principais variáveis do modelo. Nesta aba é possível alterar variáveis como prazo do projeto, NIG, WACC, VPL e etc. Além de alterar as premissas, é possível ver os principais outputs do modelo.
B9: 02 (a). FCL Agregado
B10: Apresenta o Fluxo de Caixa Livre do Projeto consolidado. O resultado obtido pode ser alterado a depender do que é selecionado no Painel de Controle.
B11: 02 (b). FCL por Terminal
B12: Apresenta o Fluxo de Caixa Livre do Projeto segregado por terminal. O resultado obtido pode ser alterado a depender do que é selecionado no Painel de Controle.
B13: 03. WACC
B14: Cálculo do Custo Médio Ponderado de Capital (Weighted Average Capital Cost) de referência para o Projeto.
B15: 04. D&A
B16: Calcula a depreciação e amortização fiscais dos ativos.
B17: 05. NIG
B18: Calcula a necessidade de investimento no giro.
B19: 06. CAPEX
B20: Detalhamento dos valores de CAPEX.
B21: 07. OPEX
B22: Aba de entrada dos inputs relacionados à operação. Utilizada para inserir os valores na moeda de referência dos preços.
B23: 08. (a)TRIBUTOS LREAL
B24: Calcula os tributos do regime fiscal de Lucro Real para cada ano para o FCL do Projeto.
B25: 08. (b)TRIBUTOS LPRESUMID
B26: Calcula os tributos do regime fiscal de Lucro Presumido para cada ano para o FCL do Projeto.
B27: 09. RECEITA E DEMANDA
B28: Calcula a previsão de receita com base na receita de aluguel estimada.
B29: 10. SENSIBILIDADE
B30: Calcula o impacto nos principais indicadores do Projeto, quando da variação da Receita, OPEX, CAPEX e encargos.
B31: 11. ÍNDICES
B32: Relação de índices econômicos publicados.
B35: Padrão de formatação utilizado - Legenda
B36: Células com fundo amarelo e fonte azul | F36: Inputs (Podem ser alteradas)
B37: Células com fonte verde | F37: Células que têm origem em outra aba (Não alterar)
B38: Células com fonte preta | F38: Fórmulas (Não alterar)

Sheet 01. PC
Q3: sim | R3: não
Q4: sim | R4: não
Q5: sim | R5: não
Q6: sim | R6: não
B7: Premissas | C7: Valor
B9: WACC - % a.a. | C9: ='03. WACC '!C27 -> 0.08411311767
B11: TIR de Projeto - Real | C11: ='02 (a). FCL Agregado'!C52 -> 0.08411287413
B13: VPL - R$ Milhões | C13: ='02 (a). FCL Agregado'!C53 -> 0
B15: NIG - meses | C15: 0
B17: Prazo - em anos | C17: 10
B19: Vacância | C19: 0.04
B21: Inadimplência | C21: 0.09
B23: Correção OPEX | F23: Regra para correção OPEX
B25: Pessoal | C25: IPCA | F25: IPCA
B26: Materiais | C26: IPCA | F26: IPCA
B27: Eletricidade, Água e Esgoto | C27: IPCA | F27: IPCA
B29: Correção CAPEX
B31: Terminal Santa Paula - Construção de Terminal | C31: IPCA | F31: IPCA
B32: Terminais de Integração Eletrônica (TEI) | C32: IPCA | F32: IPCA
B33: Terminal Central - Construção de Áreas Comerciais* | C33: IPCA | F33: IPCA
B34: Terminal Uvaranas - Construção de Áreas Comerciais | C34: IPCA | F34: IPCA
B35: Terminal Oficinas - Construção de Áreas Comerciais | C35: IPCA | F35: IPCA
B36: Terminal Nova Rússia - Construção de Áreas Comerciais* | C36: IPCA | F36: IPCA
B37: Terminal Santa Paula - Construção de Áreas Comerciais | C37: IPCA | F37: IPCA
B39: Correção Receita
B41: Receita Tarifária | C41: IPCA | F41: IPCA
B43: Premissas Marcoeconômicas | C43: 1 | D43: =C43+1 -> 2 | E43: =D43+1 -> 3 | F43: 4 | G43: 5 | H43: 6 | I43: 7 | J43: 8 | K43: 9 | L43: 10 | M43: 11 | N43: 12 | O43: 13 | P43: 14 | Q43: 15 | R43: 16 | S43: 17 | T43: 18 | U43: 19 | V43: 20 | W43: 21 | X43: 22 | Y43: 23 | Z43: 24 | AA43: 25
B45: Projeção de Inflação anual | C45: 0.0501 | D45: 0.0325 | E45: 0.03 | F45: =E45 -> 0.03 | G45: =F45 -> 0.03 | H45: 0.03 | I45: 0.03 | J45: 0.03 | K45: 0.03 | L45: 0.03 | M45: 0.03 | N45: 0.03 | O45: 0.03 | P45: 0.03 | Q45: 0.03 | R45: 0.03 | S45: 0.03 | T45: 0.03 | U45: 0.03 | V45: 0.03 | W45: 0.03 | X45: 0.03 | Y45: 0.03 | Z45: 0.03 | AA45: 0.03
B46: Fonte: BACEN

Sheet 02 (a). FCL Agregado
B6: Fluxo de Caixa Livre (R$ Milhões)
B8: PRAZO | C8: =IF(C10<=('01. PC'!$C$17),1,0) -> 1 | D8: =IF(D10<=('01. PC'!$C$17),1,0) -> 1 | E8: =IF(E10<=('01. PC'!$C$17),1,0) -> 1 | F8: =IF(F10<=('01. PC'!$C$17),1,0) -> 1 | G8: =IF(G10<=('01. PC'!$C$17),1,0) -> 1 | H8: =IF(H10<=('01. PC'!$C$17),1,0) -> 1 | I8: =IF(I10<=('01. PC'!$C$17),1,0) -> 1 | J8: =IF(J10<=('01. PC'!$C$17),1,0) -> 1 | K8: =IF(K10<=('01. PC'!$C$17),1,0) -> 1 | L8: =IF(L10<=('01. PC'!$C$17),1,0) -> 1
B10: ANO | C10: 1 | D10: =C10+1 -> 2 | E10: =D10+1 -> 3 | F10: 4 | G10: 5 | H10: 6 | I10: 7 | J10: 8 | K10: 9 | L10: 10 | N10: TOTAL | P10: VPL
B12: Receitas | C12: =(C14+C15+C16+C17+C18+C19+C20)*C$8 -> 8.348259756 | D12: =(D14+D15+D16+D17+D18+D19+D20)*D$8 -> 16.69651951 | E12: 16.69651951 | F12: 16.69651951 | G12: 16.69651951 | H12: 16.69651951 | I12: 16.69651951 | J12: 16.69651951 | K12: 16.69651951 | L12: 16.69651951 | N12: =SUM(C12:L12) -> 158.6169354 | P12: =NPV('01. PC'!$C$9,'02 (a). FCL Agregado'!D12:L12)+'02 (a). FCL Agregado'!C12 -> 110.888911
B14: Receita Tarifária | C14: ='09. RECEITA'!C12 -> 8.348259756 | D14: ='09. RECEITA'!D12 -> 16.69651951 | E14: ='09. RECEITA'!E12 -> 16.69651951 | F14: ='09. RECEITA'!F12 -> 16.69651951 | G14: ='09. RECEITA'!G12 -> 16.69651951 | H14: ='09. RECEITA'!H12 -> 16.69651951 | I14: ='09. RECEITA'!I12 -> 16.69651951 | J14: ='09. RECEITA'!J12 -> 16.69651951 | K14: ='09. RECEITA'!K12 -> 16.69651951 | L14: ='09. RECEITA'!L12 -> 16.69651951 | N14: =SUM(C14:L14) -> 158.6169354 | P14: =NPV('01. PC'!$C$9,'02 (a). FCL Agregado'!D14:L14)+'02 (a). FCL Agregado'!C14 -> 110.888911
B15: Terminal Central | C15: ='09. RECEITA'!C17 -> 0 | D15: ='09. RECEITA'!D17 -> 0 | E15: ='09. RECEITA'!E17 -> 0 | F15: ='09. RECEITA'!F17 -> 0 | G15: ='09. RECEITA'!G17 -> 0 | H15: ='09. RECEITA'!H17 -> 0 | I15: ='09. RECEITA'!I17 -> 0 | J15: ='09. RECEITA'!J17 -> 0 | K15: ='09. RECEITA'!K17 -> 0 | L15: ='09. RECEITA'!L17 -> 0 | N15: =SUM(C15:L15) -> 0 | P15: =NPV('01. PC'!$C$9,'02 (a). FCL Agregado'!D15:L15)+'02 (a). FCL Agregado'!C15 -> 0
B16: Terminal Uvaranas | C16: ='09. RECEITA'!C29 -> 0 | D16: ='09. RECEITA'!D29 -> 0 | E16: ='09. RECEITA'!E29 -> 0 | F16: ='09. RECEITA'!F29 -> 0 | G16: ='09. RECEITA'!G29 -> 0 | H16: ='09. RECEITA'!H29 -> 0 | I16: ='09. RECEITA'!I29 -> 0 | J16: ='09. RECEITA'!J29 -> 0 | K16: ='09. RECEITA'!K29 -> 0 | L16: ='09. RECEITA'!L29 -> 0 | N16: =SUM(C16:L16) -> 0 | P16: =NPV('01. PC'!$C$9,'02 (a). FCL Agregado'!D16:L16)+'02 (a). FCL Agregado'!C16 -> 0
B17: Terminal Oficinas | C17: ='09. RECEITA'!C41 -> 0 | D17: ='09. RECEITA'!D41 -> 0 | E17: ='09. RECEITA'!E41 -> 0 | F17: ='09. RECEITA'!F41 -> 0 | G17: ='09. RECEITA'!G41 -> 0 | H17: ='09. RECEITA'!H41 -> 0 | I17: ='09. RECEITA'!I41 -> 0 | J17: ='09. RECEITA'!J41 -> 0 | K17: ='09. RECEITA'!K41 -> 0 | L17: ='09. RECEITA'!L41 -> 0 | N17: 0 | P17: =NPV('01. PC'!$C$9,'02 (a). FCL Agregado'!D17:L17)+'02 (a). FCL Agregado'!C17 -> 0
B18: Terminal Nova Rússia | C18: ='09. RECEITA'!C53 -> 0 | D18: ='09. RECEITA'!D53 -> 0 | E18: ='09. RECEITA'!E53 -> 0 | F18: ='09. RECEITA'!F53 -> 0 | G18: ='09. RECEITA'!G53 -> 0 | H18: ='09. RECEITA'!H53 -> 0 | I18: ='09. RECEITA'!I53 -> 0 | J18: ='09. RECEITA'!J53 -> 0 | K18: ='09. RECEITA'!K53 -> 0 | L18: ='09. RECEITA'!L53 -> 0 | N18: 0 | P18: =NPV('01. PC'!$C$9,'02 (a). FCL Agregado'!D18:L18)+'02 (a). FCL Agregado'!C18 -> 0
B19: Terminal Santa Paula | C19: ='09. RECEITA'!C65 -> 0 | D19: ='09. RECEITA'!D65 -> 0 | E19: ='09. RECEITA'!E65 -> 0 | F19: ='09. RECEITA'!F65 -> 0 | G19: ='09. RECEITA'!G65 -> 0 | H19: ='09. RECEITA'!H65 -> 0 | I19: ='09. RECEITA'!I65 -> 0 | J19: ='09. RECEITA'!J65 -> 0 | K19: ='09. RECEITA'!K65 -> 0 | L19: ='09. RECEITA'!L65 -> 0 | N19: 0 | P19: =NPV('01. PC'!$C$9,'02 (a). FCL Agregado'!D19:L19)+'02 (a). FCL Agregado'!C19 -> 0
B20: Terminais de Integração Eletrônica | C20: ='09. RECEITA'!C77 -> 0 | D20: ='09. RECEITA'!D77 -> 0 | E20: ='09. RECEITA'!E77 -> 0 | F20: ='09. RECEITA'!F77 -> 0 | G20: ='09. RECEITA'!G77 -> 0 | H20: ='09. RECEITA'!H77 -> 0 | I20: ='09. RECEITA'!I77 -> 0 | J20: ='09. RECEITA'!J77 -> 0 | K20: ='09. RECEITA'!K77 -> 0 | L20: ='09. RECEITA'!L77 -> 0 | N20: =SUM(C20:L20) -> 0 | P20: =NPV('01. PC'!$C$9,'02 (a). FCL Agregado'!D20:L20)+'02 (a). FCL Agregado'!C20 -> 0
B22: Opex | C22: =(C24+C25+C26+C27+C28+C29)*C$8 -> -7.37793099 | D22: =(D24+D25+D26+D27+D28+D29)*D$8 -> -8.874412794 | E22: -8.874412794 | F22: -8.874412794 | G22: -8.874412794 | H22: -8.874412794 | I22: -8.874412794 | J22: -8.874412794 | K22: -8.874412794 | L22: -8.874412794 | N22: =SUM(C22:L22) -> -87.24764614 | P22: =NPV('01. PC'!$C$9,'02 (a). FCL Agregado'!D22:L22)+'02 (a). FCL Agregado'!C22 -> -61.87959325
B24: Terminal Central | C24: =-'07. OPEX'!C12 -> -2.606752458 | D24: =-'07. OPEX'!D12 -> -2.606752458 | E24: =-'07. OPEX'!E12 -> -2.606752458 | F24: =-'07. OPEX'!F12 -> -2.606752458 | G24: =-'07. OPEX'!G12 -> -2.606752458 | H24: =-'07. OPEX'!H12 -> -2.606752458 | I24: =-'07. OPEX'!I12 -> -2.606752458 | J24: =-'07. OPEX'!J12 -> -2.606752458 | K24: =-'07. OPEX'!K12 -> -2.606752458 | L24: =-'07. OPEX'!L12 -> -2.606752458 | N24: =SUM(C24:L24) -> -26.06752458 | P24: =NPV('01. PC'!$C$9,'02 (a). FCL Agregado'!D24:L24)+'02 (a). FCL Agregado'!C24 -> -18.61596291
B25: Terminal Uvaranas | C25: =-'07. OPEX'!C79 -> -1.496481804 | D25: =-'07. OPEX'!D79 -> -1.496481804 | E25: =-'07. OPEX'!E79 -> -1.496481804 | F25: =-'07. OPEX'!F79 -> -1.496481804 | G25: =-'07. OPEX'!G79 -> -1.496481804 | H25: =-'07. OPEX'!H79 -> -1.496481804 | I25: =-'07. OPEX'!I79 -> -1.496481804 | J25: =-'07. OPEX'!J79 -> -1.496481804 | K25: =-'07. OPEX'!K79 -> -1.496481804 | L25: =-'07. OPEX'!L79 -> -1.496481804 | N25: -14.96481804 | P25: =NPV('01. PC'!$C$9,'02 (a). FCL Agregado'!D25:L25)+'02 (a). FCL Agregado'!C25 -> -10.68703308
B26: Terminal Oficinas | C26: =-'07. OPEX'!C146 -> -1.496481804 | D26: =-'07. OPEX'!D146 -> -1.496481804 | E26: =-'07. OPEX'!E146 -> -1.496481804 | F26: =-'07. OPEX'!F146 -> -1.496481804 | G26: =-'07. OPEX'!G146 -> -1.496481804 | H26: =-'07. OPEX'!H146 -> -1.496481804 | I26: =-'07. OPEX'!I146 -> -1.496481804 | J26: =-'07. OPEX'!J146 -> -1.496481804 | K26: =-'07. OPEX'!K146 -> -1.496481804 | L26: =-'07. OPEX'!L146 -> -1.496481804 | N26: -14.96481804 | P26: =NPV('01. PC'!$C$9,'02 (a). FCL Agregado'!D26:L26)+'02 (a). FCL Agregado'!C26 -> -10.68703308
B27: Terminal Nova Rússia | C27: =-'07. OPEX'!C213 -> -1.496481804 | D27: =-'07. OPEX'!D213 -> -1.496481804 | E27: =-'07. OPEX'!E213 -> -1.496481804 | F27: =-'07. OPEX'!F213 -> -1.496481804 | G27: =-'07. OPEX'!G213 -> -1.496481804 | H27: =-'07. OPEX'!H213 -> -1.496481804 | I27: =-'07. OPEX'!I213 -> -1.496481804 | J27: =-'07. OPEX'!J213 -> -1.496481804 | K27: =-'07. OPEX'!K213 -> -1.496481804 | L27: =-'07. OPEX'!L213 -> -1.496481804 | N27: -14.96481804 | P27: =NPV('01. PC'!$C$9,'02 (a). FCL Agregado'!D27:L27)+'02 (a). FCL Agregado'!C27 -> -10.68703308
B28: Terminal Santa Paula | C28: =-'07. OPEX'!C280 -> 0 | D28: =-'07. OPEX'!D280 -> -1.496481804 | E28: =-'07. OPEX'!E280 -> -1.496481804 | F28: =-'07. OPEX'!F280 -> -1.496481804 | G28: =-'07. OPEX'!G280 -> -1.496481804 | H28: =-'07. OPEX'!H280 -> -1.496481804 | I28: =-'07. OPEX'!I280 -> -1.496481804 | J28: =-'07. OPEX'!J280 -> -1.496481804 | K28: =-'07. OPEX'!K280 -> -1.496481804 | L28: =-'07. OPEX'!L280 -> -1.496481804 | N28: -13.46833624 | P28: =NPV('01. PC'!$C$9,'02 (a). FCL Agregado'!D28:L28)+'02 (a). FCL Agregado'!C28 -> -9.19055128
B29: Terminais de Integração Eletrônica | C29: =-'07. OPEX'!C347 -> -0.28173312 | D29: =-'07. OPEX'!D347 -> -0.28173312 | E29: =-'07. OPEX'!E347 -> -0.28173312 | F29: =-'07. OPEX'!F347 -> -0.28173312 | G29: =-'07. OPEX'!G347 -> -0.28173312 | H29: =-'07. OPEX'!H347 -> -0.28173312 | I29: =-'07. OPEX'!I347 -> -0.28173312 | J29: =-'07. OPEX'!J347 -> -0.28173312 | K29: =-'07. OPEX'!K347 -> -0.28173312 | L29: =-'07. OPEX'!L347 -> -0.28173312 | N29: -2.8173312 | P29: =NPV('01. PC'!$C$9,'02 (a). FCL Agregado'!D29:L29)+'02 (a). FCL Agregado'!C29 -> -2.011979809
B31: Capex | C31: =(C33+C34+C35+C36+C37+C38+C39)*C$8 -> -38.716676 | D31: =(D33+D34+D35+D36+D37+D38+D39)*D$8 -> 0 | E31: 0 | F31: 0 | G31: 0 | H31: 0 | I31: 0 | J31: 0 | K31: 0 | L31: 0 | N31: =SUM(C31:L31) -> -38.716676 | P31: =NPV('01. PC'!$C$9,'02 (a). FCL Agregado'!D31:L31)+'02 (a). FCL Agregado'!C31 -> -38.716676
B33: Terminal Santa Paula - Construção de Terminal | C33: =-'6. CAPEX'!C13 -> -36.3689 | D33: =-'6. CAPEX'!D13 -> 0 | E33: =-'6. CAPEX'!E13 -> 0 | F33: =-'6. CAPEX'!F13 -> 0 | G33: =-'6. CAPEX'!G13 -> 0 | H33: =-'6. CAPEX'!H13 -> 0 | I33: =-'6. CAPEX'!I13 -> 0 | J33: =-'6. CAPEX'!J13 -> 0 | K33: =-'6. CAPEX'!K13 -> 0 | L33: =-'6. CAPEX'!L13 -> 0 | N33: =SUM(C33:L33) -> -36.3689 | P33: =NPV('01. PC'!$C$9,'02 (a). FCL Agregado'!D33:L33)+'02 (a). FCL Agregado'!C33 -> -36.3689
B34: Terminais de Integração Eletrônica (TEI)* | C34: =-'6. CAPEX'!C23 -> -2.347776 | D34: =-'6. CAPEX'!D23 -> 0 | E34: =-'6. CAPEX'!E23 -> 0 | F34: =-'6. CAPEX'!F23 -> 0 | G34: =-'6. CAPEX'!G23 -> 0 | H34: =-'6. CAPEX'!H23 -> 0 | I34: =-'6. CAPEX'!I23 -> 0 | J34: =-'6. CAPEX'!J23 -> 0 | K34: =-'6. CAPEX'!K23 -> 0 | L34: =-'6. CAPEX'!L23 -> 0 | N34: -2.347776 | P34: =NPV('01. PC'!$C$9,'02 (a). FCL Agregado'!D34:L34)+'02 (a). FCL Agregado'!C34 -> -2.347776
B35: Terminal Central - Construção de Áreas Comerciais* | C35: =-'6. CAPEX'!C53 -> 0 | D35: =-'6. CAPEX'!D53 -> 0 | E35: =-'6. CAPEX'!E53 -> 0 | F35: =-'6. CAPEX'!F53 -> 0 | G35: =-'6. CAPEX'!G53 -> 0 | H35: =-'6. CAPEX'!H53 -> 0 | I35: =-'6. CAPEX'!I53 -> 0 | J35: =-'6. CAPEX'!J53 -> 0 | K35: =-'6. CAPEX'!K53 -> 0 | L35: =-'6. CAPEX'!L53 -> 0 | N35: 0 | P35: =NPV('01. PC'!$C$9,'02 (a). FCL Agregado'!D35:L35)+'02 (a). FCL Agregado'!C35 -> 0
B36: Terminal Uvaranas - Construção de Áreas Comerciais | C36: =-'6. CAPEX'!C57 -> 0 | D36: =-'6. CAPEX'!D57 -> 0 | E36: =-'6. CAPEX'!E57 -> 0 | F36: =-'6. CAPEX'!F57 -> 0 | G36: =-'6. CAPEX'!G57 -> 0 | H36: =-'6. CAPEX'!H57 -> 0 | I36: =-'6. CAPEX'!I57 -> 0 | J36: =-'6. CAPEX'!J57 -> 0 | K36: =-'6. CAPEX'!K57 -> 0 | L36: =-'6. CAPEX'!L57 -> 0 | N36: 0 | P36: =NPV('01. PC'!$C$9,'02 (a). FCL Agregado'!D36:L36)+'02 (a). FCL Agregado'!C36 -> 0
B37: Terminal Oficinas - Construção de Áreas Comerciais | C37: =-'6. CAPEX'!C61 -> 0 | D37: =-'6. CAPEX'!D61 -> 0 | E37: =-'6. CAPEX'!E61 -> 0 | F37: =-'6. CAPEX'!F61 -> 0 | G37: =-'6. CAPEX'!G61 -> 0 | H37: =-'6. CAPEX'!H61 -> 0 | I37: =-'6. CAPEX'!I61 -> 0 | J37: =-'6. CAPEX'!J61 -> 0 | K37: =-'6. CAPEX'!K61 -> 0 | L37: =-'6. CAPEX'!L61 -> 0 | N37: 0 | P37: =NPV('01. PC'!$C$9,'02 (a). FCL Agregado'!D37:L37)+'02 (a). FCL Agregado'!C37 -> 0
B38: Terminal Nova Rússia - Construção de Áreas Comerciais* | C38: =-'6. CAPEX'!C65 -> 0 | D38: =-'6. CAPEX'!D65 -> 0 | E38: =-'6. CAPEX'!E65 -> 0 | F38: =-'6. CAPEX'!F65 -> 0 | G38: =-'6. CAPEX'!G65 -> 0 | H38: =-'6. CAPEX'!H65 -> 0 | I38: =-'6. CAPEX'!I65 -> 0 | J38: =-'6. CAPEX'!J65 -> 0 | K38: =-'6. CAPEX'!K65 -> 0 | L38: =-'6. CAPEX'!L65 -> 0 | N38: 0 | P38: =NPV('01. PC'!$C$9,'02 (a). FCL Agregado'!D38:L38)+'02 (a). FCL Agregado'!C38 -> 0
B39: Terminal Santa Paula - Construção de Áreas Comerciais | C39: =-'6. CAPEX'!C69 -> 0 | D39: =-'6. CAPEX'!D69 -> 0 | E39: =-'6. CAPEX'!E69 -> 0 | F39: =-'6. CAPEX'!F69 -> 0 | G39: =-'6. CAPEX'!G69 -> 0 | H39: =-'6. CAPEX'!H69 -> 0 | I39: =-'6. CAPEX'!I69 -> 0 | J39: =-'6. CAPEX'!J69 -> 0 | K39: =-'6. CAPEX'!K69 -> 0 | L39: =-'6. CAPEX'!L69 -> 0 | N39: 0 | P39: =NPV('01. PC'!$C$9,'02 (a). FCL Agregado'!D39:L39)+'02 (a). FCL Agregado'!C39 -> 0
B41: Tributos | C41: =-(C44+C43)*C$8 -> -0.1669651951 | D41: =-(D44+D43)*D$8 -> -1.266242828 | E41: -1.290996426 | F41: -1.615299688 | G41: -1.76883224 | H41: -1.801193738 | I41: -1.832612668 | J41: -1.863116484 | K41: -1.892731839 | L41: -1.921484611 | N41: =SUM(C41:L41) -> -15.41947572 | P41: =NPV('01. PC'!$C$9,'02 (a). FCL Agregado'!D41:L41)+'02 (a). FCL Agregado'!C41 -> -10.292679
B43: ISS | C43: =IF('08. (a)TRIBUTOS LREAL'!C80="Real",'08. (a)TRIBUTOS LREAL'!C20,'08. (b)TRIBUTOS LPRESUMID'!C20) -> 0.1669651951 | D43: =IF('08. (a)TRIBUTOS LREAL'!D80="Real",'08. (a)TRIBUTOS LREAL'!D20,'08. (b)TRIBUTOS LPRESUMID'!D20) -> 0.3339303903 | E43: =IF('08. (a)TRIBUTOS LREAL'!E80="Real",'08. (a)TRIBUTOS LREAL'!E20,'08. (b)TRIBUTOS LPRESUMID'!E20) -> 0.3339303903 | F43: =IF('08. (a)TRIBUTOS LREAL'!F80="Real",'08. (a)TRIBUTOS LREAL'!F20,'08. (b)TRIBUTOS LPRESUMID'!F20) -> 0.3339303903 | G43: =IF('08. (a)TRIBUTOS LREAL'!G80="Real",'08. (a)TRIBUTOS LREAL'!G20,'08. (b)TRIBUTOS LPRESUMID'!G20) -> 0.3339303903 | H43: =IF('08. (a)TRIBUTOS LREAL'!H80="Real",'08. (a)TRIBUTOS LREAL'!H20,'08. (b)TRIBUTOS LPRESUMID'!H20) -> 0.3339303903 | I43: =IF('08. (a)TRIBUTOS LREAL'!I80="Real",'08. (a)TRIBUTOS LREAL'!I20,'08. (b)TRIBUTOS LPRESUMID'!I20) -> 0.3339303903 | J43: =IF('08. (a)TRIBUTOS LREAL'!J80="Real",'08. (a)TRIBUTOS LREAL'!J20,'08. (b)TRIBUTOS LPRESUMID'!J20) -> 0.3339303903 | K43: =IF('08. (a)TRIBUTOS LREAL'!K80="Real",'08. (a)TRIBUTOS LREAL'!K20,'08. (b)TRIBUTOS LPRESUMID'!K20) -> 0.3339303903 | L43: =IF('08. (a)TRIBUTOS LREAL'!L80="Real",'08. (a)TRIBUTOS LREAL'!L20,'08. (b)TRIBUTOS LPRESUMID'!L20) -> 0.3339303903 | N43: =SUM(C43:L43) -> 3.172338707 | P43: =NPV('01. PC'!$C$9,'02 (a). FCL Agregado'!D43:L43)+'02 (a). FCL Agregado'!C43 -> 2.21777822
B44: IRPJ/CSLL | C44: =IF('08. (a)TRIBUTOS LREAL'!C80="Real",'08. (a)TRIBUTOS LREAL'!C31,'08. (b)TRIBUTOS LPRESUMID'!C25) -> 0 | D44: =IF('08. (a)TRIBUTOS LREAL'!D80="Real",'08. (a)TRIBUTOS LREAL'!D31,'08. (b)TRIBUTOS LPRESUMID'!D25) -> 0.9323124374 | E44: =IF('08. (a)TRIBUTOS LREAL'!E80="Real",'08. (a)TRIBUTOS LREAL'!E31,'08. (b)TRIBUTOS LPRESUMID'!E25) -> 0.9570660353 | F44: =IF('08. (a)TRIBUTOS LREAL'!F80="Real",'08. (a)TRIBUTOS LREAL'!F31,'08. (b)TRIBUTOS LPRESUMID'!F25) -> 1.281369298 | G44: =IF('08. (a)TRIBUTOS LREAL'!G80="Real",'08. (a)TRIBUTOS LREAL'!G31,'08. (b)TRIBUTOS LPRESUMID'!G25) -> 1.43490185 | H44: =IF('08. (a)TRIBUTOS LREAL'!H80="Real",'08. (a)TRIBUTOS LREAL'!H31,'08. (b)TRIBUTOS LPRESUMID'!H25) -> 1.467263348 | I44: =IF('08. (a)TRIBUTOS LREAL'!I80="Real",'08. (a)TRIBUTOS LREAL'!I31,'08. (b)TRIBUTOS LPRESUMID'!I25) -> 1.498682278 | J44: =IF('08. (a)TRIBUTOS LREAL'!J80="Real",'08. (a)TRIBUTOS LREAL'!J31,'08. (b)TRIBUTOS LPRESUMID'!J25) -> 1.529186094 | K44: =IF('08. (a)TRIBUTOS LREAL'!K80="Real",'08. (a)TRIBUTOS LREAL'!K31,'08. (b)TRIBUTOS LPRESUMID'!K25) -> 1.558801449 | L44: =IF('08. (a)TRIBUTOS LREAL'!L80="Real",'08. (a)TRIBUTOS LREAL'!L31,'08. (b)TRIBUTOS LPRESUMID'!L25) -> 1.587554221 | N44: =SUM(C44:L44) -> 12.24713701 | P44: =NPV('01. PC'!$C$9,'02 (a). FCL Agregado'!D44:L44)+'02 (a). FCL Agregado'!C44 -> 8.074900784
B46: NIG | C46: ='05. NIG'!C24 -> 0 | D46: ='05. NIG'!D24 -> 0 | E46: ='05. NIG'!E24 -> 0 | F46: ='05. NIG'!F24 -> 0 | G46: ='05. NIG'!G24 -> 0 | H46: ='05. NIG'!H24 -> 0 | I46: ='05. NIG'!I24 -> 0 | J46: ='05. NIG'!J24 -> 0 | K46: ='05. NIG'!K24 -> 0 | L46: ='05. NIG'!L24 -> 0 | N46: =SUM(C46:L46) -> 0 | P46: =NPV('01. PC'!$C$9,'02 (a). FCL Agregado'!D46:L46)+'02 (a). FCL Agregado'!C46 -> 0
B48: FCL | C48: =C12+C22+C31+C41+C46 -> -37.91331243 | D48: 6.555863891 | E48: 6.531110293 | F48: 6.206807031 | G48: 6.053274479 | H48: 6.020912981 | I48: 5.98949405 | J48: 5.958990235 | K48: 5.92937488 | L48: 5.900622108 | N48: =SUM(C48:L48) -> 17.23313752 | P48: =NPV('01. PC'!$C$9,'02 (a). FCL Agregado'!D48:L48)+'02 (a). FCL Agregado'!C48 -> -3.724042566e-05
B50: FCL Acumulado | C50: =C48 -> -37.91331243 | D50: =(C50+D48)*D8 -> -31.35744854 | E50: -24.82633824 | F50: -18.61953121 | G50: -12.56625674 | H50: -6.545343754 | I50: -0.5558497041 | J50: 5.403140531 | K50: 11.33251541 | L50: 17.23313752
B52: TIR de Projeto (% ao ano) | C52: =IRR(C48:L48) -> 0.08411287413
B53: VPL (em R$ Milhões) | C53: =ROUND(NPV('01. PC'!$C$9,'02 (a). FCL Agregado'!D48:L48)+'02 (a). FCL Agregado'!C48,4) -> 0
B55: *Terminais com áreas comerciais já disponíveis
B56: *Exceto Santa Paula

Sheet 02 (b). FCL por Terminal
B6: Fluxo de Caixa Livre (R$ Milhões)
B8: PRAZO | C8: =IF(C10<=('01. PC'!$C$17),1,0) -> 1 | D8: =IF(D10<=('01. PC'!$C$17),1,0) -> 1 | E8: =IF(E10<=('01. PC'!$C$17),1,0) -> 1 | F8: =IF(F10<=('01. PC'!$C$17),1,0) -> 1 | G8: =IF(G10<=('01. PC'!$C$17),1,0) -> 1 | H8: =IF(H10<=('01. PC'!$C$17),1,0) -> 1 | I8: =IF(I10<=('01. PC'!$C$17),1,0) -> 1 | J8: =IF(J10<=('01. PC'!$C$17),1,0) -> 1 | K8: =IF(K10<=('01. PC'!$C$17),1,0) -> 1 | L8: =IF(L10<=('01. PC'!$C$17),1,0) -> 1
B10: ANO | C10: 1 | D10: =C10+1 -> 2 | E10: =D10+1 -> 3 | F10: 4 | G10: 5 | H10: 6 | I10: 7 | J10: 8 | K10: 9 | L10: 10 | N10: TOTAL | P10: VPL
B12: Terminal Central | C12: =(C14+C15+C16+C17+C18+C19)*C$8 -> -5.269159981 | D12: =(D14+D15+D16+D17+D18+D19)*D$8 -> -5.635585859 | E12: -5.643837058 | F12: -5.751938145 | G12: -5.803115663 | H12: -5.813902829 | I12: -5.824375805 | J12: -5.834543744 | K12: -5.844415529 | L12: -5.853999786 | N12: =SUM(C12:L12) -> -57.2748744 | P12: =NPV('01. PC'!$C$9,'02 (b). FCL por Terminal'!D12:L12)+'02 (b). FCL por Terminal'!C12 -> -40.66281882
B14: Receitas | C14: ='09. RECEITA'!C17 -> 0 | D14: ='09. RECEITA'!D17 -> 0 | E14: ='09. RECEITA'!E17 -> 0 | F14: ='09. RECEITA'!F17 -> 0 | G14: ='09. RECEITA'!G17 -> 0 | H14: ='09. RECEITA'!H17 -> 0 | I14: ='09. RECEITA'!I17 -> 0 | J14: ='09. RECEITA'!J17 -> 0 | K14: ='09. RECEITA'!K17 -> 0 | L14: ='09. RECEITA'!L17 -> 0 | N14: =SUM(C14:L14) -> 0 | P14: =NPV('01. PC'!$C$9,'02 (b). FCL por Terminal'!D14:L14)+'02 (b). FCL por Terminal'!C14 -> 0
B15: Capex | C15: =-'6. CAPEX'!C53 -> 0 | D15: =-'6. CAPEX'!D53 -> 0 | E15: =-'6. CAPEX'!E53 -> 0 | F15: =-'6. CAPEX'!F53 -> 0 | G15: =-'6. CAPEX'!G53 -> 0 | H15: =-'6. CAPEX'!H53 -> 0 | I15: =-'6. CAPEX'!I53 -> 0 | J15: =-'6. CAPEX'!J53 -> 0 | K15: =-'6. CAPEX'!K53 -> 0 | L15: =-'6. CAPEX'!L53 -> 0 | N15: =SUM(C15:L15) -> 0 | P15: =NPV('01. PC'!$C$9,'02 (b). FCL por Terminal'!D15:L15)+'02 (b). FCL por Terminal'!C15 -> 0
B16: Opex | C16: =-'07. OPEX'!C12 -> -2.606752458 | D16: =-'07. OPEX'!D12 -> -2.606752458 | E16: =-'07. OPEX'!E12 -> -2.606752458 | F16: =-'07. OPEX'!F12 -> -2.606752458 | G16: =-'07. OPEX'!G12 -> -2.606752458 | H16: =-'07. OPEX'!H12 -> -2.606752458 | I16: =-'07. OPEX'!I12 -> -2.606752458 | J16: =-'07. OPEX'!J12 -> -2.606752458 | K16: =-'07. OPEX'!K12 -> -2.606752458 | L16: =-'07. OPEX'!L12 -> -2.606752458 | N16: -26.06752458 | P16: =NPV('01. PC'!$C$9,'02 (b). FCL por Terminal'!D16:L16)+'02 (b). FCL por Terminal'!C16 -> -18.61596291
B17: Tributos | C17: ='02 (a). FCL Agregado'!C41/6 -> -0.02782753252 | D17: ='02 (a). FCL Agregado'!D41/6 -> -0.2110404713 | E17: ='02 (a). FCL Agregado'!E41/6 -> -0.2151660709 | F17: ='02 (a). FCL Agregado'!F41/6 -> -0.2692166146 | G17: ='02 (a). FCL Agregado'!G41/6 -> -0.2948053733 | H17: ='02 (a). FCL Agregado'!H41/6 -> -0.3001989564 | I17: ='02 (a). FCL Agregado'!I41/6 -> -0.3054354447 | J17: ='02 (a). FCL Agregado'!J41/6 -> -0.310519414 | K17: ='02 (a). FCL Agregado'!K41/6 -> -0.3154553065 | L17: ='02 (a). FCL Agregado'!L41/6 -> -0.3202474352 | N17: -2.56991262 | P17: =NPV('01. PC'!$C$9,'02 (b). FCL por Terminal'!D17:L17)+'02 (b). FCL por Terminal'!C17 -> -1.715446501
B18: NIG | C18: ='05. NIG'!C24*('07. OPEX'!C12/'07. OPEX'!C10) -> 0 | D18: ='05. NIG'!D24*('07. OPEX'!D12/'07. OPEX'!D10) -> 0 | E18: ='05. NIG'!E24*('07. OPEX'!E12/'07. OPEX'!E10) -> 0 | F18: ='05. NIG'!F24*('07. OPEX'!F12/'07. OPEX'!F10) -> 0 | G18: ='05. NIG'!G24*('07. OPEX'!G12/'07. OPEX'!G10) -> 0 | H18: ='05. NIG'!H24*('07. OPEX'!H12/'07. OPEX'!H10) -> 0 | I18: ='05. NIG'!I24*('07. OPEX'!I12/'07. OPEX'!I10) -> 0 | J18: ='05. NIG'!J24*('07. OPEX'!J12/'07. OPEX'!J10) -> 0 | K18: ='05. NIG'!K24*('07. OPEX'!K12/'07. OPEX'!K10) -> 0 | L18: ='05. NIG'!L24*('07. OPEX'!L12/'07. OPEX'!L10) -> 0
B19: FCL | C19: =C14+C15+C16+C17 -> -2.634579991 | D19: =D14+D15+D16+D17 -> -2.817792929 | E19: -2.821918529 | F19: -2.875969073 | G19: -2.901557831 | H19: -2.906951414 | I19: -2.912187903 | J19: -2.917271872 | K19: -2.922207765 | L19: -2.926999893 | N19: -28.6374372 | P19: =NPV('01. PC'!$C$9,'02 (b). FCL por Terminal'!D19:L19)+'02 (b). FCL por Terminal'!C19 -> -20.33140941
B20: FCL Acumulado | C20: =C19 -> -2.634579991 | D20: =C20+D19 -> -5.45237292 | E20: =D20+E19 -> -8.274291449 | F20: -11.15026052 | G20: -14.05181835 | H20: -16.95876977 | I20: -19.87095767 | J20: -22.78822954 | K20: -25.71043731 | L20: -28.6374372
B22: TIR de Projeto (% ao ano) | C22: =IRR(C19:L19) -> 
B23: VPL (em R$ Milhões) | C23: =NPV('01. PC'!$C$9,'02 (b). FCL por Terminal'!D20:L20)+'02 (b). FCL por Terminal'!C20 -> -97.45816991
B25: Terminal Uvaranas | C25: =(C27+C28+C29+C30+C31+C32)*C$8 -> -3.048618673 | D25: =(D27+D28+D29+D30+D31+D32)*D$8 -> -3.415044551 | E25: -3.42329575 | F25: -3.531396837 | G25: -3.582574355 | H25: -3.593361521 | I25: -3.603834497 | J25: -3.614002436 | K25: -3.623874221 | L25: -3.633458478 | N25: =SUM(C25:L25) -> -35.06946132 | P25: =NPV('01. PC'!$C$9,'02 (b). FCL por Terminal'!D25:L25)+'02 (b). FCL por Terminal'!C25 -> -24.80495917
B27: Receitas | C27: ='09. RECEITA'!C29 -> 0 | D27: ='09. RECEITA'!D29 -> 0 | E27: ='09. RECEITA'!E29 -> 0 | F27: ='09. RECEITA'!F29 -> 0 | G27: ='09. RECEITA'!G29 -> 0 | H27: ='09. RECEITA'!H29 -> 0 | I27: ='09. RECEITA'!I29 -> 0 | J27: ='09. RECEITA'!J29 -> 0 | K27: ='09. RECEITA'!K29 -> 0 | L27: ='09. RECEITA'!L29 -> 0 | N27: =SUM(C27:L27) -> 0 | P27: =NPV('01. PC'!$C$9,'02 (b). FCL por Terminal'!D27:L27)+'02 (b). FCL por Terminal'!C27 -> 0
B28: Capex | C28: =-'6. CAPEX'!C57 -> 0 | D28: ='6. CAPEX'!D57 -> 0 | E28: ='6. CAPEX'!E57 -> 0 | F28: ='6. CAPEX'!F57 -> 0 | G28: ='6. CAPEX'!G57 -> 0 | H28: ='6. CAPEX'!H57 -> 0 | I28: ='6. CAPEX'!I57 -> 0 | J28: ='6. CAPEX'!J57 -> 0 | K28: ='6. CAPEX'!K57 -> 0 | L28: ='6. CAPEX'!L57 -> 0 | N28: 0 | P28: =NPV('01. PC'!$C$9,'02 (b). FCL por Terminal'!D28:L28)+'02 (b). FCL por Terminal'!C28 -> 0
B29: Opex | C29: =-'07. OPEX'!C79 -> -1.496481804 | D29: =-'07. OPEX'!D79 -> -1.496481804 | E29: =-'07. OPEX'!E79 -> -1.496481804 | F29: =-'07. OPEX'!F79 -> -1.496481804 | G29: =-'07. OPEX'!G79 -> -1.496481804 | H29: =-'07. OPEX'!H79 -> -1.496481804 | I29: =-'07. OPEX'!I79 -> -1.496481804 | J29: =-'07. OPEX'!J79 -> -1.496481804 | K29: =-'07. OPEX'!K79 -> -1.496481804 | L29: =-'07. OPEX'!L79 -> -1.496481804 | N29: -14.96481804 | P29: =NPV('01. PC'!$C$9,'02 (b). FCL por Terminal'!D29:L29)+'02 (b). FCL por Terminal'!C29 -> -10.68703308
B30: Tributos | C30: ='02 (a). FCL Agregado'!C41/6 -> -0.02782753252 | D30: ='02 (a). FCL Agregado'!D41/6 -> -0.2110404713 | E30: ='02 (a). FCL Agregado'!E41/6 -> -0.2151660709 | F30: ='02 (a). FCL Agregado'!F41/6 -> -0.2692166146 | G30: ='02 (a). FCL Agregado'!G41/6 -> -0.2948053733 | H30: ='02 (a). FCL Agregado'!H41/6 -> -0.3001989564 | I30: ='02 (a). FCL Agregado'!I41/6 -> -0.3054354447 | J30: ='02 (a). FCL Agregado'!J41/6 -> -0.310519414 | K30: ='02 (a). FCL Agregado'!K41/6 -> -0.3154553065 | L30: ='02 (a). FCL Agregado'!L41/6 -> -0.3202474352 | N30: -2.56991262 | P30: =NPV('01. PC'!$C$9,'02 (b). FCL por Terminal'!D30:L30)+'02 (b). FCL por Terminal'!C30 -> -1.715446501
B31: NIG | C31: ='05. NIG'!C24*('07. OPEX'!C79/'07. OPEX'!C10) -> 0 | D31: ='05. NIG'!D24*('07. OPEX'!D79/'07. OPEX'!D10) -> 0 | E31: ='05. NIG'!E24*('07. OPEX'!E79/'07. OPEX'!E10) -> 0 | F31: ='05. NIG'!F24*('07. OPEX'!F79/'07. OPEX'!F10) -> 0 | G31: ='05. NIG'!G24*('07. OPEX'!G79/'07. OPEX'!G10) -> 0 | H31: ='05. NIG'!H24*('07. OPEX'!H79/'07. OPEX'!H10) -> 0 | I31: ='05. NIG'!I24*('07. OPEX'!I79/'07. OPEX'!I10) -> 0 | J31: ='05. NIG'!J24*('07. OPEX'!J79/'07. OPEX'!J10) -> 0 | K31: ='05. NIG'!K24*('07. OPEX'!K79/'07. OPEX'!K10) -> 0 | L31: ='05. NIG'!L24*('07. OPEX'!L79/'07. OPEX'!L10) -> 0 | N31: 0 | P31: =NPV('01. PC'!$C$9,'02 (b). FCL por Terminal'!D31:L31)+'02 (b). FCL por Terminal'!C31 -> 0
B32: FCL | C32: =C27+C28+C29+C30 -> -1.524309337 | D32: -1.707522275 | E32: -1.711647875 | F32: -1.765698419 | G32: -1.791287177 | H32: -1.79668076 | I32: -1.801917249 | J32: -1.807001218 | K32: -1.811937111 | L32: -1.816729239 | N32: -17.53473066 | P32: =NPV('01. PC'!$C$9,'02 (b). FCL por Terminal'!D32:L32)+'02 (b). FCL por Terminal'!C32 -> -12.40247958
B33: FCL Acumulado | C33: =C32 -> -1.524309337 | D33: =C33+D32 -> -3.231831612 | E33: =D33+E32 -> -4.943479487 | F33: =E33+F32 -> -6.709177905 | G33: =F33+G32 -> -8.500465083 | H33: =G33+H32 -> -10.29714584 | I33: =H33+I32 -> -12.09906309 | J33: =I33+J32 -> -13.90606431 | K33: =J33+K32 -> -15.71800142 | L33: =K33+L32 -> -17.53473066
B35: TIR de Projeto (% ao ano) | C35: =IRR(C32:L32) -> 
B36: VPL (em R$ Milhões) | C36: =NPV('01. PC'!$C$9,'02 (b). FCL por Terminal'!D33:L33)+'02 (b). FCL por Terminal'!C33 -> -59.07489275
B38: Terminal Oficinas | C38: =(C40+C41+C42+C43+C44+C45)*C$8 -> -3.048618673 | D38: =(D40+D41+D42+D43+D44+D45)*D$8 -> -3.415044551 | E38: -3.42329575 | F38: -3.531396837 | G38: -3.582574355 | H38: -3.593361521 | I38: -3.603834497 | J38: -3.614002436 | K38: -3.623874221 | L38: -3.633458478 | N38: =SUM(C38:L38) -> -35.06946132 | P38: =NPV('01. PC'!$C$9,'02 (b). FCL por Terminal'!D38:L38)+'02 (b). FCL por Terminal'!C38 -> -24.80495917
B40: Receitas | C40: ='09. RECEITA'!C41 -> 0 | D40: ='09. RECEITA'!D41 -> 0 | E40: ='09. RECEITA'!E41 -> 0 | F40: ='09. RECEITA'!F41 -> 0 | G40: ='09. RECEITA'!G41 -> 0 | H40: ='09. RECEITA'!H41 -> 0 | I40: ='09. RECEITA'!I41 -> 0 | J40: ='09. RECEITA'!J41 -> 0 | K40: ='09. RECEITA'!K41 -> 0 | L40: ='09. RECEITA'!L41 -> 0 | N40: =SUM(C40:L40) -> 0 | P40: =NPV('01. PC'!$C$9,'02 (b). FCL por Terminal'!D40:L40)+'02 (b). FCL por Terminal'!C40 -> 0
B41: Capex | C41: =-'6. CAPEX'!C61 -> 0 | D41: =-'6. CAPEX'!D61 -> 0 | E41: =-'6. CAPEX'!E61 -> 0 | F41: =-'6. CAPEX'!F61 -> 0 | G41: =-'6. CAPEX'!G61 -> 0 | H41: =-'6. CAPEX'!H61 -> 0 | I41: =-'6. CAPEX'!I61 -> 0 | J41: =-'6. CAPEX'!J61 -> 0 | K41: =-'6. CAPEX'!K61 -> 0 | L41: =-'6. CAPEX'!L61 -> 0 | N41: 0 | P41: =NPV('01. PC'!$C$9,'02 (b). FCL por Terminal'!D41:L41)+'02 (b). FCL por Terminal'!C41 -> 0
B42: Opex | C42: =-'07. OPEX'!C146 -> -1.496481804 | D42: =-'07. OPEX'!D146 -> -1.496481804 | E42: =-'07. OPEX'!E146 -> -1.496481804 | F42: =-'07. OPEX'!F146 -> -1.496481804 | G42: =-'07. OPEX'!G146 -> -1.496481804 | H42: =-'07. OPEX'!H146 -> -1.496481804 | I42: =-'07. OPEX'!I146 -> -1.496481804 | J42: =-'07. OPEX'!J146 -> -1.496481804 | K42: =-'07. OPEX'!K146 -> -1.496481804 | L42: =-'07. OPEX'!L146 -> -1.496481804 | N42: -14.96481804 | P42: =NPV('01. PC'!$C$9,'02 (b). FCL por Terminal'!D42:L42)+'02 (b). FCL por Terminal'!C42 -> -10.68703308
B43: Tributos | C43: ='02 (a). FCL Agregado'!C41/6 -> -0.02782753252 | D43: ='02 (a). FCL Agregado'!D41/6 -> -0.2110404713 | E43: ='02 (a). FCL Agregado'!E41/6 -> -0.2151660709 | F43: ='02 (a). FCL Agregado'!F41/6 -> -0.2692166146 | G43: ='02 (a). FCL Agregado'!G41/6 -> -0.2948053733 | H43: ='02 (a). FCL Agregado'!H41/6 -> -0.3001989564 | I43: ='02 (a). FCL Agregado'!I41/6 -> -0.3054354447 | J43: ='02 (a). FCL Agregado'!J41/6 -> -0.310519414 | K43: ='02 (a). FCL Agregado'!K41/6 -> -0.3154553065 | L43: ='02 (a). FCL Agregado'!L41/6 -> -0.3202474352 | N43: -2.56991262 | P43: =NPV('01. PC'!$C$9,'02 (b). FCL por Terminal'!D43:L43)+'02 (b). FCL por Terminal'!C43 -> -1.715446501
B44: NIG | C44: ='05. NIG'!C24*('07. OPEX'!C146/'07. OPEX'!C10) -> 0 | D44: ='05. NIG'!D24*('07. OPEX'!D146/'07. OPEX'!D10) -> 0 | E44: ='05. NIG'!E24*('07. OPEX'!E146/'07. OPEX'!E10) -> 0 | F44: ='05. NIG'!F24*('07. OPEX'!F146/'07. OPEX'!F10) -> 0 | G44: ='05. NIG'!G24*('07. OPEX'!G146/'07. OPEX'!G10) -> 0 | H44: ='05. NIG'!H24*('07. OPEX'!H146/'07. OPEX'!H10) -> 0 | I44: ='05. NIG'!I24*('07. OPEX'!I146/'07. OPEX'!I10) -> 0 | J44: ='05. NIG'!J24*('07. OPEX'!J146/'07. OPEX'!J10) -> 0 | K44: ='05. NIG'!K24*('07. OPEX'!K146/'07. OPEX'!K10) -> 0 | L44: ='05. NIG'!L24*('07. OPEX'!L146/'07. OPEX'!L10) -> 0 | N44: =SUM(C44:L44) -> 0 | P44: =NPV('01. PC'!$C$9,'02 (b). FCL por Terminal'!D44:L44)+'02 (b). FCL por Terminal'!C44 -> 0
B45: FCL | C45: =C40+C41+C42+C43 -> -1.524309337 | D45: -1.707522275 | E45: -1.711647875 | F45: -1.765698419 | G45: -1.791287177 | H45: -1.79668076 | I45: -1.801917249 | J45: -1.807001218 | K45: -1.811937111 | L45: -1.816729239 | N45: -17.53473066 | P45: =NPV('01. PC'!$C$9,'02 (b). FCL por Terminal'!D45:L45)+'02 (b). FCL por Terminal'!C45 -> -12.40247958
B46: FCL Acumulado | C46: =C45 -> -1.524309337 | D46: =C46+D45 -> -3.231831612 | E46: =D46+E45 -> -4.943479487 | F46: =E46+F45 -> -6.709177905 | G46: =F46+G45 -> -8.500465083 | H46: =G46+H45 -> -10.29714584 | I46: =H46+I45 -> -12.09906309 | J46: =I46+J45 -> -13.90606431 | K46: =J46+K45 -> -15.71800142 | L46: =K46+L45 -> -17.53473066 | N46: -94.46426875 | P46: =NPV('01. PC'!$C$9,'02 (b). FCL por Terminal'!D46:L46)+'02 (b). FCL por Terminal'!C46 -> -59.07489275
B48: TIR de Projeto (% ao ano) | C48: =IRR(C45:L45) -> 
B49: VPL (em R$ Milhões) | C49: =NPV('01. PC'!$C$9,'02 (b). FCL por Terminal'!D46:L46)+'02 (b). FCL por Terminal'!C46 -> -59.07489275
B51: Terminal Nova Rússia | C51: =(C53+C54+C55+C56+C57+C58)*C$8 -> -3.048618673 | D51: =(D53+D54+D55+D56+D57+D58)*D$8 -> -3.415044551 | E51: -3.42329575 | F51: -3.531396837 | G51: -3.582574355 | H51: -3.593361521 | I51: -3.603834497 | J51: -3.614002436 | K51: -3.623874221 | L51: -3.633458478 | N51: =SUM(C51:L51) -> -35.06946132 | P51: =SUM(E51:N51) -> -63.67525941
B53: Receitas | C53: ='09. RECEITA'!C53 -> 0 | D53: ='09. RECEITA'!D53 -> 0 | E53: ='09. RECEITA'!E53 -> 0 | F53: ='09. RECEITA'!F53 -> 0 | G53: ='09. RECEITA'!G53 -> 0 | H53: ='09. RECEITA'!H53 -> 0 | I53: ='09. RECEITA'!I53 -> 0 | J53: ='09. RECEITA'!J53 -> 0 | K53: ='09. RECEITA'!K53 -> 0 | L53: ='09. RECEITA'!L53 -> 0 | N53: =SUM(C53:L53) -> 0 | P53: =NPV('01. PC'!$C$9,'02 (b). FCL por Terminal'!D53:L53)+'02 (b). FCL por Terminal'!C53 -> 0
B54: Capex | C54: =-'6. CAPEX'!C65 -> 0 | D54: =-'6. CAPEX'!D65 -> 0 | E54: =-'6. CAPEX'!E65 -> 0 | F54: =-'6. CAPEX'!F65 -> 0 | G54: =-'6. CAPEX'!G65 -> 0 | H54: =-'6. CAPEX'!H65 -> 0 | I54: =-'6. CAPEX'!I65 -> 0 | J54: =-'6. CAPEX'!J65 -> 0 | K54: =-'6. CAPEX'!K65 -> 0 | L54: =-'6. CAPEX'!L65 -> 0 | N54: 0 | P54: =NPV('01. PC'!$C$9,'02 (b). FCL por Terminal'!D54:L54)+'02 (b). FCL por Terminal'!C54 -> 0
B55: Opex | C55: =-'07. OPEX'!C213 -> -1.496481804 | D55: =-'07. OPEX'!D213 -> -1.496481804 | E55: =-'07. OPEX'!E213 -> -1.496481804 | F55: =-'07. OPEX'!F213 -> -1.496481804 | G55: =-'07. OPEX'!G213 -> -1.496481804 | H55: =-'07. OPEX'!H213 -> -1.496481804 | I55: =-'07. OPEX'!I213 -> -1.496481804 | J55: =-'07. OPEX'!J213 -> -1.496481804 | K55: =-'07. OPEX'!K213 -> -1.496481804 | L55: =-'07. OPEX'!L213 -> -1.496481804 | N55: -14.96481804 | P55: =NPV('01. PC'!$C$9,'02 (b). FCL por Terminal'!D55:L55)+'02 (b). FCL por Terminal'!C55 -> -10.68703308
B56: Tributos | C56: ='02 (a). FCL Agregado'!C41/6 -> -0.02782753252 | D56: ='02 (a). FCL Agregado'!D41/6 -> -0.2110404713 | E56: ='02 (a). FCL Agregado'!E41/6 -> -0.2151660709 | F56: ='02 (a). FCL Agregado'!F41/6 -> -0.2692166146 | G56: ='02 (a). FCL Agregado'!G41/6 -> -0.2948053733 | H56: ='02 (a). FCL Agregado'!H41/6 -> -0.3001989564 | I56: ='02 (a). FCL Agregado'!I41/6 -> -0.3054354447 | J56: ='02 (a). FCL Agregado'!J41/6 -> -0.310519414 | K56: ='02 (a). FCL Agregado'!K41/6 -> -0.3154553065 | L56: ='02 (a). FCL Agregado'!L41/6 -> -0.3202474352 | N56: -2.56991262 | P56: =NPV('01. PC'!$C$9,'02 (b). FCL por Terminal'!D56:L56)+'02 (b). FCL por Terminal'!C56 -> -1.715446501
B57: NIG | C57: ='05. NIG'!C24*('07. OPEX'!C213/'07. OPEX'!C10) -> 0 | D57: ='05. NIG'!D24*('07. OPEX'!D213/'07. OPEX'!D10) -> 0 | E57: ='05. NIG'!E24*('07. OPEX'!E213/'07. OPEX'!E10) -> 0 | F57: ='05. NIG'!F24*('07. OPEX'!F213/'07. OPEX'!F10) -> 0 | G57: ='05. NIG'!G24*('07. OPEX'!G213/'07. OPEX'!G10) -> 0 | H57: ='05. NIG'!H24*('07. OPEX'!H213/'07. OPEX'!H10) -> 0 | I57: ='05. NIG'!I24*('07. OPEX'!I213/'07. OPEX'!I10) -> 0 | J57: ='05. NIG'!J24*('07. OPEX'!J213/'07. OPEX'!J10) -> 0 | K57: ='05. NIG'!K24*('07. OPEX'!K213/'07. OPEX'!K10) -> 0 | L57: ='05. NIG'!L24*('07. OPEX'!L213/'07. OPEX'!L10) -> 0 | N57: =SUM(C57:L57) -> 0 | P57: =NPV('01. PC'!$C$9,'02 (b). FCL por Terminal'!D57:L57)+'02 (b). FCL por Terminal'!C57 -> 0
B58: FCL | C58: =C53+C54+C55+C56 -> -1.524309337 | D58: -1.707522275 | E58: -1.711647875 | F58: -1.765698419 | G58: -1.791287177 | H58: -1.79668076 | I58: -1.801917249 | J58: -1.807001218 | K58: -1.811937111 | L58: -1.816729239 | N58: -17.53473066 | P58: =NPV('01. PC'!$C$9,'02 (b). FCL por Terminal'!D58:L58)+'02 (b). FCL por Terminal'!C58 -> -12.40247958
B59: FCL Acumulado | C59: =C58 -> -1.524309337 | D59: =C59+D58 -> -3.231831612 | E59: =D59+E58 -> -4.943479487 | F59: =E59+F58 -> -6.709177905 | G59: =F59+G58 -> -8.500465083 | H59: =G59+H58 -> -10.29714584 | I59: =H59+I58 -> -12.09906309 | J59: =I59+J58 -> -13.90606431 | K59: =J59+K58 -> -15.71800142 | L59: =K59+L58 -> -17.53473066 | N59: -94.46426875 | P59: =NPV('01. PC'!$C$9,'02 (b). FCL por Terminal'!D59:L59)+'02 (b). FCL por Terminal'!C59 -> -59.07489275
B61: TIR de Projeto (% ao ano) | C61: =IRR(C58:L58) -> 
B62: VPL (em R$ Milhões) | C62: =NPV('01. PC'!$C$9,'02 (b). FCL por Terminal'!D59:L59)+'02 (b). FCL por Terminal'!C59 -> -59.07489275
B64: Terminal Santa Paula | C64: =(C66+C67+C68+C69+C70+C71)*C$8 -> -72.79345507 | D64: =(D66+D67+D68+D69+D70+D71)*D$8 -> -3.415044551 | E64: -3.42329575 | F64: -3.531396837 | G64: -3.582574355 | H64: -3.593361521 | I64: -3.603834497 | J64: -3.614002436 | K64: -3.623874221 | L64: -3.633458478 | N64: =SUM(C64:L64) -> -104.8142977 | P64: =SUM(E64:N64) -> -133.4200958
B66: Receitas | C66: ='09. RECEITA'!C65 -> 0 | D66: ='09. RECEITA'!D65 -> 0 | E66: ='09. RECEITA'!E65 -> 0 | F66: ='09. RECEITA'!F65 -> 0 | G66: ='09. RECEITA'!G65 -> 0 | H66: ='09. RECEITA'!H65 -> 0 | I66: ='09. RECEITA'!I65 -> 0 | J66: ='09. RECEITA'!J65 -> 0 | K66: ='09. RECEITA'!K65 -> 0 | L66: ='09. RECEITA'!L65 -> 0 | N66: =SUM(C66:L66) -> 0 | P66: =NPV('01. PC'!$C$9,'02 (b). FCL por Terminal'!D66:L66)+'02 (b). FCL por Terminal'!C66 -> 0
B67: Capex | C67: =-'6. CAPEX'!C13 -> -36.3689 | D67: =-'6. CAPEX'!D69-'6. CAPEX'!D13-('6. CAPEX'!D49/10^6) -> 0 | E67: =-'6. CAPEX'!E69-'6. CAPEX'!E13-('6. CAPEX'!E49/10^6) -> 0 | F67: =-'6. CAPEX'!F69-'6. CAPEX'!F13-('6. CAPEX'!F49/10^6) -> 0 | G67: =-'6. CAPEX'!G69-'6. CAPEX'!G13-('6. CAPEX'!G49/10^6) -> 0 | H67: =-'6. CAPEX'!H69-'6. CAPEX'!H13-('6. CAPEX'!H49/10^6) -> 0 | I67: =-'6. CAPEX'!I69-'6. CAPEX'!I13-('6. CAPEX'!I49/10^6) -> 0 | J67: =-'6. CAPEX'!J69-'6. CAPEX'!J13-('6. CAPEX'!J49/10^6) -> 0 | K67: =-'6. CAPEX'!K69-'6. CAPEX'!K13-('6. CAPEX'!K49/10^6) -> 0 | L67: =-'6. CAPEX'!L69-'6. CAPEX'!L13-('6. CAPEX'!L49/10^6) -> 0 | N67: -36.3689 | P67: =NPV('01. PC'!$C$9,'02 (b). FCL por Terminal'!D67:L67)+'02 (b). FCL por Terminal'!C67 -> -36.3689
B68: Opex | C68: =-'07. OPEX'!C280 -> 0 | D68: =-'07. OPEX'!D280 -> -1.496481804 | E68: =-'07. OPEX'!E280 -> -1.496481804 | F68: =-'07. OPEX'!F280 -> -1.496481804 | G68: =-'07. OPEX'!G280 -> -1.496481804 | H68: =-'07. OPEX'!H280 -> -1.496481804 | I68: =-'07. OPEX'!I280 -> -1.496481804 | J68: =-'07. OPEX'!J280 -> -1.496481804 | K68: =-'07. OPEX'!K280 -> -1.496481804 | L68: =-'07. OPEX'!L280 -> -1.496481804 | N68: -13.46833624 | P68: =NPV('01. PC'!$C$9,'02 (b). FCL por Terminal'!D68:L68)+'02 (b). FCL por Terminal'!C68 -> -9.19055128
B69: Tributos | C69: ='02 (a). FCL Agregado'!C41/6 -> -0.02782753252 | D69: ='02 (a). FCL Agregado'!D41/6 -> -0.2110404713 | E69: ='02 (a). FCL Agregado'!E41/6 -> -0.2151660709 | F69: ='02 (a). FCL Agregado'!F41/6 -> -0.2692166146 | G69: ='02 (a). FCL Agregado'!G41/6 -> -0.2948053733 | H69: ='02 (a). FCL Agregado'!H41/6 -> -0.3001989564 | I69: ='02 (a). FCL Agregado'!I41/6 -> -0.3054354447 | J69: ='02 (a). FCL Agregado'!J41/6 -> -0.310519414 | K69: ='02 (a). FCL Agregado'!K41/6 -> -0.3154553065 | L69: ='02 (a). FCL Agregado'!L41/6 -> -0.3202474352 | N69: -2.56991262 | P69: =NPV('01. PC'!$C$9,'02 (b). FCL por Terminal'!D69:L69)+'02 (b). FCL por Terminal'!C69 -> -1.715446501
B70: NIG | C70: ='05. NIG'!C24*('07. OPEX'!D280/'07. OPEX'!C10) -> 0 | D70: ='05. NIG'!D24*('07. OPEX'!E280/'07. OPEX'!D10) -> 0 | E70: ='05. NIG'!E24*('07. OPEX'!F280/'07. OPEX'!E10) -> 0 | F70: ='05. NIG'!F24*('07. OPEX'!G280/'07. OPEX'!F10) -> 0 | G70: ='05. NIG'!G24*('07. OPEX'!H280/'07. OPEX'!G10) -> 0 | H70: ='05. NIG'!H24*('07. OPEX'!I280/'07. OPEX'!H10) -> 0 | I70: ='05. NIG'!I24*('07. OPEX'!J280/'07. OPEX'!I10) -> 0 | J70: ='05. NIG'!J24*('07. OPEX'!K280/'07. OPEX'!J10) -> 0 | K70: ='05. NIG'!K24*('07. OPEX'!K280/'07. OPEX'!K10) -> 0 | L70: ='05. NIG'!L24*('07. OPEX'!L280/'07. OPEX'!L10) -> 0 | N70: =SUM(C70:L70) -> 0 | P70: =NPV('01. PC'!$C$9,'02 (b). FCL por Terminal'!D70:L70)+'02 (b). FCL por Terminal'!C70 -> 0
B71: FCL | C71: =C66+C67+C68+C69 -> -36.39672753 | D71: -1.707522275 | E71: -1.711647875 | F71: -1.765698419 | G71: -1.791287177 | H71: -1.79668076 | I71: -1.801917249 | J71: -1.807001218 | K71: -1.811937111 | L71: -1.816729239 | N71: -52.40714886 | P71: =NPV('01. PC'!$C$9,'02 (b). FCL por Terminal'!D71:L71)+'02 (b). FCL por Terminal'!C71 -> -47.27489778
B72: FCL Acumulado | C72: =C71 -> -36.39672753 | D72: =C72+D71 -> -38.10424981 | E72: =D72+E71 -> -39.81589768 | F72: =E72+F71 -> -41.5815961 | G72: =F72+G71 -> -43.37288328 | H72: =G72+H71 -> -45.16956404 | I72: =H72+I71 -> -46.97148129 | J72: =I72+J71 -> -48.77848251 | K72: =J72+K71 -> -50.59041962 | L72: =K72+L71 -> -52.40714886 | N72: -443.1884507 | P72: =NPV('01. PC'!$C$9,'02 (b). FCL por Terminal'!D72:L72)+'02 (b). FCL por Terminal'!C72 -> -308.11413
B74: TIR de Projeto (% ao ano) | C74: =IRR(C71:L71) -> 
B75: VPL (em R$ Milhões) | C75: =NPV('01. PC'!$C$9,'02 (b). FCL por Terminal'!D72:L72)+'02 (b). FCL por Terminal'!C72 -> -308.11413
B77: Terminais de Integração Eletrônica | C77: =(C79+C80+C81+C82+C84)*C$8 -> -5.314673305 | D77: -0.9855471826 | E77: -0.9937983819 | F77: -1.101899469 | G77: -1.153076987 | H77: -1.163864153 | I77: -1.174337129 | J77: -1.184505068 | K77: -1.194376853 | L77: -1.20396111 | N77: =SUM(C77:L77) -> -15.47003964 | P77: =SUM(E77:N77) -> -24.63985879
B79: Receitas | C79: ='09. RECEITA'!C77 -> 0 | D79: ='09. RECEITA'!D77 -> 0 | E79: ='09. RECEITA'!E77 -> 0 | F79: ='09. RECEITA'!F77 -> 0 | G79: ='09. RECEITA'!G77 -> 0 | H79: ='09. RECEITA'!H77 -> 0 | I79: ='09. RECEITA'!I77 -> 0 | J79: ='09. RECEITA'!J77 -> 0 | K79: ='09. RECEITA'!K77 -> 0 | L79: ='09. RECEITA'!L77 -> 0 | N79: =SUM(C79:L79) -> 0 | P79: =NPV('01. PC'!$C$9,'02 (b). FCL por Terminal'!D79:L79)+'02 (b). FCL por Terminal'!C79 -> 0
B80: Capex | C80: =-'6. CAPEX'!C23+('6. CAPEX'!C49/10^6) -> -2.347776 | D80: =-'6. CAPEX'!D23+('6. CAPEX'!D49/10^6) -> 0 | E80: =-'6. CAPEX'!E23+('6. CAPEX'!E49/10^6) -> 0 | F80: =-'6. CAPEX'!F23+('6. CAPEX'!F49/10^6) -> 0 | G80: =-'6. CAPEX'!G23+('6. CAPEX'!G49/10^6) -> 0 | H80: =-'6. CAPEX'!H23+('6. CAPEX'!H49/10^6) -> 0 | I80: =-'6. CAPEX'!I23+('6. CAPEX'!I49/10^6) -> 0 | J80: =-'6. CAPEX'!J23+('6. CAPEX'!J49/10^6) -> 0 | K80: =-'6. CAPEX'!K23+('6. CAPEX'!K49/10^6) -> 0 | L80: =-'6. CAPEX'!L23+('6. CAPEX'!L49/10^6) -> 0 | N80: -2.347776 | P80: =NPV('01. PC'!$C$9,'02 (b). FCL por Terminal'!D80:L80)+'02 (b). FCL por Terminal'!C80 -> -2.347776
B81: Opex | C81: =-'07. OPEX'!C347 -> -0.28173312 | D81: =-'07. OPEX'!D347 -> -0.28173312 | E81: =-'07. OPEX'!E347 -> -0.28173312 | F81: =-'07. OPEX'!F347 -> -0.28173312 | G81: =-'07. OPEX'!G347 -> -0.28173312 | H81: =-'07. OPEX'!H347 -> -0.28173312 | I81: =-'07. OPEX'!I347 -> -0.28173312 | J81: =-'07. OPEX'!J347 -> -0.28173312 | K81: =-'07. OPEX'!K347 -> -0.28173312 | L81: =-'07. OPEX'!L347 -> -0.28173312 | N81: -2.8173312 | P81: =NPV('01. PC'!$C$9,'02 (b). FCL por Terminal'!D81:L81)+'02 (b). FCL por Terminal'!C81 -> -2.011979809
B82: Tributos | C82: ='02 (a). FCL Agregado'!C41/6 -> -0.02782753252 | D82: ='02 (a). FCL Agregado'!D41/6 -> -0.2110404713 | E82: ='02 (a). FCL Agregado'!E41/6 -> -0.2151660709 | F82: ='02 (a). FCL Agregado'!F41/6 -> -0.2692166146 | G82: ='02 (a). FCL Agregado'!G41/6 -> -0.2948053733 | H82: ='02 (a). FCL Agregado'!H41/6 -> -0.3001989564 | I82: ='02 (a). FCL Agregado'!I41/6 -> -0.3054354447 | J82: ='02 (a). FCL Agregado'!J41/6 -> -0.310519414 | K82: ='02 (a). FCL Agregado'!K41/6 -> -0.3154553065 | L82: ='02 (a). FCL Agregado'!L41/6 -> -0.3202474352 | N82: -2.56991262 | P82: =NPV('01. PC'!$C$9,'02 (b). FCL por Terminal'!D82:L82)+'02 (b). FCL por Terminal'!C82 -> -1.715446501
B83: NIG | C83: ='05. NIG'!C24*('07. OPEX'!C347/'07. OPEX'!C10) -> 0 | D83: ='05. NIG'!D24*('07. OPEX'!D347/'07. OPEX'!D10) -> 0 | E83: ='05. NIG'!E24*('07. OPEX'!E347/'07. OPEX'!E10) -> 0 | F83: ='05. NIG'!F24*('07. OPEX'!F347/'07. OPEX'!F10) -> 0 | G83: ='05. NIG'!G24*('07. OPEX'!G347/'07. OPEX'!G10) -> 0 | H83: ='05. NIG'!H24*('07. OPEX'!H347/'07. OPEX'!H10) -> 0 | I83: ='05. NIG'!I24*('07. OPEX'!I347/'07. OPEX'!I10) -> 0 | J83: ='05. NIG'!J24*('07. OPEX'!J347/'07. OPEX'!J10) -> 0 | K83: ='05. NIG'!K24*('07. OPEX'!K347/'07. OPEX'!K10) -> 0 | L83: ='05. NIG'!L24*('07. OPEX'!L347/'07. OPEX'!L10) -> 0
B84: FCL | C84: =C79+C80+C81+C82 -> -2.657336653 | D84: -0.4927735913 | E84: -0.4968991909 | F84: -0.5509497346 | G84: -0.5765384933 | H84: -0.5819320764 | I84: -0.5871685647 | J84: -0.592252534 | K84: -0.5971884265 | L84: -0.6019805552 | N84: -7.73501982 | P84: =NPV('01. PC'!$C$9,'02 (b). FCL por Terminal'!D84:L84)+'02 (b). FCL por Terminal'!C84 -> -6.07520231
B85: FCL Acumulado | C85: =C84 -> -2.657336653 | D85: =C85+D84 -> -3.150110244 | E85: =D85+E84 -> -3.647009435 | F85: =E85+F84 -> -4.197959169 | G85: =F85+G84 -> -4.774497663 | H85: =G85+H84 -> -5.356429739 | I85: =H85+I84 -> -5.943598304 | J85: =I85+J84 -> -6.535850838 | K85: =J85+K84 -> -7.133039264 | L85: =K85+L84 -> -7.73501982 | N85: -51.13085113 | P85: =NPV('01. PC'!$C$9,'02 (b). FCL por Terminal'!D85:L85)+'02 (b). FCL por Terminal'!C85 -> -33.84619363
B87: TIR de Projeto (% ao ano) | C87: =IRR(C84:L84) -> 
B88: VPL (em R$ Milhões) | C88: =NPV('01. PC'!$C$9,'02 (b). FCL por Terminal'!D85:L85)+'02 (b). FCL por Terminal'!C85 -> -33.84619363

Sheet 03. WACC
B6: Lucro Real | F6: Lucro Presumido
B7: Variáveis | D7: Premissas | F7: Variáveis | H7: Premissas
B9: Custo de Capital Próprio (Ke) - Real | D9: =B9 -> Custo de Capital Próprio (Ke) - Real | F9: =B9 -> Custo de Capital Próprio (Ke) - Real | H9: =F9 -> Custo de Capital Próprio (Ke) - Real
B10: Taxa Livre de Risco (Rf) | C10: 0.05786818182 | D10: TESOURO NTNB 2035 (07/2022) | F10: =B10 -> Taxa Livre de Risco (Rf) | G10: =C10 -> 0.05786818182 | H10: =D10 -> TESOURO NTNB 2035 (07/2022)
B11: Prêmio de Risco de Mercado (Rm - Rf) | C11: 0.0531514471 | D11: Shiler | F11: =B11 -> Prêmio de Risco de Mercado (Rm - Rf) | G11: 0.0531514471 | H11: =D11 -> Shiler
B12: Beta Alavancado | C12: 1.310056572 | D12: Setor de transportes | F12: Beta Alavancado | G12: 1.310056572 | H12: =D12 -> Setor de transportes
B13: Ke (BRL Real) | C13: =C12*C11+C10 -> 0.1274995844 | D13: Ke (BRL Real) = Rf + B(Rm - Rf) + CRP | F13: Ke (BRL Real) | G13: =G12*G11+G10 -> 0.1274995844 | H13: =D13 -> Ke (BRL Real) = Rf + B(Rm - Rf) + CRP
B15: Custo da Dívida (Kd) - Real | D15: =B15 -> Custo da Dívida (Kd) - Real | F15: =B15 -> Custo da Dívida (Kd) - Real | H15: =F15 -> Custo da Dívida (Kd) - Real
B16: Alíquota do Imposto de Renda e Contribuição Social Efetivos (t) | C16: 0.34 | D16: Alíquota de IRPJ e CSLL sobre o Lucro Líquido vigente no Brasil | F16: =B16 -> Alíquota do Imposto de Renda e Contribuição Social Efetivos (t) | H16: =D16 -> Alíquota de IRPJ e CSLL sobre o Lucro Líquido vigente no Brasil
B17: Inflação Brasil | C17: 0.04444 | D17: Média expectativa focus para próximos 5 anos | F17: =B17 -> Inflação Brasil | G17: 0.04444 | H17: =D17 -> Média expectativa focus para próximos 5 anos
B18: Taxa de Juros Nominal | C18: 0.1330866667 | D18: Demonstrações Financeiras Empresas do setor 1T2022 | F18: Taxa de Juros Nominal | G18: =C18 -> 0.1330866667 | H18: =D18 -> Demonstrações Financeiras Empresas do setor 1T2022
B19: Kd nominal com benefício fiscal | C19: 0.0878372 | D19: Kd - Alíquota de imposto | F19: Kd nominal com benefício fiscal | G19: =G18*(1-G16) -> 0.1330866667 | H19: =D19 -> Kd - Alíquota de imposto
B21: Kd real com benefício fiscal | C21: =(1+C19)/(1+C17) -1 -> 0.04155068745 | D21: =B21 -> Kd real com benefício fiscal | F21: =B21 -> Kd real com benefício fiscal | G21: =(1+G19)/(1+G17) -1 -> 0.08487482925 | H21: =D21 -> Kd real com benefício fiscal
B23: Estrutura de Capital | D23: =B23 -> Estrutura de Capital | F23: Estrutura de Capital | H23: =F23 -> Estrutura de Capital
B24: Dívida Bruta / Capital Total (D) | C24: 0.5047937586 | D24: Média do setor: Transportes 2015-2T2022 | F24: Dívida Bruta / Capital Total (D) | G24: =C24 -> 0.5047937586 | H24: =D24 -> Média do setor: Transportes 2015-2T2022
B25: Equity / Capital Total (E) | C25: 0.4952062414 | D25: Média do setor: Transportes 2015-2T2022 | F25: Equity / Capital Total (E) | G25: 0.4952062414 | H25: =D25 -> Média do setor: Transportes 2015-2T2022
B27: WACC Lucro Real | C27: =C24*C21+C25*C13 -> 0.08411311767 | D27: Kd x Wd + Ke x We | F27: WACC Lucro Presumido | G27: =G24*G21+G25*G13 -> 0.105982874 | H27: =D27 -> Kd x Wd + Ke x We

Sheet 04. D&A Fiscal
B6: D&A (R$ Milhões)
B8: PRAZO | C8: =IF(C10<=('01. PC'!$C$17),1,0) -> 1 | D8: =IF(D10<=('01. PC'!$C$17),1,0) -> 1 | E8: =IF(E10<=('01. PC'!$C$17),1,0) -> 1 | F8: =IF(F10<=('01. PC'!$C$17),1,0) -> 1 | G8: =IF(G10<=('01. PC'!$C$17),1,0) -> 1 | H8: =IF(H10<=('01. PC'!$C$17),1,0) -> 1 | I8: =IF(I10<=('01. PC'!$C$17),1,0) -> 1 | J8: =IF(J10<=('01. PC'!$C$17),1,0) -> 1 | K8: =IF(K10<=('01. PC'!$C$17),1,0) -> 1 | L8: =IF(L10<=('01. PC'!$C$17),1,0) -> 1
B10: ANO | C10: 1 | D10: =C10+1 -> 2 | E10: =D10+1 -> 3 | F10: 4 | G10: 5 | H10: 6 | I10: 7 | J10: 8 | K10: 9 | L10: 10 | AC10: TOTAL
B12: Capex | C12: =C14+C15+C16+C17+C18+C19+C20 -> 38.716676 | D12: =D14+D15+D16+D17+D18+D19+D20 -> 0 | E12: 0 | F12: 0 | G12: 0 | H12: 0 | I12: 0 | J12: 0 | K12: 0 | L12: 0 | AC12: =SUM(C12:AA12) -> 38.716676
B14: Terminal Santa Paula - Construção de Terminal | C14: ='6. CAPEX'!C13 -> 36.3689 | D14: ='6. CAPEX'!D13 -> 0 | E14: ='6. CAPEX'!E13 -> 0 | F14: ='6. CAPEX'!F13 -> 0 | G14: ='6. CAPEX'!G13 -> 0 | H14: ='6. CAPEX'!H13 -> 0 | I14: ='6. CAPEX'!I13 -> 0 | J14: ='6. CAPEX'!J13 -> 0 | K14: ='6. CAPEX'!K13 -> 0 | L14: ='6. CAPEX'!L13 -> 0 | AC14: =SUM(C14:AA14) -> 36.3689
B15: Terminais de Integração Eletrônica (TEI) | C15: ='6. CAPEX'!C23 -> 2.347776 | D15: ='6. CAPEX'!D23 -> 0 | E15: ='6. CAPEX'!E23 -> 0 | F15: ='6. CAPEX'!F23 -> 0 | G15: ='6. CAPEX'!G23 -> 0 | H15: ='6. CAPEX'!H23 -> 0 | I15: ='6. CAPEX'!I23 -> 0 | J15: ='6. CAPEX'!J23 -> 0 | K15: ='6. CAPEX'!K23 -> 0 | L15: ='6. CAPEX'!L23 -> 0 | AC15: 2.347776
B16: Terminal Central- Construção de Áreas Comerciais* | C16: ='6. CAPEX'!C53 -> 0 | D16: ='6. CAPEX'!D53 -> 0 | E16: ='6. CAPEX'!E53 -> 0 | F16: ='6. CAPEX'!F53 -> 0 | G16: ='6. CAPEX'!G53 -> 0 | H16: ='6. CAPEX'!H53 -> 0 | I16: ='6. CAPEX'!I53 -> 0 | J16: ='6. CAPEX'!J53 -> 0 | K16: ='6. CAPEX'!K53 -> 0 | L16: ='6. CAPEX'!L53 -> 0 | AC16: 0
B17: Terminal Uvaranas - Construção de Áreas Comerciais | C17: ='6. CAPEX'!C57 -> 0 | D17: ='6. CAPEX'!D57 -> 0 | E17: ='6. CAPEX'!E57 -> 0 | F17: ='6. CAPEX'!F57 -> 0 | G17: ='6. CAPEX'!G57 -> 0 | H17: ='6. CAPEX'!H57 -> 0 | I17: ='6. CAPEX'!I57 -> 0 | J17: ='6. CAPEX'!J57 -> 0 | K17: ='6. CAPEX'!K57 -> 0 | L17: ='6. CAPEX'!L57 -> 0 | AC17: 0
B18: Terminal Oficinas - Construção de Áreas Comerciais | C18: ='6. CAPEX'!C61 -> 0 | D18: ='6. CAPEX'!D61 -> 0 | E18: ='6. CAPEX'!E61 -> 0 | F18: ='6. CAPEX'!F61 -> 0 | G18: ='6. CAPEX'!G61 -> 0 | H18: ='6. CAPEX'!H61 -> 0 | I18: ='6. CAPEX'!I61 -> 0 | J18: ='6. CAPEX'!J61 -> 0 | K18: ='6. CAPEX'!K61 -> 0 | L18: ='6. CAPEX'!L61 -> 0 | AC18: 0
B19: Terminal Nova Rússia - Construção de Áreas Comerciais* | C19: ='6. CAPEX'!C65 -> 0 | D19: ='6. CAPEX'!D65 -> 0 | E19: ='6. CAPEX'!E65 -> 0 | F19: ='6. CAPEX'!F65 -> 0 | G19: ='6. CAPEX'!G65 -> 0 | H19: ='6. CAPEX'!H65 -> 0 | I19: ='6. CAPEX'!I65 -> 0 | J19: ='6. CAPEX'!J65 -> 0 | K19: ='6. CAPEX'!K65 -> 0 | L19: ='6. CAPEX'!L65 -> 0 | AC19: 0
B20: Terminal Santa Paula - Construção de Áreas Comerciais | C20: ='6. CAPEX'!C69 -> 0 | D20: ='6. CAPEX'!D69 -> 0 | E20: ='6. CAPEX'!E69 -> 0 | F20: ='6. CAPEX'!F69 -> 0 | G20: ='6. CAPEX'!G69 -> 0 | H20: ='6. CAPEX'!H69 -> 0 | I20: ='6. CAPEX'!I69 -> 0 | J20: ='6. CAPEX'!J69 -> 0 | K20: ='6. CAPEX'!K69 -> 0 | L20: ='6. CAPEX'!L69 -> 0 | AC20: 0
B21: Cronograma | C21: =C23+C35+C47+C59+C71+C83+C95 -> 38.716676 | D21: =D23+D35+D47+D59+D71+D83+D95 -> 0 | E21: 0 | F21: 0 | G21: 0 | H21: 0 | I21: 0 | J21: 0 | K21: 0 | L21: 0 | AC21: =SUM(C21:AA21) -> 38.716676
B23: Terminal Santa Paula - Construção de Terminal | C23: =SUM(C24:C33) -> 36.3689 | D23: 0 | E23: 0 | F23: 0 | G23: 0 | H23: 0 | I23: 0 | J23: 0 | K23: 0 | L23: 0 | AC23: =SUM(C23:AA23) -> 36.3689
B24: 1 | C24: =C$14 -> 36.3689 | AC24: =SUM(C24:AA24) -> 36.3689
B25: =B24+1 -> 2 | D25: =D$14 -> 0 | AC25: =SUM(C25:AA25) -> 0
B26: =B25+1 -> 3 | E26: =E$14 -> 0 | AC26: 0
B27: 4 | F27: =F$14 -> 0 | AC27: 0
B28: 5 | G28: =G$14 -> 0 | AC28: 0
B29: 6 | H29: =H$14 -> 0 | AC29: 0
B30: 7 | I30: =I$14 -> 0 | AC30: 0
B31: 8 | J31: =J$14 -> 0 | AC31: 0
B32: =B31+1 -> 9 | K32: =K$14 -> 0 | AC32: 0
B33: 10 | L33: =L$14 -> 0 | AC33: 0
B35: Terminais de Integração Eletrônica (TEI) | C35: =SUM(C36:C45) -> 2.347776 | D35: 0 | E35: 0 | F35: 0 | G35: 0 | H35: 0 | I35: 0 | J35: 0 | K35: 0 | L35: 0 | AC35: =SUM(C35:AA35) -> 2.347776
B36: 1 | C36: =C$15 -> 2.347776 | AC36: =SUM(C36:AA36) -> 2.347776
B37: =B36+1 -> 2 | D37: =D$15 -> 0 | AC37: 0
B38: =B37+1 -> 3 | E38: =E$15 -> 0 | AC38: 0
B39: 4 | F39: =F$15 -> 0 | AC39: 0
B40: 5 | G40: =G$15 -> 0 | AC40: 0
B41: 6 | H41: =H$15 -> 0 | AC41: 0
B42: 7 | I42: =I$15 -> 0 | AC42: 0
B43: 8 | J43: =J$15 -> 0 | AC43: 0
B44: 9 | K44: =K$15 -> 0 | AC44: 0
B45: 10 | L45: =L$15 -> 0 | AC45: 0
B47: Terminal Central - Construção de Áreas Comerciais* | C47: =SUM(C48:C57) -> 0 | D47: 0 | E47: 0 | F47: 0 | G47: 0 | H47: 0 | I47: 0 | J47: 0 | K47: 0 | L47: 0 | AC47: =SUM(C47:AA47) -> 0
B48: 1 | C48: =C$16 -> 0 | AC48: =SUM(C48:AA48) -> 0
B49: =B48+1 -> 2 | D49: =D$16 -> 0 | AC49: 0
B50: =B49+1 -> 3 | E50: =E$16 -> 0 | AC50: 0
B51: 4 | F51: =F$16 -> 0 | AC51: 0
B52: 5 | G52: =G$16 -> 0 | AC52: 0
B53: 6 | H53: =H$16 -> 0 | AC53: 0
B54: 7 | I54: =I$16 -> 0 | AC54: 0
B55: 8 | J55: =J$16 -> 0 | AC55: 0
B56: 9 | K56: =K$16 -> 0 | AC56: 0
B57: 10 | L57: =L$16 -> 0 | AC57: 0
B59: Terminal Uvaranas - Construção de Áreas Comerciais | C59: =SUM(C60:C69) -> 0 | D59: 0 | E59: 0 | F59: 0 | G59: 0 | H59: 0 | I59: 0 | J59: 0 | K59: 0 | L59: 0 | AC59: =SUM(C59:AA59) -> 0
B60: 1 | C60: =C$17 -> 0 | AC60: =SUM(C60:AA60) -> 0
B61: =B60+1 -> 2 | D61: =D$17 -> 0 | AC61: 0
B62: =B61+1 -> 3 | E62: =E$17 -> 0 | AC62: 0
B63: 4 | F63: =F$17 -> 0 | AC63: 0
B64: 5 | G64: =G$17 -> 0 | AC64: 0
B65: 6 | H65: =H$17 -> 0 | AC65: 0
B66: 7 | I66: =I$17 -> 0 | AC66: 0
B67: 8 | J67: =J$17 -> 0 | AC67: 0
B68: 9 | K68: =K$17 -> 0 | AC68: 0
B69: 10 | L69: =L$17 -> 0 | AC69: 0
B71: Terminal Oficinas - Construção de Áreas Comerciais | C71: =SUM(C72:C81) -> 0 | D71: 0 | E71: 0 | F71: 0 | G71: 0 | H71: 0 | I71: 0 | J71: 0 | K71: 0 | L71: 0 | AC71: =SUM(C71:AA71) -> 0
B72: 1 | C72: =C$18 -> 0 | AC72: =SUM(C72:AA72) -> 0
B73: =B72+1 -> 2 | D73: =D$18 -> 0 | AC73: 0
B74: =B73+1 -> 3 | E74: =E$18 -> 0 | AC74: 0
B75: 4 | F75: =F$18 -> 0 | AC75: 0
B76: 5 | G76: =G$18 -> 0 | AC76: 0
B77: 6 | H77: =H$18 -> 0 | AC77: 0
B78: 7 | I78: =I$18 -> 0 | AC78: 0
B79: 8 | J79: =J$18 -> 0 | AC79: 0
B80: 9 | K80: =K$18 -> 0 | AC80: 0
B81: 10 | L81: =L$18 -> 0 | AC81: 0
B83: Terminal Nova Rússia - Construção de Áreas Comerciais* | C83: =SUM(C84:C93) -> 0 | D83: 0 | E83: 0 | F83: 0 | G83: 0 | H83: 0 | I83: 0 | J83: 0 | K83: 0 | L83: 0 | AC83: =SUM(C83:AA83) -> 0
B84: 1 | C84: =C$19 -> 0 | AC84: =SUM(C84:AA84) -> 0
B85: =B84+1 -> 2 | D85: =D$19 -> 0 | AC85: 0
B86: =B85+1 -> 3 | E86: =E$19 -> 0 | AC86: 0
B87: 4 | F87: =F$19 -> 0 | AC87: 0
B88: 5 | G88: =G$19 -> 0 | AC88: 0
B89: 6 | H89: =H$19 -> 0 | AC89: 0
B90: 7 | I90: =I$19 -> 0 | AC90: 0
B91: 8 | J91: =J$19 -> 0 | AC91: 0
B92: 9 | K92: =K$19 -> 0 | AC92: 0
B93: 10 | L93: =L$19 -> 0 | AC93: 0
B95: Terminal Santa Paula - Construção de Áreas Comerciais | C95: =SUM(C96:C105) -> 0 | D95: 0 | E95: 0 | F95: 0 | G95: 0 | H95: 0 | I95: 0 | J95: 0 | K95: 0 | L95: 0 | AC95: =SUM(C95:AA95) -> 0
B96: 1 | C96: =C$20 -> 0 | AC96: =SUM(C96:AA96) -> 0
B97: =B96+1 -> 2 | D97: =D$20 -> 0 | AC97: 0
B98: =B97+1 -> 3 | E98: =E$20 -> 0 | AC98: 0
B99: 4 | F99: =F$20 -> 0 | AC99: 0
B100: 5 | G100: =G$20 -> 0 | AC100: 0
B101: 6 | H101: =H$20 -> 0 | AC101: 0
B102: 7 | I102: =I$20 -> 0 | AC102: 0
B103: 8 | J103: =J$20 -> 0 | AC103: 0
B104: 9 | K104: =K$20 -> 0 | AC104: 0
B105: 10 | L105: =L$20 -> 0 | AC105: 0
B107: Dep. sem perdas reais | C107: =C109+C121+C133+C145+C157+C169+C181 -> 3.8716676 | D107: =D109+D121+D133+D145+D157+D169+D181 -> 3.8716676 | E107: 3.8716676 | F107: 3.8716676 | G107: 3.8716676 | H107: 3.8716676 | I107: 3.8716676 | J107: 3.8716676 | K107: 3.8716676 | L107: 3.8716676 | AC107: =SUM(C107:AA107) -> 38.716676
B109: Terminal Santa Paula - Construção de Terminal | C109: =SUM(C110:C119) -> 3.63689 | D109: 3.63689 | E109: 3.63689 | F109: 3.63689 | G109: 3.63689 | H109: 3.63689 | I109: 3.63689 | J109: 3.63689 | K109: 3.63689 | L109: 3.63689 | AC109: =SUM(C109:AA109) -> 36.3689
B110: 1 | C110: =$AC110*(1/$AD110)*C$8 -> 3.63689 | D110: =IFERROR(IF(SUM($C110:C110)<$AC110,$AC110*(1/$AD110),0),0)*D$8 -> 3.63689 | E110: =IFERROR(IF(SUM($C110:D110)<$AC110,$AC110*(1/$AD110),0),0)*E$8 -> 3.63689 | F110: =IFERROR(IF(SUM($C110:E110)<$AC110,$AC110*(1/$AD110),0),0)*F$8 -> 3.63689 | G110: =IFERROR(IF(SUM($C110:F110)<$AC110,$AC110*(1/$AD110),0),0)*G$8 -> 3.63689 | H110: =IFERROR(IF(SUM($C110:G110)<$AC110,$AC110*(1/$AD110),0),0)*H$8 -> 3.63689 | I110: =IFERROR(IF(SUM($C110:H110)<$AC110,$AC110*(1/$AD110),0),0)*I$8 -> 3.63689 | J110: =IFERROR(IF(SUM($C110:I110)<$AC110,$AC110*(1/$AD110),0),0)*J$8 -> 3.63689 | K110: =IFERROR(IF(SUM($C110:J110)<$AC110,$AC110*(1/$AD110),0),0)*K$8 -> 3.63689 | L110: =IFERROR(IF(SUM($C110:K110)<$AC110,$AC110*(1/$AD110),0),0)*L$8 -> 3.63689 | AC110: =AC24 -> 36.3689 | AD110: 10
B111: =B110+1 -> 2 | D111: =IFERROR(IF(SUM($C111:C111)<$AC111,$AC111*(1/$AD111),0),0)*D$8 -> 0 | E111: =IFERROR(IF(SUM($C111:D111)<$AC111,$AC111*(1/$AD111),0),0)*E$8 -> 0 | F111: =IFERROR(IF(SUM($C111:E111)<$AC111,$AC111*(1/$AD111),0),0)*F$8 -> 0 | G111: =IFERROR(IF(SUM($C111:F111)<$AC111,$AC111*(1/$AD111),0),0)*G$8 -> 0 | H111: =IFERROR(IF(SUM($C111:G111)<$AC111,$AC111*(1/$AD111),0),0)*H$8 -> 0 | I111: =IFERROR(IF(SUM($C111:H111)<$AC111,$AC111*(1/$AD111),0),0)*I$8 -> 0 | J111: =IFERROR(IF(SUM($C111:I111)<$AC111,$AC111*(1/$AD111),0),0)*J$8 -> 0 | K111: =IFERROR(IF(SUM($C111:J111)<$AC111,$AC111*(1/$AD111),0),0)*K$8 -> 0 | L111: =IFERROR(IF(SUM($C111:K111)<$AC111,$AC111*(1/$AD111),0),0)*L$8 -> 0 | AC111: 0 | AD111: =AD110 -> 10
B112: =B111+1 -> 3 | E112: =IFERROR(IF(SUM($C112:D112)<$AC112,$AC112*(1/$AD112),0),0)*E$8 -> 0 | F112: =IFERROR(IF(SUM($C112:E112)<$AC112,$AC112*(1/$AD112),0),0)*F$8 -> 0 | G112: =IFERROR(IF(SUM($C112:F112)<$AC112,$AC112*(1/$AD112),0),0)*G$8 -> 0 | H112: =IFERROR(IF(SUM($C112:G112)<$AC112,$AC112*(1/$AD112),0),0)*H$8 -> 0 | I112: =IFERROR(IF(SUM($C112:H112)<$AC112,$AC112*(1/$AD112),0),0)*I$8 -> 0 | J112: =IFERROR(IF(SUM($C112:I112)<$AC112,$AC112*(1/$AD112),0),0)*J$8 -> 0 | K112: =IFERROR(IF(SUM($C112:J112)<$AC112,$AC112*(1/$AD112),0),0)*K$8 -> 0 | L112: =IFERROR(IF(SUM($C112:K112)<$AC112,$AC112*(1/$AD112),0),0)*L$8 -> 0 | AC112: 0 | AD112: =AD111 -> 10
B113: 4 | F113: =IFERROR(IF(SUM($C113:E113)<$AC113,$AC113*(1/$AD113),0),0)*F$8 -> 0 | G113: =IFERROR(IF(SUM($C113:F113)<$AC113,$AC113*(1/$AD113),0),0)*G$8 -> 0 | H113: =IFERROR(IF(SUM($C113:G113)<$AC113,$AC113*(1/$AD113),0),0)*H$8 -> 0 | I113: =IFERROR(IF(SUM($C113:H113)<$AC113,$AC113*(1/$AD113),0),0)*I$8 -> 0 | J113: =IFERROR(IF(SUM($C113:I113)<$AC113,$AC113*(1/$AD113),0),0)*J$8 -> 0 | K113: =IFERROR(IF(SUM($C113:J113)<$AC113,$AC113*(1/$AD113),0),0)*K$8 -> 0 | L113: =IFERROR(IF(SUM($C113:K113)<$AC113,$AC113*(1/$AD113),0),0)*L$8 -> 0 | AC113: 0 | AD113: 10
B114: 5 | G114: =IFERROR(IF(SUM($C114:F114)<$AC114,$AC114*(1/$AD114),0),0)*G$8 -> 0 | H114: =IFERROR(IF(SUM($C114:G114)<$AC114,$AC114*(1/$AD114),0),0)*H$8 -> 0 | I114: =IFERROR(IF(SUM($C114:H114)<$AC114,$AC114*(1/$AD114),0),0)*I$8 -> 0 | J114: =IFERROR(IF(SUM($C114:I114)<$AC114,$AC114*(1/$AD114),0),0)*J$8 -> 0 | K114: =IFERROR(IF(SUM($C114:J114)<$AC114,$AC114*(1/$AD114),0),0)*K$8 -> 0 | L114: =IFERROR(IF(SUM($C114:K114)<$AC114,$AC114*(1/$AD114),0),0)*L$8 -> 0 | AC114: 0 | AD114: 10
B115: 6 | H115: =IFERROR(IF(SUM($C115:G115)<$AC115,$AC115*(1/$AD115),0),0)*H$8 -> 0 | I115: =IFERROR(IF(SUM($C115:H115)<$AC115,$AC115*(1/$AD115),0),0)*I$8 -> 0 | J115: =IFERROR(IF(SUM($C115:I115)<$AC115,$AC115*(1/$AD115),0),0)*J$8 -> 0 | K115: =IFERROR(IF(SUM($C115:J115)<$AC115,$AC115*(1/$AD115),0),0)*K$8 -> 0 | L115: =IFERROR(IF(SUM($C115:K115)<$AC115,$AC115*(1/$AD115),0),0)*L$8 -> 0 | AC115: 0 | AD115: 10
B116: 7 | I116: =IFERROR(IF(SUM($C116:H116)<$AC116,$AC116*(1/$AD116),0),0)*I$8 -> 0 | J116: =IFERROR(IF(SUM($C116:I116)<$AC116,$AC116*(1/$AD116),0),0)*J$8 -> 0 | K116: =IFERROR(IF(SUM($C116:J116)<$AC116,$AC116*(1/$AD116),0),0)*K$8 -> 0 | L116: =IFERROR(IF(SUM($C116:K116)<$AC116,$AC116*(1/$AD116),0),0)*L$8 -> 0 | AC116: 0 | AD116: 10
B117: 8 | J117: =IFERROR(IF(SUM($C117:I117)<$AC117,$AC117*(1/$AD117),0),0)*J$8 -> 0 | K117: =IFERROR(IF(SUM($C117:J117)<$AC117,$AC117*(1/$AD117),0),0)*K$8 -> 0 | L117: =IFERROR(IF(SUM($C117:K117)<$AC117,$AC117*(1/$AD117),0),0)*L$8 -> 0 | AC117: 0 | AD117: 10
B118: 9 | K118: =IFERROR(IF(SUM($C118:J118)<$AC118,$AC118*(1/$AD118),0),0)*K$8 -> 0 | L118: =IFERROR(IF(SUM($C118:K118)<$AC118,$AC118*(1/$AD118),0),0)*L$8 -> 0 | AC118: 0 | AD118: 10
B119: 10 | L119: =IFERROR(IF(SUM($C119:K119)<$AC119,$AC119*(1/$AD119),0),0)*L$8 -> 0 | AC119: 0 | AD119: 10
B121: Terminais de Integração Eletrônica (TEI) | C121: =SUM(C122:C131) -> 0.2347776 | D121: 0.2347776 | E121: 0.2347776 | F121: 0.2347776 | G121: 0.2347776 | H121: 0.2347776 | I121: 0.2347776 | J121: 0.2347776 | K121: 0.2347776 | L121: 0.2347776 | AC121: =SUM(C121:AA121) -> 2.347776
B122: 1 | C122: =$AC122*(1/$AD122)*C$8 -> 0.2347776 | D122: =IFERROR(IF(SUM($C122:C122)<$AC122,$AC122*(1/$AD122),0),0)*D$8 -> 0.2347776 | E122: =IFERROR(IF(SUM($C122:D122)<$AC122,$AC122*(1/$AD122),0),0)*E$8 -> 0.2347776 | F122: =IFERROR(IF(SUM($C122:E122)<$AC122,$AC122*(1/$AD122),0),0)*F$8 -> 0.2347776 | G122: =IFERROR(IF(SUM($C122:F122)<$AC122,$AC122*(1/$AD122),0),0)*G$8 -> 0.2347776 | H122: =IFERROR(IF(SUM($C122:G122)<$AC122,$AC122*(1/$AD122),0),0)*H$8 -> 0.2347776 | I122: =IFERROR(IF(SUM($C122:H122)<$AC122,$AC122*(1/$AD122),0),0)*I$8 -> 0.2347776 | J122: =IFERROR(IF(SUM($C122:I122)<$AC122,$AC122*(1/$AD122),0),0)*J$8 -> 0.2347776 | K122: =IFERROR(IF(SUM($C122:J122)<$AC122,$AC122*(1/$AD122),0),0)*K$8 -> 0.2347776 | L122: =IFERROR(IF(SUM($C122:K122)<$AC122,$AC122*(1/$AD122),0),0)*L$8 -> 0.2347776 | AC122: =AC36 -> 2.347776 | AD122: 10
B123: =B122+1 -> 2 | D123: =IFERROR(IF(SUM($C123:C123)<$AC123,$AC123*(1/$AD123),0),0)*D$8 -> 0 | E123: =IFERROR(IF(SUM($C123:D123)<$AC123,$AC123*(1/$AD123),0),0)*E$8 -> 0 | F123: =IFERROR(IF(SUM($C123:E123)<$AC123,$AC123*(1/$AD123),0),0)*F$8 -> 0 | G123: =IFERROR(IF(SUM($C123:F123)<$AC123,$AC123*(1/$AD123),0),0)*G$8 -> 0 | H123: =IFERROR(IF(SUM($C123:G123)<$AC123,$AC123*(1/$AD123),0),0)*H$8 -> 0 | I123: =IFERROR(IF(SUM($C123:H123)<$AC123,$AC123*(1/$AD123),0),0)*I$8 -> 0 | J123: =IFERROR(IF(SUM($C123:I123)<$AC123,$AC123*(1/$AD123),0),0)*J$8 -> 0 | K123: =IFERROR(IF(SUM($C123:J123)<$AC123,$AC123*(1/$AD123),0),0)*K$8 -> 0 | L123: =IFERROR(IF(SUM($C123:K123)<$AC123,$AC123*(1/$AD123),0),0)*L$8 -> 0 | AC123: 0 | AD123: =AD122 -> 10
B124: =B123+1 -> 3 | E124: =IFERROR(IF(SUM($C124:D124)<$AC124,$AC124*(1/$AD124),0),0)*E$8 -> 0 | F124: =IFERROR(IF(SUM($C124:E124)<$AC124,$AC124*(1/$AD124),0),0)*F$8 -> 0 | G124: =IFERROR(IF(SUM($C124:F124)<$AC124,$AC124*(1/$AD124),0),0)*G$8 -> 0 | H124: =IFERROR(IF(SUM($C124:G124)<$AC124,$AC124*(1/$AD124),0),0)*H$8 -> 0 | I124: =IFERROR(IF(SUM($C124:H124)<$AC124,$AC124*(1/$AD124),0),0)*I$8 -> 0 | J124: =IFERROR(IF(SUM($C124:I124)<$AC124,$AC124*(1/$AD124),0),0)*J$8 -> 0 | K124: =IFERROR(IF(SUM($C124:J124)<$AC124,$AC124*(1/$AD124),0),0)*K$8 -> 0 | L124: =IFERROR(IF(SUM($C124:K124)<$AC124,$AC124*(1/$AD124),0),0)*L$8 -> 0 | AC124: 0 | AD124: =AD123 -> 10
B125: 4 | F125: =IFERROR(IF(SUM($C125:E125)<$AC125,$AC125*(1/$AD125),0),0)*F$8 -> 0 | G125: =IFERROR(IF(SUM($C125:F125)<$AC125,$AC125*(1/$AD125),0),0)*G$8 -> 0 | H125: =IFERROR(IF(SUM($C125:G125)<$AC125,$AC125*(1/$AD125),0),0)*H$8 -> 0 | I125: =IFERROR(IF(SUM($C125:H125)<$AC125,$AC125*(1/$AD125),0),0)*I$8 -> 0 | J125: =IFERROR(IF(SUM($C125:I125)<$AC125,$AC125*(1/$AD125),0),0)*J$8 -> 0 | K125: =IFERROR(IF(SUM($C125:J125)<$AC125,$AC125*(1/$AD125),0),0)*K$8 -> 0 | L125: =IFERROR(IF(SUM($C125:K125)<$AC125,$AC125*(1/$AD125),0),0)*L$8 -> 0 | AC125: 0 | AD125: 10
B126: 5 | G126: =IFERROR(IF(SUM($C126:F126)<$AC126,$AC126*(1/$AD126),0),0)*G$8 -> 0 | H126: =IFERROR(IF(SUM($C126:G126)<$AC126,$AC126*(1/$AD126),0),0)*H$8 -> 0 | I126: =IFERROR(IF(SUM($C126:H126)<$AC126,$AC126*(1/$AD126),0),0)*I$8 -> 0 | J126: =IFERROR(IF(SUM($C126:I126)<$AC126,$AC126*(1/$AD126),0),0)*J$8 -> 0 | K126: =IFERROR(IF(SUM($C126:J126)<$AC126,$AC126*(1/$AD126),0),0)*K$8 -> 0 | L126: =IFERROR(IF(SUM($C126:K126)<$AC126,$AC126*(1/$AD126),0),0)*L$8 -> 0 | AC126: 0 | AD126: 10
B127: 6 | H127: =IFERROR(IF(SUM($C127:G127)<$AC127,$AC127*(1/$AD127),0),0)*H$8 -> 0 | I127: =IFERROR(IF(SUM($C127:H127)<$AC127,$AC127*(1/$AD127),0),0)*I$8 -> 0 | J127: =IFERROR(IF(SUM($C127:I127)<$AC127,$AC127*(1/$AD127),0),0)*J$8 -> 0 | K127: =IFERROR(IF(SUM($C127:J127)<$AC127,$AC127*(1/$AD127),0),0)*K$8 -> 0 | L127: =IFERROR(IF(SUM($C127:K127)<$AC127,$AC127*(1/$AD127),0),0)*L$8 -> 0 | AC127: 0 | AD127: 10
B128: 7 | I128: =IFERROR(IF(SUM($C128:H128)<$AC128,$AC128*(1/$AD128),0),0)*I$8 -> 0 | J128: =IFERROR(IF(SUM($C128:I128)<$AC128,$AC128*(1/$AD128),0),0)*J$8 -> 0 | K128: =IFERROR(IF(SUM($C128:J128)<$AC128,$AC128*(1/$AD128),0),0)*K$8 -> 0 | L128: =IFERROR(IF(SUM($C128:K128)<$AC128,$AC128*(1/$AD128),0),0)*L$8 -> 0 | AC128: 0 | AD128: 10
B129: 8 | J129: =IFERROR(IF(SUM($C129:I129)<$AC129,$AC129*(1/$AD129),0),0)*J$8 -> 0 | K129: =IFERROR(IF(SUM($C129:J129)<$AC129,$AC129*(1/$AD129),0),0)*K$8 -> 0 | L129: =IFERROR(IF(SUM($C129:K129)<$AC129,$AC129*(1/$AD129),0),0)*L$8 -> 0 | AC129: 0 | AD129: 10
B130: 9 | K130: =IFERROR(IF(SUM($C130:J130)<$AC130,$AC130*(1/$AD130),0),0)*K$8 -> 0 | L130: =IFERROR(IF(SUM($C130:K130)<$AC130,$AC130*(1/$AD130),0),0)*L$8 -> 0 | AC130: 0 | AD130: 10
B131: 10 | L131: =IFERROR(IF(SUM($C131:K131)<$AC131,$AC131*(1/$AD131),0),0)*L$8 -> 0 | AC131: 0 | AD131: 10
B133: Terminal Central - Construção de Áreas Comerciais* | C133: =SUM(C134:C143) -> 0 | D133: 0 | E133: 0 | F133: 0 | G133: 0 | H133: 0 | I133: 0 | J133: 0 | K133: 0 | L133: 0 | AC133: =SUM(C133:AA133) -> 0
B134: 1 | C134: =$AC134*(1/$AD134)*C$8 -> 0 | D134: =IFERROR(IF(SUM($C134:C134)<$AC134,$AC134*(1/$AD134),0),0)*D$8 -> 0 | E134: =IFERROR(IF(SUM($C134:D134)<$AC134,$AC134*(1/$AD134),0),0)*E$8 -> 0 | F134: =IFERROR(IF(SUM($C134:E134)<$AC134,$AC134*(1/$AD134),0),0)*F$8 -> 0 | G134: =IFERROR(IF(SUM($C134:F134)<$AC134,$AC134*(1/$AD134),0),0)*G$8 -> 0 | H134: =IFERROR(IF(SUM($C134:G134)<$AC134,$AC134*(1/$AD134),0),0)*H$8 -> 0 | I134: =IFERROR(IF(SUM($C134:H134)<$AC134,$AC134*(1/$AD134),0),0)*I$8 -> 0 | J134: =IFERROR(IF(SUM($C134:I134)<$AC134,$AC134*(1/$AD134),0),0)*J$8 -> 0 | K134: =IFERROR(IF(SUM($C134:J134)<$AC134,$AC134*(1/$AD134),0),0)*K$8 -> 0 | L134: =IFERROR(IF(SUM($C134:K134)<$AC134,$AC134*(1/$AD134),0),0)*L$8 -> 0 | AC134: =AC48 -> 0 | AD134: 10
B135: =B134+1 -> 2 | D135: =IFERROR(IF(SUM($C135:C135)<$AC135,$AC135*(1/$AD135),0),0)*D$8 -> 0 | E135: =IFERROR(IF(SUM($C135:D135)<$AC135,$AC135*(1/$AD135),0),0)*E$8 -> 0 | F135: =IFERROR(IF(SUM($C135:E135)<$AC135,$AC135*(1/$AD135),0),0)*F$8 -> 0 | G135: =IFERROR(IF(SUM($C135:F135)<$AC135,$AC135*(1/$AD135),0),0)*G$8 -> 0 | H135: =IFERROR(IF(SUM($C135:G135)<$AC135,$AC135*(1/$AD135),0),0)*H$8 -> 0 | I135: =IFERROR(IF(SUM($C135:H135)<$AC135,$AC135*(1/$AD135),0),0)*I$8 -> 0 | J135: =IFERROR(IF(SUM($C135:I135)<$AC135,$AC135*(1/$AD135),0),0)*J$8 -> 0 | K135: =IFERROR(IF(SUM($C135:J135)<$AC135,$AC135*(1/$AD135),0),0)*K$8 -> 0 | L135: =IFERROR(IF(SUM($C135:K135)<$AC135,$AC135*(1/$AD135),0),0)*L$8 -> 0 | AC135: 0 | AD135: =AD134 -> 10
B136: =B135+1 -> 3 | E136: =IFERROR(IF(SUM($C136:D136)<$AC136,$AC136*(1/$AD136),0),0)*E$8 -> 0 | F136: =IFERROR(IF(SUM($C136:E136)<$AC136,$AC136*(1/$AD136),0),0)*F$8 -> 0 | G136: =IFERROR(IF(SUM($C136:F136)<$AC136,$AC136*(1/$AD136),0),0)*G$8 -> 0 | H136: =IFERROR(IF(SUM($C136:G136)<$AC136,$AC136*(1/$AD136),0),0)*H$8 -> 0 | I136: =IFERROR(IF(SUM($C136:H136)<$AC136,$AC136*(1/$AD136),0),0)*I$8 -> 0 | J136: =IFERROR(IF(SUM($C136:I136)<$AC136,$AC136*(1/$AD136),0),0)*J$8 -> 0 | K136: =IFERROR(IF(SUM($C136:J136)<$AC136,$AC136*(1/$AD136),0),0)*K$8 -> 0 | L136: =IFERROR(IF(SUM($C136:K136)<$AC136,$AC136*(1/$AD136),0),0)*L$8 -> 0 | AC136: 0 | AD136: =AD135 -> 10
B137: 4 | F137: =IFERROR(IF(SUM($C137:E137)<$AC137,$AC137*(1/$AD137),0),0)*F$8 -> 0 | G137: =IFERROR(IF(SUM($C137:F137)<$AC137,$AC137*(1/$AD137),0),0)*G$8 -> 0 | H137: =IFERROR(IF(SUM($C137:G137)<$AC137,$AC137*(1/$AD137),0),0)*H$8 -> 0 | I137: =IFERROR(IF(SUM($C137:H137)<$AC137,$AC137*(1/$AD137),0),0)*I$8 -> 0 | J137: =IFERROR(IF(SUM($C137:I137)<$AC137,$AC137*(1/$AD137),0),0)*J$8 -> 0 | K137: =IFERROR(IF(SUM($C137:J137)<$AC137,$AC137*(1/$AD137),0),0)*K$8 -> 0 | L137: =IFERROR(IF(SUM($C137:K137)<$AC137,$AC137*(1/$AD137),0),0)*L$8 -> 0 | AC137: 0 | AD137: 10
B138: 5 | G138: =IFERROR(IF(SUM($C138:F138)<$AC138,$AC138*(1/$AD138),0),0)*G$8 -> 0 | H138: =IFERROR(IF(SUM($C138:G138)<$AC138,$AC138*(1/$AD138),0),0)*H$8 -> 0 | I138: =IFERROR(IF(SUM($C138:H138)<$AC138,$AC138*(1/$AD138),0),0)*I$8 -> 0 | J138: =IFERROR(IF(SUM($C138:I138)<$AC138,$AC138*(1/$AD138),0),0)*J$8 -> 0 | K138: =IFERROR(IF(SUM($C138:J138)<$AC138,$AC138*(1/$AD138),0),0)*K$8 -> 0 | L138: =IFERROR(IF(SUM($C138:K138)<$AC138,$AC138*(1/$AD138),0),0)*L$8 -> 0 | AC138: 0 | AD138: 10
B139: 6 | H139: =IFERROR(IF(SUM($C139:G139)<$AC139,$AC139*(1/$AD139),0),0)*H$8 -> 0 | I139: =IFERROR(IF(SUM($C139:H139)<$AC139,$AC139*(1/$AD139),0),0)*I$8 -> 0 | J139: =IFERROR(IF(SUM($C139:I139)<$AC139,$AC139*(1/$AD139),0),0)*J$8 -> 0 | K139: =IFERROR(IF(SUM($C139:J139)<$AC139,$AC139*(1/$AD139),0),0)*K$8 -> 0 | L139: =IFERROR(IF(SUM($C139:K139)<$AC139,$AC139*(1/$AD139),0),0)*L$8 -> 0 | AC139: 0 | AD139: 10
B140: 7 | I140: =IFERROR(IF(SUM($C140:H140)<$AC140,$AC140*(1/$AD140),0),0)*I$8 -> 0 | J140: =IFERROR(IF(SUM($C140:I140)<$AC140,$AC140*(1/$AD140),0),0)*J$8 -> 0 | K140: =IFERROR(IF(SUM($C140:J140)<$AC140,$AC140*(1/$AD140),0),0)*K$8 -> 0 | L140: =IFERROR(IF(SUM($C140:K140)<$AC140,$AC140*(1/$AD140),0),0)*L$8 -> 0 | AC140: 0 | AD140: 10
B141: 8 | J141: =IFERROR(IF(SUM($C141:I141)<$AC141,$AC141*(1/$AD141),0),0)*J$8 -> 0 | K141: =IFERROR(IF(SUM($C141:J141)<$AC141,$AC141*(1/$AD141),0),0)*K$8 -> 0 | L141: =IFERROR(IF(SUM($C141:K141)<$AC141,$AC141*(1/$AD141),0),0)*L$8 -> 0 | AC141: 0 | AD141: 10
B142: 9 | K142: =IFERROR(IF(SUM($C142:J142)<$AC142,$AC142*(1/$AD142),0),0)*K$8 -> 0 | L142: =IFERROR(IF(SUM($C142:K142)<$AC142,$AC142*(1/$AD142),0),0)*L$8 -> 0 | AC142: 0 | AD142: 10
B143: 10 | L143: =IFERROR(IF(SUM($C143:K143)<$AC143,$AC143*(1/$AD143),0),0)*L$8 -> 0 | AC143: 0 | AD143: 10
B145: Terminal Uvaranas - Construção de Áreas Comerciais | C145: =SUM(C146:C155) -> 0 | D145: 0 | E145: 0 | F145: 0 | G145: 0 | H145: 0 | I145: 0 | J145: 0 | K145: 0 | L145: 0 | AC145: =SUM(C145:AA145) -> 0
B146: 1 | C146: =$AC146*(1/$AD146)*C$8 -> 0 | D146: =IFERROR(IF(SUM($C146:C146)<$AC146,$AC146*(1/$AD146),0),0)*D$8 -> 0 | E146: =IFERROR(IF(SUM($C146:D146)<$AC146,$AC146*(1/$AD146),0),0)*E$8 -> 0 | F146: =IFERROR(IF(SUM($C146:E146)<$AC146,$AC146*(1/$AD146),0),0)*F$8 -> 0 | G146: =IFERROR(IF(SUM($C146:F146)<$AC146,$AC146*(1/$AD146),0),0)*G$8 -> 0 | H146: =IFERROR(IF(SUM($C146:G146)<$AC146,$AC146*(1/$AD146),0),0)*H$8 -> 0 | I146: =IFERROR(IF(SUM($C146:H146)<$AC146,$AC146*(1/$AD146),0),0)*I$8 -> 0 | J146: =IFERROR(IF(SUM($C146:I146)<$AC146,$AC146*(1/$AD146),0),0)*J$8 -> 0 | K146: =IFERROR(IF(SUM($C146:J146)<$AC146,$AC146*(1/$AD146),0),0)*K$8 -> 0 | L146: =IFERROR(IF(SUM($C146:K146)<$AC146,$AC146*(1/$AD146),0),0)*L$8 -> 0 | AC146: =AC60 -> 0 | AD146: 10
B147: =B146+1 -> 2 | D147: =IFERROR(IF(SUM($C147:C147)<$AC147,$AC147*(1/$AD147),0),0)*D$8 -> 0 | E147: =IFERROR(IF(SUM($C147:D147)<$AC147,$AC147*(1/$AD147),0),0)*E$8 -> 0 | F147: =IFERROR(IF(SUM($C147:E147)<$AC147,$AC147*(1/$AD147),0),0)*F$8 -> 0 | G147: =IFERROR(IF(SUM($C147:F147)<$AC147,$AC147*(1/$AD147),0),0)*G$8 -> 0 | H147: =IFERROR(IF(SUM($C147:G147)<$AC147,$AC147*(1/$AD147),0),0)*H$8 -> 0 | I147: =IFERROR(IF(SUM($C147:H147)<$AC147,$AC147*(1/$AD147),0),0)*I$8 -> 0 | J147: =IFERROR(IF(SUM($C147:I147)<$AC147,$AC147*(1/$AD147),0),0)*J$8 -> 0 | K147: =IFERROR(IF(SUM($C147:J147)<$AC147,$AC147*(1/$AD147),0),0)*K$8 -> 0 | L147: =IFERROR(IF(SUM($C147:K147)<$AC147,$AC147*(1/$AD147),0),0)*L$8 -> 0 | AC147: 0 | AD147: =AD146 -> 10
B148: =B147+1 -> 3 | E148: =IFERROR(IF(SUM($C148:D148)<$AC148,$AC148*(1/$AD148),0),0)*E$8 -> 0 | F148: =IFERROR(IF(SUM($C148:E148)<$AC148,$AC148*(1/$AD148),0),0)*F$8 -> 0 | G148: =IFERROR(IF(SUM($C148:F148)<$AC148,$AC148*(1/$AD148),0),0)*G$8 -> 0 | H148: =IFERROR(IF(SUM($C148:G148)<$AC148,$AC148*(1/$AD148),0),0)*H$8 -> 0 | I148: =IFERROR(IF(SUM($C148:H148)<$AC148,$AC148*(1/$AD148),0),0)*I$8 -> 0 | J148: =IFERROR(IF(SUM($C148:I148)<$AC148,$AC148*(1/$AD148),0),0)*J$8 -> 0 | K148: =IFERROR(IF(SUM($C148:J148)<$AC148,$AC148*(1/$AD148),0),0)*K$8 -> 0 | L148: =IFERROR(IF(SUM($C148:K148)<$AC148,$AC148*(1/$AD148),0),0)*L$8 -> 0 | AC148: 0 | AD148: =AD147 -> 10
B149: 4 | F149: =IFERROR(IF(SUM($C149:E149)<$AC149,$AC149*(1/$AD149),0),0)*F$8 -> 0 | G149: =IFERROR(IF(SUM($C149:F149)<$AC149,$AC149*(1/$AD149),0),0)*G$8 -> 0 | H149: =IFERROR(IF(SUM($C149:G149)<$AC149,$AC149*(1/$AD149),0),0)*H$8 -> 0 | I149: =IFERROR(IF(SUM($C149:H149)<$AC149,$AC149*(1/$AD149),0),0)*I$8 -> 0 | J149: =IFERROR(IF(SUM($C149:I149)<$AC149,$AC149*(1/$AD149),0),0)*J$8 -> 0 | K149: =IFERROR(IF(SUM($C149:J149)<$AC149,$AC149*(1/$AD149),0),0)*K$8 -> 0 | L149: =IFERROR(IF(SUM($C149:K149)<$AC149,$AC149*(1/$AD149),0),0)*L$8 -> 0 | AC149: 0 | AD149: 10
B150: 5 | G150: =IFERROR(IF(SUM($C150:F150)<$AC150,$AC150*(1/$AD150),0),0)*G$8 -> 0 | H150: =IFERROR(IF(SUM($C150:G150)<$AC150,$AC150*(1/$AD150),0),0)*H$8 -> 0 | I150: =IFERROR(IF(SUM($C150:H150)<$AC150,$AC150*(1/$AD150),0),0)*I$8 -> 0 | J150: =IFERROR(IF(SUM($C150:I150)<$AC150,$AC150*(1/$AD150),0),0)*J$8 -> 0 | K150: =IFERROR(IF(SUM($C150:J150)<$AC150,$AC150*(1/$AD150),0),0)*K$8 -> 0 | L150: =IFERROR(IF(SUM($C150:K150)<$AC150,$AC150*(1/$AD150),0),0)*L$8 -> 0 | AC150: 0 | AD150: 10
B151: 6 | H151: =IFERROR(IF(SUM($C151:G151)<$AC151,$AC151*(1/$AD151),0),0)*H$8 -> 0 | I151: =IFERROR(IF(SUM($C151:H151)<$AC151,$AC151*(1/$AD151),0),0)*I$8 -> 0 | J151: =IFERROR(IF(SUM($C151:I151)<$AC151,$AC151*(1/$AD151),0),0)*J$8 -> 0 | K151: =IFERROR(IF(SUM($C151:J151)<$AC151,$AC151*(1/$AD151),0),0)*K$8 -> 0 | L151: =IFERROR(IF(SUM($C151:K151)<$AC151,$AC151*(1/$AD151),0),0)*L$8 -> 0 | AC151: 0 | AD151: 10
B152: 7 | I152: =IFERROR(IF(SUM($C152:H152)<$AC152,$AC152*(1/$AD152),0),0)*I$8 -> 0 | J152: =IFERROR(IF(SUM($C152:I152)<$AC152,$AC152*(1/$AD152),0),0)*J$8 -> 0 | K152: =IFERROR(IF(SUM($C152:J152)<$AC152,$AC152*(1/$AD152),0),0)*K$8 -> 0 | L152: =IFERROR(IF(SUM($C152:K152)<$AC152,$AC152*(1/$AD152),0),0)*L$8 -> 0 | AC152: 0 | AD152: 10
B153: 8 | J153: =IFERROR(IF(SUM($C153:I153)<$AC153,$AC153*(1/$AD153),0),0)*J$8 -> 0 | K153: =IFERROR(IF(SUM($C153:J153)<$AC153,$AC153*(1/$AD153),0),0)*K$8 -> 0 | L153: =IFERROR(IF(SUM($C153:K153)<$AC153,$AC153*(1/$AD153),0),0)*L$8 -> 0 | AC153: 0 | AD153: 10
B154: 9 | K154: =IFERROR(IF(SUM($C154:J154)<$AC154,$AC154*(1/$AD154),0),0)*K$8 -> 0 | L154: =IFERROR(IF(SUM($C154:K154)<$AC154,$AC154*(1/$AD154),0),0)*L$8 -> 0 | AC154: 0 | AD154: 10
B155: 10 | L155: =IFERROR(IF(SUM($C155:K155)<$AC155,$AC155*(1/$AD155),0),0)*L$8 -> 0 | AC155: 0 | AD155: 10
B157: Terminal Oficinas - Construção de Áreas Comerciais | C157: =SUM(C158:C167) -> 0 | D157: 0 | E157: 0 | F157: 0 | G157: 0 | H157: 0 | I157: 0 | J157: 0 | K157: 0 | L157: 0 | AC157: =SUM(C157:AA157) -> 0
B158: 1 | C158: =$AC158*(1/$AD158)*C$8 -> 0 | D158: =IFERROR(IF(SUM($C158:C158)<$AC158,$AC158*(1/$AD158),0),0)*D$8 -> 0 | E158: =IFERROR(IF(SUM($C158:D158)<$AC158,$AC158*(1/$AD158),0),0)*E$8 -> 0 | F158: =IFERROR(IF(SUM($C158:E158)<$AC158,$AC158*(1/$AD158),0),0)*F$8 -> 0 | G158: =IFERROR(IF(SUM($C158:F158)<$AC158,$AC158*(1/$AD158),0),0)*G$8 -> 0 | H158: =IFERROR(IF(SUM($C158:G158)<$AC158,$AC158*(1/$AD158),0),0)*H$8 -> 0 | I158: =IFERROR(IF(SUM($C158:H158)<$AC158,$AC158*(1/$AD158),0),0)*I$8 -> 0 | J158: =IFERROR(IF(SUM($C158:I158)<$AC158,$AC158*(1/$AD158),0),0)*J$8 -> 0 | K158: =IFERROR(IF(SUM($C158:J158)<$AC158,$AC158*(1/$AD158),0),0)*K$8 -> 0 | L158: =IFERROR(IF(SUM($C158:K158)<$AC158,$AC158*(1/$AD158),0),0)*L$8 -> 0 | AC158: =AC72 -> 0 | AD158: 10
B159: =B158+1 -> 2 | D159: =IFERROR(IF(SUM($C159:C159)<$AC159,$AC159*(1/$AD159),0),0)*D$8 -> 0 | E159: =IFERROR(IF(SUM($C159:D159)<$AC159,$AC159*(1/$AD159),0),0)*E$8 -> 0 | F159: =IFERROR(IF(SUM($C159:E159)<$AC159,$AC159*(1/$AD159),0),0)*F$8 -> 0 | G159: =IFERROR(IF(SUM($C159:F159)<$AC159,$AC159*(1/$AD159),0),0)*G$8 -> 0 | H159: =IFERROR(IF(SUM($C159:G159)<$AC159,$AC159*(1/$AD159),0),0)*H$8 -> 0 | I159: =IFERROR(IF(SUM($C159:H159)<$AC159,$AC159*(1/$AD159),0),0)*I$8 -> 0 | J159: =IFERROR(IF(SUM($C159:I159)<$AC159,$AC159*(1/$AD159),0),0)*J$8 -> 0 | K159: =IFERROR(IF(SUM($C159:J159)<$AC159,$AC159*(1/$AD159),0),0)*K$8 -> 0 | L159: =IFERROR(IF(SUM($C159:K159)<$AC159,$AC159*(1/$AD159),0),0)*L$8 -> 0 | AC159: 0 | AD159: =AD158 -> 10
B160: =B159+1 -> 3 | E160: =IFERROR(IF(SUM($C160:D160)<$AC160,$AC160*(1/$AD160),0),0)*E$8 -> 0 | F160: =IFERROR(IF(SUM($C160:E160)<$AC160,$AC160*(1/$AD160),0),0)*F$8 -> 0 | G160: =IFERROR(IF(SUM($C160:F160)<$AC160,$AC160*(1/$AD160),0),0)*G$8 -> 0 | H160: =IFERROR(IF(SUM($C160:G160)<$AC160,$AC160*(1/$AD160),0),0)*H$8 -> 0 | I160: =IFERROR(IF(SUM($C160:H160)<$AC160,$AC160*(1/$AD160),0),0)*I$8 -> 0 | J160: =IFERROR(IF(SUM($C160:I160)<$AC160,$AC160*(1/$AD160),0),0)*J$8 -> 0 | K160: =IFERROR(IF(SUM($C160:J160)<$AC160,$AC160*(1/$AD160),0),0)*K$8 -> 0 | L160: =IFERROR(IF(SUM($C160:K160)<$AC160,$AC160*(1/$AD160),0),0)*L$8 -> 0 | AC160: 0 | AD160: =AD159 -> 10
B161: 4 | F161: =IFERROR(IF(SUM($C161:E161)<$AC161,$AC161*(1/$AD161),0),0)*F$8 -> 0 | G161: =IFERROR(IF(SUM($C161:F161)<$AC161,$AC161*(1/$AD161),0),0)*G$8 -> 0 | H161: =IFERROR(IF(SUM($C161:G161)<$AC161,$AC161*(1/$AD161),0),0)*H$8 -> 0 | I161: =IFERROR(IF(SUM($C161:H161)<$AC161,$AC161*(1/$AD161),0),0)*I$8 -> 0 | J161: =IFERROR(IF(SUM($C161:I161)<$AC161,$AC161*(1/$AD161),0),0)*J$8 -> 0 | K161: =IFERROR(IF(SUM($C161:J161)<$AC161,$AC161*(1/$AD161),0),0)*K$8 -> 0 | L161: =IFERROR(IF(SUM($C161:K161)<$AC161,$AC161*(1/$AD161),0),0)*L$8 -> 0 | AC161: 0 | AD161: 10
B162: 5 | G162: =IFERROR(IF(SUM($C162:F162)<$AC162,$AC162*(1/$AD162),0),0)*G$8 -> 0 | H162: =IFERROR(IF(SUM($C162:G162)<$AC162,$AC162*(1/$AD162),0),0)*H$8 -> 0 | I162: =IFERROR(IF(SUM($C162:H162)<$AC162,$AC162*(1/$AD162),0),0)*I$8 -> 0 | J162: =IFERROR(IF(SUM($C162:I162)<$AC162,$AC162*(1/$AD162),0),0)*J$8 -> 0 | K162: =IFERROR(IF(SUM($C162:J162)<$AC162,$AC162*(1/$AD162),0),0)*K$8 -> 0 | L162: =IFERROR(IF(SUM($C162:K162)<$AC162,$AC162*(1/$AD162),0),0)*L$8 -> 0 | AC162: 0 | AD162: 10
B163: 6 | H163: =IFERROR(IF(SUM($C163:G163)<$AC163,$AC163*(1/$AD163),0),0)*H$8 -> 0 | I163: =IFERROR(IF(SUM($C163:H163)<$AC163,$AC163*(1/$AD163),0),0)*I$8 -> 0 | J163: =IFERROR(IF(SUM($C163:I163)<$AC163,$AC163*(1/$AD163),0),0)*J$8 -> 0 | K163: =IFERROR(IF(SUM($C163:J163)<$AC163,$AC163*(1/$AD163),0),0)*K$8 -> 0 | L163: =IFERROR(IF(SUM($C163:K163)<$AC163,$AC163*(1/$AD163),0),0)*L$8 -> 0 | AC163: 0 | AD163: 10
B164: 7 | I164: =IFERROR(IF(SUM($C164:H164)<$AC164,$AC164*(1/$AD164),0),0)*I$8 -> 0 | J164: =IFERROR(IF(SUM($C164:I164)<$AC164,$AC164*(1/$AD164),0),0)*J$8 -> 0 | K164: =IFERROR(IF(SUM($C164:J164)<$AC164,$AC164*(1/$AD164),0),0)*K$8 -> 0 | L164: =IFERROR(IF(SUM($C164:K164)<$AC164,$AC164*(1/$AD164),0),0)*L$8 -> 0 | AC164: 0 | AD164: 10
B165: 8 | J165: =IFERROR(IF(SUM($C165:I165)<$AC165,$AC165*(1/$AD165),0),0)*J$8 -> 0 | K165: =IFERROR(IF(SUM($C165:J165)<$AC165,$AC165*(1/$AD165),0),0)*K$8 -> 0 | L165: =IFERROR(IF(SUM($C165:K165)<$AC165,$AC165*(1/$AD165),0),0)*L$8 -> 0 | AC165: 0 | AD165: 10
B166: 9 | K166: =IFERROR(IF(SUM($C166:J166)<$AC166,$AC166*(1/$AD166),0),0)*K$8 -> 0 | L166: =IFERROR(IF(SUM($C166:K166)<$AC166,$AC166*(1/$AD166),0),0)*L$8 -> 0 | AC166: 0 | AD166: 10
B167: 10 | L167: =IFERROR(IF(SUM($C167:K167)<$AC167,$AC167*(1/$AD167),0),0)*L$8 -> 0 | AC167: 0 | AD167: 10
B169: Terminal Nova Rússia - Construção de Áreas Comerciais* | C169: =SUM(C170:C179) -> 0 | D169: 0 | E169: 0 | F169: 0 | G169: 0 | H169: 0 | I169: 0 | J169: 0 | K169: 0 | L169: 0 | AC169: =SUM(C169:AA169) -> 0
B170: 1 | C170: =$AC170*(1/$AD170)*C$8 -> 0 | D170: =IFERROR(IF(SUM($C170:C170)<$AC170,$AC170*(1/$AD170),0),0)*D$8 -> 0 | E170: =IFERROR(IF(SUM($C170:D170)<$AC170,$AC170*(1/$AD170),0),0)*E$8 -> 0 | F170: =IFERROR(IF(SUM($C170:E170)<$AC170,$AC170*(1/$AD170),0),0)*F$8 -> 0 | G170: =IFERROR(IF(SUM($C170:F170)<$AC170,$AC170*(1/$AD170),0),0)*G$8 -> 0 | H170: =IFERROR(IF(SUM($C170:G170)<$AC170,$AC170*(1/$AD170),0),0)*H$8 -> 0 | I170: =IFERROR(IF(SUM($C170:H170)<$AC170,$AC170*(1/$AD170),0),0)*I$8 -> 0 | J170: =IFERROR(IF(SUM($C170:I170)<$AC170,$AC170*(1/$AD170),0),0)*J$8 -> 0 | K170: =IFERROR(IF(SUM($C170:J170)<$AC170,$AC170*(1/$AD170),0),0)*K$8 -> 0 | L170: =IFERROR(IF(SUM($C170:K170)<$AC170,$AC170*(1/$AD170),0),0)*L$8 -> 0 | AC170: =AC84 -> 0 | AD170: 10
B171: =B170+1 -> 2 | D171: =IFERROR(IF(SUM($C171:C171)<$AC171,$AC171*(1/$AD171),0),0)*D$8 -> 0 | E171: =IFERROR(IF(SUM($C171:D171)<$AC171,$AC171*(1/$AD171),0),0)*E$8 -> 0 | F171: =IFERROR(IF(SUM($C171:E171)<$AC171,$AC171*(1/$AD171),0),0)*F$8 -> 0 | G171: =IFERROR(IF(SUM($C171:F171)<$AC171,$AC171*(1/$AD171),0),0)*G$8 -> 0 | H171: =IFERROR(IF(SUM($C171:G171)<$AC171,$AC171*(1/$AD171),0),0)*H$8 -> 0 | I171: =IFERROR(IF(SUM($C171:H171)<$AC171,$AC171*(1/$AD171),0),0)*I$8 -> 0 | J171: =IFERROR(IF(SUM($C171:I171)<$AC171,$AC171*(1/$AD171),0),0)*J$8 -> 0 | K171: =IFERROR(IF(SUM($C171:J171)<$AC171,$AC171*(1/$AD171),0),0)*K$8 -> 0 | L171: =IFERROR(IF(SUM($C171:K171)<$AC171,$AC171*(1/$AD171),0),0)*L$8 -> 0 | AC171: 0 | AD171: =AD170 -> 10
B172: =B171+1 -> 3 | E172: =IFERROR(IF(SUM($C172:D172)<$AC172,$AC172*(1/$AD172),0),0)*E$8 -> 0 | F172: =IFERROR(IF(SUM($C172:E172)<$AC172,$AC172*(1/$AD172),0),0)*F$8 -> 0 | G172: =IFERROR(IF(SUM($C172:F172)<$AC172,$AC172*(1/$AD172),0),0)*G$8 -> 0 | H172: =IFERROR(IF(SUM($C172:G172)<$AC172,$AC172*(1/$AD172),0),0)*H$8 -> 0 | I172: =IFERROR(IF(SUM($C172:H172)<$AC172,$AC172*(1/$AD172),0),0)*I$8 -> 0 | J172: =IFERROR(IF(SUM($C172:I172)<$AC172,$AC172*(1/$AD172),0),0)*J$8 -> 0 | K172: =IFERROR(IF(SUM($C172:J172)<$AC172,$AC172*(1/$AD172),0),0)*K$8 -> 0 | L172: =IFERROR(IF(SUM($C172:K172)<$AC172,$AC172*(1/$AD172),0),0)*L$8 -> 0 | AC172: 0 | AD172: =AD171 -> 10
B173: 4 | F173: =IFERROR(IF(SUM($C173:E173)<$AC173,$AC173*(1/$AD173),0),0)*F$8 -> 0 | G173: =IFERROR(IF(SUM($C173:F173)<$AC173,$AC173*(1/$AD173),0),0)*G$8 -> 0 | H173: =IFERROR(IF(SUM($C173:G173)<$AC173,$AC173*(1/$AD173),0),0)*H$8 -> 0 | I173: =IFERROR(IF(SUM($C173:H173)<$AC173,$AC173*(1/$AD173),0),0)*I$8 -> 0 | J173: =IFERROR(IF(SUM($C173:I173)<$AC173,$AC173*(1/$AD173),0),0)*J$8 -> 0 | K173: =IFERROR(IF(SUM($C173:J173)<$AC173,$AC173*(1/$AD173),0),0)*K$8 -> 0 | L173: =IFERROR(IF(SUM($C173:K173)<$AC173,$AC173*(1/$AD173),0),0)*L$8 -> 0 | AC173: 0 | AD173: 10
B174: 5 | G174: =IFERROR(IF(SUM($C174:F174)<$AC174,$AC174*(1/$AD174),0),0)*G$8 -> 0 | H174: =IFERROR(IF(SUM($C174:G174)<$AC174,$AC174*(1/$AD174),0),0)*H$8 -> 0 | I174: =IFERROR(IF(SUM($C174:H174)<$AC174,$AC174*(1/$AD174),0),0)*I$8 -> 0 | J174: =IFERROR(IF(SUM($C174:I174)<$AC174,$AC174*(1/$AD174),0),0)*J$8 -> 0 | K174: =IFERROR(IF(SUM($C174:J174)<$AC174,$AC174*(1/$AD174),0),0)*K$8 -> 0 | L174: =IFERROR(IF(SUM($C174:K174)<$AC174,$AC174*(1/$AD174),0),0)*L$8 -> 0 | AC174: 0 | AD174: 10
B175: 6 | H175: =IFERROR(IF(SUM($C175:G175)<$AC175,$AC175*(1/$AD175),0),0)*H$8 -> 0 | I175: =IFERROR(IF(SUM($C175:H175)<$AC175,$AC175*(1/$AD175),0),0)*I$8 -> 0 | J175: =IFERROR(IF(SUM($C175:I175)<$AC175,$AC175*(1/$AD175),0),0)*J$8 -> 0 | K175: =IFERROR(IF(SUM($C175:J175)<$AC175,$AC175*(1/$AD175),0),0)*K$8 -> 0 | L175: =IFERROR(IF(SUM($C175:K175)<$AC175,$AC175*(1/$AD175),0),0)*L$8 -> 0 | AC175: 0 | AD175: 10
B176: 7 | I176: =IFERROR(IF(SUM($C176:H176)<$AC176,$AC176*(1/$AD176),0),0)*I$8 -> 0 | J176: =IFERROR(IF(SUM($C176:I176)<$AC176,$AC176*(1/$AD176),0),0)*J$8 -> 0 | K176: =IFERROR(IF(SUM($C176:J176)<$AC176,$AC176*(1/$AD176),0),0)*K$8 -> 0 | L176: =IFERROR(IF(SUM($C176:K176)<$AC176,$AC176*(1/$AD176),0),0)*L$8 -> 0 | AC176: 0 | AD176: 10
B177: 8 | J177: =IFERROR(IF(SUM($C177:I177)<$AC177,$AC177*(1/$AD177),0),0)*J$8 -> 0 | K177: =IFERROR(IF(SUM($C177:J177)<$AC177,$AC177*(1/$AD177),0),0)*K$8 -> 0 | L177: =IFERROR(IF(SUM($C177:K177)<$AC177,$AC177*(1/$AD177),0),0)*L$8 -> 0 | AC177: 0 | AD177: 10
B178: 9 | K178: =IFERROR(IF(SUM($C178:J178)<$AC178,$AC178*(1/$AD178),0),0)*K$8 -> 0 | L178: =IFERROR(IF(SUM($C178:K178)<$AC178,$AC178*(1/$AD178),0),0)*L$8 -> 0 | AC178: 0 | AD178: 10
B179: 10 | L179: =IFERROR(IF(SUM($C179:K179)<$AC179,$AC179*(1/$AD179),0),0)*L$8 -> 0 | AC179: 0 | AD179: 10
B181: Terminal Santa Paula - Construção de Áreas Comerciais | C181: =SUM(C182:C191) -> 0 | D181: 0 | E181: 0 | F181: 0 | G181: 0 | H181: 0 | I181: 0 | J181: 0 | K181: 0 | L181: 0 | AC181: =SUM(C181:AA181) -> 0
B182: 1 | C182: =$AC182*(1/$AD182)*C$8 -> 0 | D182: =IFERROR(IF(SUM($C182:C182)<$AC182,$AC182*(1/$AD182),0),0)*D$8 -> 0 | E182: =IFERROR(IF(SUM($C182:D182)<$AC182,$AC182*(1/$AD182),0),0)*E$8 -> 0 | F182: =IFERROR(IF(SUM($C182:E182)<$AC182,$AC182*(1/$AD182),0),0)*F$8 -> 0 | G182: =IFERROR(IF(SUM($C182:F182)<$AC182,$AC182*(1/$AD182),0),0)*G$8 -> 0 | H182: =IFERROR(IF(SUM($C182:G182)<$AC182,$AC182*(1/$AD182),0),0)*H$8 -> 0 | I182: =IFERROR(IF(SUM($C182:H182)<$AC182,$AC182*(1/$AD182),0),0)*I$8 -> 0 | J182: =IFERROR(IF(SUM($C182:I182)<$AC182,$AC182*(1/$AD182),0),0)*J$8 -> 0 | K182: =IFERROR(IF(SUM($C182:J182)<$AC182,$AC182*(1/$AD182),0),0)*K$8 -> 0 | L182: =IFERROR(IF(SUM($C182:K182)<$AC182,$AC182*(1/$AD182),0),0)*L$8 -> 0 | AC182: =AC96 -> 0 | AD182: 10
B183: =B182+1 -> 2 | D183: =IFERROR(IF(SUM($C183:C183)<$AC183,$AC183*(1/$AD183),0),0)*D$8 -> 0 | E183: =IFERROR(IF(SUM($C183:D183)<$AC183,$AC183*(1/$AD183),0),0)*E$8 -> 0 | F183: =IFERROR(IF(SUM($C183:E183)<$AC183,$AC183*(1/$AD183),0),0)*F$8 -> 0 | G183: =IFERROR(IF(SUM($C183:F183)<$AC183,$AC183*(1/$AD183),0),0)*G$8 -> 0 | H183: =IFERROR(IF(SUM($C183:G183)<$AC183,$AC183*(1/$AD183),0),0)*H$8 -> 0 | I183: =IFERROR(IF(SUM($C183:H183)<$AC183,$AC183*(1/$AD183),0),0)*I$8 -> 0 | J183: =IFERROR(IF(SUM($C183:I183)<$AC183,$AC183*(1/$AD183),0),0)*J$8 -> 0 | K183: =IFERROR(IF(SUM($C183:J183)<$AC183,$AC183*(1/$AD183),0),0)*K$8 -> 0 | L183: =IFERROR(IF(SUM($C183:K183)<$AC183,$AC183*(1/$AD183),0),0)*L$8 -> 0 | AC183: 0 | AD183: =AD182 -> 10
B184: =B183+1 -> 3 | E184: =IFERROR(IF(SUM($C184:D184)<$AC184,$AC184*(1/$AD184),0),0)*E$8 -> 0 | F184: =IFERROR(IF(SUM($C184:E184)<$AC184,$AC184*(1/$AD184),0),0)*F$8 -> 0 | G184: =IFERROR(IF(SUM($C184:F184)<$AC184,$AC184*(1/$AD184),0),0)*G$8 -> 0 | H184: =IFERROR(IF(SUM($C184:G184)<$AC184,$AC184*(1/$AD184),0),0)*H$8 -> 0 | I184: =IFERROR(IF(SUM($C184:H184)<$AC184,$AC184*(1/$AD184),0),0)*I$8 -> 0 | J184: =IFERROR(IF(SUM($C184:I184)<$AC184,$AC184*(1/$AD184),0),0)*J$8 -> 0 | K184: =IFERROR(IF(SUM($C184:J184)<$AC184,$AC184*(1/$AD184),0),0)*K$8 -> 0 | L184: =IFERROR(IF(SUM($C184:K184)<$AC184,$AC184*(1/$AD184),0),0)*L$8 -> 0 | AC184: 0 | AD184: =AD183 -> 10
B185: 4 | F185: =IFERROR(IF(SUM($C185:E185)<$AC185,$AC185*(1/$AD185),0),0)*F$8 -> 0 | G185: =IFERROR(IF(SUM($C185:F185)<$AC185,$AC185*(1/$AD185),0),0)*G$8 -> 0 | H185: =IFERROR(IF(SUM($C185:G185)<$AC185,$AC185*(1/$AD185),0),0)*H$8 -> 0 | I185: =IFERROR(IF(SUM($C185:H185)<$AC185,$AC185*(1/$AD185),0),0)*I$8 -> 0 | J185: =IFERROR(IF(SUM($C185:I185)<$AC185,$AC185*(1/$AD185),0),0)*J$8 -> 0 | K185: =IFERROR(IF(SUM($C185:J185)<$AC185,$AC185*(1/$AD185),0),0)*K$8 -> 0 | L185: =IFERROR(IF(SUM($C185:K185)<$AC185,$AC185*(1/$AD185),0),0)*L$8 -> 0 | AC185: 0 | AD185: 10
B186: 5 | G186: =IFERROR(IF(SUM($C186:F186)<$AC186,$AC186*(1/$AD186),0),0)*G$8 -> 0 | H186: =IFERROR(IF(SUM($C186:G186)<$AC186,$AC186*(1/$AD186),0),0)*H$8 -> 0 | I186: =IFERROR(IF(SUM($C186:H186)<$AC186,$AC186*(1/$AD186),0),0)*I$8 -> 0 | J186: =IFERROR(IF(SUM($C186:I186)<$AC186,$AC186*(1/$AD186),0),0)*J$8 -> 0 | K186: =IFERROR(IF(SUM($C186:J186)<$AC186,$AC186*(1/$AD186),0),0)*K$8 -> 0 | L186: =IFERROR(IF(SUM($C186:K186)<$AC186,$AC186*(1/$AD186),0),0)*L$8 -> 0 | AC186: 0 | AD186: 10
B187: 6 | H187: =IFERROR(IF(SUM($C187:G187)<$AC187,$AC187*(1/$AD187),0),0)*H$8 -> 0 | I187: =IFERROR(IF(SUM($C187:H187)<$AC187,$AC187*(1/$AD187),0),0)*I$8 -> 0 | J187: =IFERROR(IF(SUM($C187:I187)<$AC187,$AC187*(1/$AD187),0),0)*J$8 -> 0 | K187: =IFERROR(IF(SUM($C187:J187)<$AC187,$AC187*(1/$AD187),0),0)*K$8 -> 0 | L187: =IFERROR(IF(SUM($C187:K187)<$AC187,$AC187*(1/$AD187),0),0)*L$8 -> 0 | AC187: 0 | AD187: 10
B188: 7 | I188: =IFERROR(IF(SUM($C188:H188)<$AC188,$AC188*(1/$AD188),0),0)*I$8 -> 0 | J188: =IFERROR(IF(SUM($C188:I188)<$AC188,$AC188*(1/$AD188),0),0)*J$8 -> 0 | K188: =IFERROR(IF(SUM($C188:J188)<$AC188,$AC188*(1/$AD188),0),0)*K$8 -> 0 | L188: =IFERROR(IF(SUM($C188:K188)<$AC188,$AC188*(1/$AD188),0),0)*L$8 -> 0 | AC188: 0 | AD188: 10
B189: 8 | J189: =IFERROR(IF(SUM($C189:I189)<$AC189,$AC189*(1/$AD189),0),0)*J$8 -> 0 | K189: =IFERROR(IF(SUM($C189:J189)<$AC189,$AC189*(1/$AD189),0),0)*K$8 -> 0 | L189: =IFERROR(IF(SUM($C189:K189)<$AC189,$AC189*(1/$AD189),0),0)*L$8 -> 0 | AC189: 0 | AD189: 10
B190: 9 | K190: =IFERROR(IF(SUM($C190:J190)<$AC190,$AC190*(1/$AD190),0),0)*K$8 -> 0 | L190: =IFERROR(IF(SUM($C190:K190)<$AC190,$AC190*(1/$AD190),0),0)*L$8 -> 0 | AC190: 0 | AD190: 10
B191: 10 | L191: =IFERROR(IF(SUM($C191:K191)<$AC191,$AC191*(1/$AD191),0),0)*L$8 -> 0 | AC191: 0 | AD191: 10
B193: Dep. com perdas reais | C193: =SUM(C195:C204) -> 3.686951338 | D193: 3.57089718 | E193: 3.466890466 | F193: 3.365913073 | G193: 3.26787677 | H193: 3.172695894 | I193: 3.080287275 | J193: 2.99057017 | K193: 2.903466185 | L193: 2.818899208 | AC193: =SUM(C193:AA193) -> 32.32444756
B195: 1 | C195: =(C110+C122+C134+C146+C158+C170+C182)/C218 -> 3.686951338 | D195: =(D110+D122+D134+D146+D158+D170+D182)/D218 -> 3.57089718 | E195: 3.466890466 | F195: 3.365913073 | G195: 3.26787677 | H195: 3.172695894 | I195: 3.080287275 | J195: 2.99057017 | K195: 2.903466185 | L195: 2.818899208 | AC195: =SUM(C195:AA195) -> 32.32444756
B196: =B195+1 -> 2 | D196: =(D111+D123+D135+D147+D159+D171+D183)/D219 -> 0 | E196: 0 | F196: 0 | G196: 0 | H196: 0 | I196: 0 | J196: 0 | K196: 0 | L196: 0 | AC196: =SUM(C196:AA196) -> 0
B197: =B196+1 -> 3 | E197: =(E112+E124+E136+E148+E160+E172+E184)/E220 -> 0 | F197: 0 | G197: 0 | H197: 0 | I197: 0 | J197: 0 | K197: 0 | L197: 0 | AC197: 0
B198: 4 | F198: =(F113+F125+F137+F149+F161+F173+F185)/F221 -> 0 | G198: 0 | H198: 0 | I198: 0 | J198: 0 | K198: 0 | L198: 0 | AC198: 0
B199: 5 | G199: =(G114+G126+G138+G150+G162+G174+G186)/G222 -> 0 | H199: 0 | I199: 0 | J199: 0 | K199: 0 | L199: 0 | AC199: 0
B200: 6 | H200: =(H115+H127+H139+H151+H163+H175+H187)/H223 -> 0 | I200: 0 | J200: 0 | K200: 0 | L200: 0 | AC200: 0
B201: 7 | I201: =(I116+I128+I140+I152+I164+I176+I188)/I224 -> 0 | J201: 0 | K201: 0 | L201: 0 | AC201: 0
B202: 8 | J202: =(J117+J129+J141+J153+J165+J177+J189)/J225 -> 0 | K202: 0 | L202: 0 | AC202: 0
B203: 9 | K203: =(K118+K130+K142+K154+K166+K178+K190)/K226 -> 0 | L203: 0 | AC203: 0
B204: 10 | L204: =(L119+L131+L143+L155+L167+L179+L191)/L227 -> 0 | AC204: 0
B205: Inflação | C205: ='01. PC'!C45 -> 0.0501 | D205: ='01. PC'!D45 -> 0.0325 | E205: ='01. PC'!E45 -> 0.03 | F205: ='01. PC'!F45 -> 0.03 | G205: ='01. PC'!G45 -> 0.03 | H205: ='01. PC'!H45 -> 0.03 | I205: ='01. PC'!I45 -> 0.03 | J205: ='01. PC'!J45 -> 0.03 | K205: ='01. PC'!K45 -> 0.03 | L205: ='01. PC'!L45 -> 0.03
B206: 1 | C206: =C205 -> 0.0501 | D206: =D205 -> 0.0325 | E206: =E205 -> 0.03 | F206: =F205 -> 0.03 | G206: 0.03 | H206: 0.03 | I206: 0.03 | J206: 0.03 | K206: 0.03 | L206: 0.03
B207: =B206+1 -> 2 | D207: =D206 -> 0.0325 | E207: 0.03 | F207: 0.03 | G207: 0.03 | H207: 0.03 | I207: 0.03 | J207: 0.03 | K207: 0.03 | L207: 0.03
B208: =B207+1 -> 3 | E208: 0.03 | F208: 0.03 | G208: 0.03 | H208: 0.03 | I208: 0.03 | J208: 0.03 | K208: 0.03 | L208: 0.03
B209: 4 | F209: 0.03 | G209: 0.03 | H209: 0.03 | I209: 0.03 | J209: 0.03 | K209: 0.03 | L209: 0.03
B210: 5 | G210: 0.03 | H210: 0.03 | I210: 0.03 | J210: 0.03 | K210: 0.03 | L210: 0.03
B211: 6 | H211: 0.03 | I211: 0.03 | J211: 0.03 | K211: 0.03 | L211: 0.03
B212: 7 | I212: 0.03 | J212: 0.03 | K212: 0.03 | L212: 0.03
B213: 8 | J213: 0.03 | K213: 0.03 | L213: 0.03
B214: 9 | K214: 0.03 | L214: 0.03
B215: 10 | L215: 0.03
B217: Inflação acumulada | C217: =C218 -> 1.0501 | D217: =D218 -> 1.08422825 | E217: 1.116755098 | F217: 1.15025775 | G217: 1.184765483 | H217: 1.220308447 | I217: 1.256917701 | J217: 1.294625232 | K217: 1.333463989 | L217: 1.373467908
B218: 1 | C218: =C206+1 -> 1.0501 | D218: =C218*(1+D206) -> 1.08422825 | E218: 1.116755098 | F218: 1.15025775 | G218: 1.184765483 | H218: 1.220308447 | I218: 1.256917701 | J218: 1.294625232 | K218: 1.333463989 | L218: 1.373467908
B219: =B218+1 -> 2 | D219: =D207+1 -> 1.0325 | E219: =D219*(1+E207) -> 1.063475 | F219: 1.09537925 | G219: 1.128240627 | H219: 1.162087846 | I219: 1.196950482 | J219: 1.232858996 | K219: 1.269844766 | L219: 1.307940109
B220: =B219+1 -> 3 | E220: =E208+1 -> 1.03 | F220: =E220*(1+F208) -> 1.0609 | G220: 1.092727 | H220: 1.12550881 | I220: 1.159274074 | J220: 1.194052297 | K220: 1.229873865 | L220: 1.266770081
B221: 4 | F221: =F209+1 -> 1.03 | G221: =F221*(1+G209) -> 1.0609 | H221: 1.092727 | I221: 1.12550881 | J221: 1.159274074 | K221: 1.194052297 | L221: 1.229873865
B222: 5 | G222: =G210+1 -> 1.03 | H222: =G222*(1+H210) -> 1.0609 | I222: =H222*(1+I210) -> 1.092727 | J222: =I222*(1+J210) -> 1.12550881 | K222: =J222*(1+K210) -> 1.159274074 | L222: =K222*(1+L210) -> 1.194052297
B223: 6 | H223: =H211+1 -> 1.03 | I223: =H223*(1+I211) -> 1.0609 | J223: =I223*(1+J211) -> 1.092727 | K223: =J223*(1+K211) -> 1.12550881 | L223: =K223*(1+L211) -> 1.159274074
B224: 7 | I224: =I212+1 -> 1.03 | J224: =I224*(1+J212) -> 1.0609 | K224: =J224*(1+K212) -> 1.092727 | L224: =K224*(1+L212) -> 1.12550881
B225: 8 | J225: =J213+1 -> 1.03 | K225: =J225*(1+K213) -> 1.0609 | L225: =K225*(1+L213) -> 1.092727
B226: 9 | K226: =K214+1 -> 1.03 | L226: =K226*(1+L214) -> 1.0609
B227: 10 | L227: =L215+1 -> 1.03
... 1 more rows

Sheet 05. NIG
B6: NIG (R$ Milhões)
B8: PRAZO | C8: =IF(C10<=('01. PC'!$C$17),1,0) -> 1 | D8: =IF(D10<=('01. PC'!$C$17),1,0) -> 1 | E8: =IF(E10<=('01. PC'!$C$17),1,0) -> 1 | F8: =IF(F10<=('01. PC'!$C$17),1,0) -> 1 | G8: =IF(G10<=('01. PC'!$C$17),1,0) -> 1 | H8: =IF(H10<=('01. PC'!$C$17),1,0) -> 1 | I8: =IF(I10<=('01. PC'!$C$17),1,0) -> 1 | J8: =IF(J10<=('01. PC'!$C$17),1,0) -> 1 | K8: =IF(K10<=('01. PC'!$C$17),1,0) -> 1 | L8: =IF(L10<=('01. PC'!$C$17),1,0) -> 1
B10: ANO | C10: 1 | D10: =C10+1 -> 2 | E10: =D10+1 -> 3 | F10: 4 | G10: 5 | H10: 6 | I10: 7 | J10: 8 | K10: 9 | L10: 10 | N10: TOTAL
B12: OPEX TOTAL | C12: =-(C13+C14)*C$8 -> -4.103234262 | D12: =-(D13+D14)*D$8 -> -4.103234262 | E12: -4.103234262 | F12: -4.103234262 | G12: -4.103234262 | H12: -4.103234262 | I12: -4.103234262 | J12: -4.103234262 | K12: -4.103234262 | L12: -4.103234262 | N12: =SUM(C12:L12) -> -41.03234262
B13: Terminal Central | C13: ='07. OPEX'!C12 -> 2.606752458 | D13: ='07. OPEX'!D12 -> 2.606752458 | E13: ='07. OPEX'!E12 -> 2.606752458 | F13: ='07. OPEX'!F12 -> 2.606752458 | G13: ='07. OPEX'!G12 -> 2.606752458 | H13: ='07. OPEX'!H12 -> 2.606752458 | I13: ='07. OPEX'!I12 -> 2.606752458 | J13: ='07. OPEX'!J12 -> 2.606752458 | K13: ='07. OPEX'!K12 -> 2.606752458 | L13: ='07. OPEX'!L12 -> 2.606752458 | N13: =SUM(C13:L13) -> 26.06752458
B14: Terminal Uvaranas | C14: ='07. OPEX'!C79 -> 1.496481804 | D14: ='07. OPEX'!D79 -> 1.496481804 | E14: ='07. OPEX'!E79 -> 1.496481804 | F14: ='07. OPEX'!F79 -> 1.496481804 | G14: ='07. OPEX'!G79 -> 1.496481804 | H14: ='07. OPEX'!H79 -> 1.496481804 | I14: ='07. OPEX'!I79 -> 1.496481804 | J14: ='07. OPEX'!J79 -> 1.496481804 | K14: ='07. OPEX'!K79 -> 1.496481804 | L14: ='07. OPEX'!L79 -> 1.496481804 | N14: =SUM(C14:L14) -> 14.96481804
B15: Terminal Oficinas | C15: ='07. OPEX'!C146 -> 1.496481804 | D15: ='07. OPEX'!D146 -> 1.496481804 | E15: ='07. OPEX'!E146 -> 1.496481804 | F15: ='07. OPEX'!F146 -> 1.496481804 | G15: ='07. OPEX'!G146 -> 1.496481804 | H15: ='07. OPEX'!H146 -> 1.496481804 | I15: ='07. OPEX'!I146 -> 1.496481804 | J15: ='07. OPEX'!J146 -> 1.496481804 | K15: ='07. OPEX'!K146 -> 1.496481804 | L15: ='07. OPEX'!L146 -> 1.496481804 | N15: =SUM(C15:L15) -> 14.96481804
B16: Terminal Nova Rússia | C16: ='07. OPEX'!C213 -> 1.496481804 | D16: ='07. OPEX'!D213 -> 1.496481804 | E16: ='07. OPEX'!E213 -> 1.496481804 | F16: ='07. OPEX'!F213 -> 1.496481804 | G16: ='07. OPEX'!G213 -> 1.496481804 | H16: ='07. OPEX'!H213 -> 1.496481804 | I16: ='07. OPEX'!I213 -> 1.496481804 | J16: ='07. OPEX'!J213 -> 1.496481804 | K16: ='07. OPEX'!K213 -> 1.496481804 | L16: ='07. OPEX'!L213 -> 1.496481804 | N16: =SUM(C16:L16) -> 14.96481804
B17: Terminal Santa Paula | C17: ='07. OPEX'!C280 -> 0 | D17: ='07. OPEX'!D280 -> 1.496481804 | E17: ='07. OPEX'!E280 -> 1.496481804 | F17: ='07. OPEX'!F280 -> 1.496481804 | G17: ='07. OPEX'!G280 -> 1.496481804 | H17: ='07. OPEX'!H280 -> 1.496481804 | I17: ='07. OPEX'!I280 -> 1.496481804 | J17: ='07. OPEX'!J280 -> 1.496481804 | K17: ='07. OPEX'!K280 -> 1.496481804 | L17: ='07. OPEX'!L280 -> 1.496481804 | N17: =SUM(C17:L17) -> 13.46833624
B18: Terminais de Integração Eletrônica | C18: ='07. OPEX'!C347 -> 0.28173312 | D18: ='07. OPEX'!D347 -> 0.28173312 | E18: ='07. OPEX'!E347 -> 0.28173312 | F18: ='07. OPEX'!F347 -> 0.28173312 | G18: ='07. OPEX'!G347 -> 0.28173312 | H18: ='07. OPEX'!H347 -> 0.28173312 | I18: ='07. OPEX'!I347 -> 0.28173312 | J18: ='07. OPEX'!J347 -> 0.28173312 | K18: ='07. OPEX'!K347 -> 0.28173312 | L18: ='07. OPEX'!L347 -> 0.28173312 | N18: 2.8173312
B20: NIG - Real | C20: =C12*('01. PC'!$C$15/12) -> 0 | D20: =D12*('01. PC'!$C$15/12) -SUM($C20:C20) -> 0 | E20: =E12*('01. PC'!$C$15/12) -SUM($C20:D20) -> 0 | F20: =F12*('01. PC'!$C$15/12) -SUM($C20:E20) -> 0 | G20: =G12*('01. PC'!$C$15/12) -SUM($C20:F20) -> 0 | H20: =H12*('01. PC'!$C$15/12) -SUM($C20:G20) -> 0 | I20: =I12*('01. PC'!$C$15/12) -SUM($C20:H20) -> 0 | J20: =J12*('01. PC'!$C$15/12) -SUM($C20:I20) -> 0 | K20: =K12*('01. PC'!$C$15/12) -SUM($C20:J20) -> 0 | L20: =-SUM(C20:K20) -> 0 | N20: =SUM(C20:L20) -> 0
B22: Perda inflacionária | D22: =(C12*('01. PC'!D45/(1+'01. PC'!D45)))*D8*('01. PC'!$C$15/12) -> 0 | E22: =(D12*('01. PC'!E45/(1+'01. PC'!E45)))*E8*('01. PC'!$C$15/12) -> 0 | F22: =(E12*('01. PC'!F45/(1+'01. PC'!F45)))*F8*('01. PC'!$C$15/12) -> 0 | G22: =(F12*('01. PC'!G45/(1+'01. PC'!G45)))*G8*('01. PC'!$C$15/12) -> 0 | H22: =(G12*('01. PC'!H45/(1+'01. PC'!H45)))*H8*('01. PC'!$C$15/12) -> 0 | I22: =(H12*('01. PC'!I45/(1+'01. PC'!I45)))*I8*('01. PC'!$C$15/12) -> 0 | J22: =(I12*('01. PC'!J45/(1+'01. PC'!J45)))*J8*('01. PC'!$C$15/12) -> 0 | K22: =(J12*('01. PC'!K45/(1+'01. PC'!K45)))*K8*('01. PC'!$C$15/12) -> 0 | L22: =(K12*('01. PC'!L45/(1+'01. PC'!L45)))*L8*('01. PC'!$C$15/12) -> 0 | N22: =SUM(C22:L22) -> 0
B24: NIG Real com Perda inflacionária | C24: =C20+C22 -> 0 | D24: =D20+D22 -> 0 | E24: 0 | F24: 0 | G24: 0 | H24: 0 | I24: 0 | J24: 0 | K24: 0 | L24: 0 | N24: =SUM(C24:L24) -> 0

Sheet 6. CAPEX
B7: Capex (R$ Milhões)
B9: Ano | C9: 1 | D9: =C9+1 -> 2 | E9: 3 | F9: 4 | G9: 5 | H9: 6 | I9: 7 | J9: 8 | K9: 9 | L9: 10 | N9: TOTAL | P9: RISCO
B11: Total Capex | C11: =(C13+C23+C53+C57+C61+C65+C69) -> 38.716676 | D11: =(D13+D23+D53+D57+D61+D65+D69) -> 0 | E11: 0 | F11: 0 | G11: 0 | H11: 0 | I11: 0 | J11: 0 | K11: 0 | L11: 0 | N11: =SUM(C11:L11) -> 38.716676 | P11: =SensibilidadeOpex -> 0
B13: Terminal Santa Paula - Construção de Terminal | C13: =((C15+C19)/10^6)*(1+$P$11) -> 36.3689 | D13: =((D15+D19)/10^6)*(1+$P$11) -> 0 | E13: 0 | F13: 0 | G13: 0 | H13: 0 | I13: 0 | J13: 0 | K13: 0 | L13: 0 | N13: =SUM(C13:L13) -> 36.3689
B15: Desapropriação | C15: =C16*C17 -> 3500000
B16: Área desapropriada (M²) | C16: 7000
B17: Custo de desapropriação (R$/M²) | C17: 500
B19: Obras e Instalações | C19: =C20*C21 -> 32868900
B20: Área Construída (M²) | C20: 6000
B21: Custo de construção (R$/M²) | C21: 5478.15
B23: Terminais de Integração Eletrônica (TEI) | C23: =((C25+C29+C33+C37+C41+C45+C49)/10^6)*(1+$P$11) -> 2.347776 | D23: =((D25+D29+D33+D37+D41+D45+D49)/10^6)*(1+$P$11) -> 0 | E23: 0 | F23: 0 | G23: 0 | H23: 0 | I23: 0 | J23: 0 | K23: 0 | L23: 0 | N23: =SUM(C23:L23) -> 2.347776
B25: TEI - Valério Ronchi | C25: =C26*C27 -> 391296
B26: Abrigos por TEI | C26: 8
B27: Custo de construção do abrigo (R$/Unidade) | C27: 48912
B29: TEI - Boa Vista | C29: =C30*C31 -> 391296
B30: Abrigos por TEI | C30: 8
B31: Custo de construção do abrigo (R$/Unidade) | C31: 48912
B33: TEI - Siqueira Campos 1 | C33: =C34*C35 -> 391296
B34: Abrigos por TEI | C34: 8
B35: Custo de construção do abrigo (R$/Unidade) | C35: 48912
B37: TEI - Siqueira Campos 2 | C37: =C38*C39 -> 391296
B38: Abrigos por TEI | C38: 8
B39: Custo de construção do abrigo (R$/Unidade) | C39: 48912
B41: TEI - Jardim Carvalho | C41: =C42*C43 -> 391296
B42: Abrigos por TEI | C42: 8
B43: Custo de construção do abrigo (R$/Unidade) | C43: 48912
B45: TEI - Palmeirinha | C45: =C46*C47 -> 391296
B46: Abrigos por TEI | C46: 8
B47: Custo de construção do abrigo (R$/Unidade) | C47: 48912
B49: TEI - Terminal Santa Paula | C49: =C50*C51 -> 0
B50: Abrigos por TEI
B51: Custo de construção do abrigo (R$/Unidade) | C51: 48912
B53: Terminal Central - Construção de Áreas Comerciais* | C53: =((C54*C55)/10^6)*(1+$P$11) -> 0 | D53: =((D54*D55)/10^6)*(1+$P$11) -> 0 | E53: 0 | F53: 0 | G53: 0 | H53: 0 | I53: 0 | J53: 0 | K53: 0 | L53: 0 | N53: =SUM(C53:L53) -> 0
B54: Área edificável (M²) | C54: 71.5
B55: Custo de edificação (R$/M²) | C55: 0
B57: Terminal Uvaranas - Construção de Áreas Comerciais | C57: =((C58*C59)/10^6)*(1+$P$11) -> 0 | D57: =((D58*D59)/10^6)*(1+$P$11) -> 0 | E57: 0 | F57: 0 | G57: 0 | H57: 0 | I57: 0 | J57: 0 | K57: 0 | L57: 0 | N57: =SUM(C57:L57) -> 0
B58: Área edificável (M²) | C58: 880
B59: Custo de edificação (R$/M²)
B61: Terminal Oficinas - Construção de Áreas Comerciais | C61: =((C62*C63)/10^6)*(1+$P$11) -> 0 | D61: =((D62*D63)/10^6)*(1+$P$11) -> 0 | E61: 0 | F61: 0 | G61: 0 | H61: 0 | I61: 0 | J61: 0 | K61: 0 | L61: 0 | N61: =SUM(C61:L61) -> 0
B62: Área edificável (M²) | C62: 630
B63: Custo de edificação (R$/M²)
B65: Terminal Nova Rússia - Construção de Áreas Comerciais* | C65: =((C66*C67)/10^6)*(1+$P$11) -> 0 | D65: =((D66*D67)/10^6)*(1+$P$11) -> 0 | E65: 0 | F65: 0 | G65: 0 | H65: 0 | I65: 0 | J65: 0 | K65: 0 | L65: 0 | N65: =SUM(C65:L65) -> 0
B66: Área edificável (M²) | C66: 24
B67: Custo de edificação (R$/M²) | C67: 0
B69: Terminal Santa Paula - Construção de Áreas Comerciais | C69: =((C70*C71)/10^6)*(1+$P$11) -> 0 | D69: =((D70*D71)/10^6)*(1+$P$11) -> 0 | E69: 0 | F69: 0 | G69: 0 | H69: 0 | I69: 0 | J69: 0 | K69: 0 | L69: 0 | N69: =SUM(C69:L69) -> 0
B70: Área edificável (M²) | C70: 1000
B71: Custo de edificação (R$/M²)
B73: *Terminais com áreas comerciais já disponíveis

Sheet 07. OPEX
B6: Opex (R$ Milhões)
B8: Ano | C8: 1 | D8: =C8+1 -> 2 | E8: 3 | F8: 4 | G8: 5 | H8: 6 | I8: 7 | J8: 8 | K8: 9 | L8: 10 | N8: TOTAL | P8: RISCO
B10: Total Opex | C10: =(C12+C79+C146+C213+C280+C347) -> 7.37793099 | D10: =(D12+D79+D146+D213+D280+D347) -> 8.874412794 | E10: 8.874412794 | F10: 8.874412794 | G10: 8.874412794 | H10: 8.874412794 | I10: 8.874412794 | J10: 8.874412794 | K10: 8.874412794 | L10: 8.874412794 | N10: =SUM(C10:L10) -> 87.24764614 | P10: =SensibilidadeOpex -> 0
B12: Terminal Central | C12: =(C14+C70+C72+C77)*(1+$P$10) -> 2.606752458 | D12: 2.606752458 | E12: 2.606752458 | F12: 2.606752458 | G12: 2.606752458 | H12: 2.606752458 | I12: 2.606752458 | J12: 2.606752458 | K12: 2.606752458 | L12: 2.606752458 | N12: =SUM(C12:L12) -> 26.06752458
B14: Mão de Obra | C14: =12*(C15+C24+C33+C42+C51+C60)/10^6 -> 1.811801966 | D14: 1.811801966 | E14: 1.811801966 | F14: 1.811801966 | G14: 1.811801966 | H14: 1.811801966 | I14: 1.811801966 | J14: 1.811801966 | K14: 1.811801966 | L14: 1.811801966 | N14: =SUM(C14:L14) -> 18.11801966
B15: Líder Limpeza | C15: =C16*C19 -> 21926.6992 | D15: 21926.6992 | E15: 21926.6992 | F15: 21926.6992 | G15: 21926.6992 | H15: 21926.6992 | I15: 21926.6992 | J15: 21926.6992 | K15: 21926.6992 | L15: 21926.6992
B16: Funcionários Equivalentes | C16: =C17*C18 -> 4.936 | D16: =D17*D18 -> 4.936 | E16: 4.936 | F16: 4.936 | G16: 4.936 | H16: 4.936 | I16: 4.936 | J16: 4.936 | K16: 4.936 | L16: 4.936
B17: Quantidade de funcionários sem reposição | C17: 4 | D17: =C17 -> 4 | E17: =D17 -> 4 | F17: 4 | G17: 4 | H17: 4 | I17: 4 | J17: 4 | K17: 4 | L17: 4
B18: Índice de Reposição para folgas e férias | C18: 1.234 | D18: =C18 -> 1.234 | E18: 1.234 | F18: 1.234 | G18: 1.234 | H18: 1.234 | I18: 1.234 | J18: 1.234 | K18: 1.234 | L18: 1.234
B19: Salários Com Encargos e Benefícios | C19: =(C20*C21*C22)+C23 -> 4442.2 | D19: =(D20*D21*D22)+D23 -> 4442.2 | E19: 4442.2 | F19: 4442.2 | G19: 4442.2 | H19: 4442.2 | I19: 4442.2 | J19: 4442.2 | K19: 4442.2 | L19: 4442.2
B20: Salário Base | C20: 1620 | D20: =C20 -> 1620 | E20: 1620 | F20: 1620 | G20: 1620 | H20: 1620 | I20: 1620 | J20: 1620 | K20: 1620 | L20: 1620
B21: Adicional Insalubridade | C21: 1.4 | D21: =C21 -> 1.4 | E21: 1.4 | F21: 1.4 | G21: 1.4 | H21: 1.4 | I21: 1.4 | J21: 1.4 | K21: 1.4 | L21: 1.4
B22: Encargos Sociais | C22: 1.65 | D22: =C22 -> 1.65 | E22: 1.65 | F22: 1.65 | G22: 1.65 | H22: 1.65 | I22: 1.65 | J22: 1.65 | K22: 1.65 | L22: 1.65
B23: Benefícios | C23: 700 | D23: =C23 -> 700 | E23: 700 | F23: 700 | G23: 700 | H23: 700 | I23: 700 | J23: 700 | K23: 700 | L23: 700
B24: Auxiliar Limpeza | C24: =C25*C28 -> 56544.348 | D24: 56544.348 | E24: 56544.348 | F24: 56544.348 | G24: 56544.348 | H24: 56544.348 | I24: 56544.348 | J24: 56544.348 | K24: 56544.348 | L24: 56544.348
B25: Funcionários Equivalentes | C25: =C26*C27 -> 14.808 | D25: =D26*D27 -> 14.808 | E25: 14.808 | F25: 14.808 | G25: 14.808 | H25: 14.808 | I25: 14.808 | J25: 14.808 | K25: 14.808 | L25: 14.808
B26: Quantidade de funcionários sem reposição | C26: 12 | D26: =C26 -> 12 | E26: =D26 -> 12 | F26: 12 | G26: 12 | H26: 12 | I26: 12 | J26: 12 | K26: 12 | L26: 12
B27: Índice de Reposição para folgas e férias | C27: 1.234 | D27: =C27 -> 1.234 | E27: 1.234 | F27: 1.234 | G27: 1.234 | H27: 1.234 | I27: 1.234 | J27: 1.234 | K27: 1.234 | L27: 1.234
B28: Salários Com Encargos e Benefícios | C28: =(C29*C30*C31)+C32 -> 3818.5 | D28: =(D29*D30*D31)+D32 -> 3818.5 | E28: 3818.5 | F28: 3818.5 | G28: 3818.5 | H28: 3818.5 | I28: 3818.5 | J28: 3818.5 | K28: 3818.5 | L28: 3818.5
B29: Salário Base | C29: 1350 | D29: =C29 -> 1350 | E29: =D29 -> 1350 | F29: 1350 | G29: 1350 | H29: 1350 | I29: 1350 | J29: 1350 | K29: 1350 | L29: 1350
B30: Adicional Insalubridade | C30: 1.4 | D30: =C30 -> 1.4 | E30: 1.4 | F30: 1.4 | G30: 1.4 | H30: 1.4 | I30: 1.4 | J30: 1.4 | K30: 1.4 | L30: 1.4
B31: Encargos Sociais | C31: 1.65 | D31: =C31 -> 1.65 | E31: 1.65 | F31: 1.65 | G31: 1.65 | H31: 1.65 | I31: 1.65 | J31: 1.65 | K31: 1.65 | L31: 1.65
B32: Benefícios | C32: 700 | D32: =C32 -> 700 | E32: 700 | F32: 700 | G32: 700 | H32: 700 | I32: 700 | J32: 700 | K32: 700 | L32: 700
B33: Porteiro e Vigia | C33: =C34*C37 -> 29871.58 | D33: 29871.58 | E33: 29871.58 | F33: 29871.58 | G33: 29871.58 | H33: 29871.58 | I33: 29871.58 | J33: 29871.58 | K33: 29871.58 | L33: 29871.58
B34: Funcionários Equivalentes | C34: =C35*C36 -> 8.728 | D34: =D35*D36 -> 8.728 | E34: 8.728 | F34: 8.728 | G34: 8.728 | H34: 8.728 | I34: 8.728 | J34: 8.728 | K34: 8.728 | L34: 8.728
B35: Quantidade de funcionários sem reposição | C35: 8 | D35: =C35 -> 8 | E35: =D35 -> 8 | F35: 8 | G35: 8 | H35: 8 | I35: 8 | J35: 8 | K35: 8 | L35: 8
B36: Índice de Reposição para folgas e férias | C36: 1.091 | D36: =C36 -> 1.091 | E36: 1.091 | F36: 1.091 | G36: 1.091 | H36: 1.091 | I36: 1.091 | J36: 1.091 | K36: 1.091 | L36: 1.091
B37: Salários Com Encargos e Benefícios | C37: =(C38*C39*C40)+C41 -> 3422.5 | D37: =(D38*D39*D40)+D41 -> 3422.5 | E37: 3422.5 | F37: 3422.5 | G37: 3422.5 | H37: 3422.5 | I37: 3422.5 | J37: 3422.5 | K37: 3422.5 | L37: 3422.5
B38: Salário Base | C38: 1650 | D38: =C38 -> 1650 | E38: =D38 -> 1650 | F38: 1650 | G38: 1650 | H38: 1650 | I38: 1650 | J38: 1650 | K38: 1650 | L38: 1650
B39: Adicional Insalubridade | C39: 1 | D39: =C39 -> 1 | E39: 1 | F39: 1 | G39: 1 | H39: 1 | I39: 1 | J39: 1 | K39: 1 | L39: 1
B40: Encargos Sociais | C40: 1.65 | D40: =C40 -> 1.65 | E40: 1.65 | F40: 1.65 | G40: 1.65 | H40: 1.65 | I40: 1.65 | J40: 1.65 | K40: 1.65 | L40: 1.65
B41: Benefícios | C41: 700 | D41: =C41 -> 700 | E41: 700 | F41: 700 | G41: 700 | H41: 700 | I41: 700 | J41: 700 | K41: 700 | L41: 700
B42: Atendente | C42: =C43*C46 -> 16893.46 | D42: 16893.46 | E42: 16893.46 | F42: 16893.46 | G42: 16893.46 | H42: 16893.46 | I42: 16893.46 | J42: 16893.46 | K42: 16893.46 | L42: 16893.46
B43: Funcionários Equivalentes | C43: =C44*C45 -> 4.936 | D43: =D44*D45 -> 4.936 | E43: 4.936 | F43: 4.936 | G43: 4.936 | H43: 4.936 | I43: 4.936 | J43: 4.936 | K43: 4.936 | L43: 4.936
B44: Quantidade de funcionários sem reposição | C44: 4 | D44: =C44 -> 4 | E44: =D44 -> 4 | F44: 4 | G44: 4 | H44: 4 | I44: 4 | J44: 4 | K44: 4 | L44: 4
B45: Índice de Reposição para folgas e férias | C45: 1.234 | D45: =C45 -> 1.234 | E45: 1.234 | F45: 1.234 | G45: 1.234 | H45: 1.234 | I45: 1.234 | J45: 1.234 | K45: 1.234 | L45: 1.234
B46: Salários Com Encargos e Benefícios | C46: =(C47*C48*C49)+C50 -> 3422.5 | D46: =(D47*D48*D49)+D50 -> 3422.5 | E46: 3422.5 | F46: 3422.5 | G46: 3422.5 | H46: 3422.5 | I46: 3422.5 | J46: 3422.5 | K46: 3422.5 | L46: 3422.5
B47: Salário Base | C47: 1650 | D47: =C47 -> 1650 | E47: =D47 -> 1650 | F47: 1650 | G47: 1650 | H47: 1650 | I47: 1650 | J47: 1650 | K47: 1650 | L47: 1650
B48: Adicional Insalubridade | C48: 1 | D48: =C48 -> 1 | E48: 1 | F48: 1 | G48: 1 | H48: 1 | I48: 1 | J48: 1 | K48: 1 | L48: 1
B49: Encargos Sociais | C49: 1.65 | D49: =C49 -> 1.65 | E49: 1.65 | F49: 1.65 | G49: 1.65 | H49: 1.65 | I49: 1.65 | J49: 1.65 | K49: 1.65 | L49: 1.65
B50: Benefícios | C50: 700 | D50: =C50 -> 700 | E50: 700 | F50: 700 | G50: 700 | H50: 700 | I50: 700 | J50: 700 | K50: 700 | L50: 700
B51: Manutenção | C51: =C52*C55 -> 18522.34 | D51: 18522.34 | E51: 18522.34 | F51: 18522.34 | G51: 18522.34 | H51: 18522.34 | I51: 18522.34 | J51: 18522.34 | K51: 18522.34 | L51: 18522.34
B52: Funcionários Equivalentes | C52: =C53*C54 -> 4.936 | D52: =D53*D54 -> 4.936 | E52: 4.936 | F52: 4.936 | G52: 4.936 | H52: 4.936 | I52: 4.936 | J52: 4.936 | K52: 4.936 | L52: 4.936
B53: Quantidade de funcionários sem reposição | C53: 4 | D53: =C53 -> 4 | E53: =D53 -> 4 | F53: 4 | G53: 4 | H53: 4 | I53: 4 | J53: 4 | K53: 4 | L53: 4
B54: Índice de Reposição para folgas e férias | C54: 1.234 | D54: =C54 -> 1.234 | E54: 1.234 | F54: 1.234 | G54: 1.234 | H54: 1.234 | I54: 1.234 | J54: 1.234 | K54: 1.234 | L54: 1.234
B55: Salários Com Encargos e Benefícios | C55: =(C56*C57*C58)+C59 -> 3752.5 | D55: =(D56*D57*D58)+D59 -> 3752.5 | E55: 3752.5 | F55: 3752.5 | G55: 3752.5 | H55: 3752.5 | I55: 3752.5 | J55: 3752.5 | K55: 3752.5 | L55: 3752.5
B56: Salário Base | C56: 1850 | D56: =C56 -> 1850 | E56: =D56 -> 1850 | F56: 1850 | G56: 1850 | H56: 1850 | I56: 1850 | J56: 1850 | K56: 1850 | L56: 1850
B57: Adicional Insalubridade | C57: 1 | D57: =C57 -> 1 | E57: 1 | F57: 1 | G57: 1 | H57: 1 | I57: 1 | J57: 1 | K57: 1 | L57: 1
B58: Encargos Sociais | C58: 1.65 | D58: =C58 -> 1.65 | E58: 1.65 | F58: 1.65 | G58: 1.65 | H58: 1.65 | I58: 1.65 | J58: 1.65 | K58: 1.65 | L58: 1.65
B59: Benefícios | C59: 700 | D59: =C59 -> 700 | E59: 700 | F59: 700 | G59: 700 | H59: 700 | I59: 700 | J59: 700 | K59: 700 | L59: 700
B60: Jardineiro | C60: =C61*C64 -> 7225.07 | D60: 7225.07 | E60: 7225.07 | F60: 7225.07 | G60: 7225.07 | H60: 7225.07 | I60: 7225.07 | J60: 7225.07 | K60: 7225.07 | L60: 7225.07
B61: Funcionários Equivalentes | C61: =C62*C63 -> 2.468 | D61: =D62*D63 -> 2.468 | E61: 2.468 | F61: 2.468 | G61: 2.468 | H61: 2.468 | I61: 2.468 | J61: 2.468 | K61: 2.468 | L61: 2.468
B62: Quantidade de funcionários sem reposição | C62: 2 | D62: =C62 -> 2 | E62: =D62 -> 2 | F62: 2 | G62: 2 | H62: 2 | I62: 2 | J62: 2 | K62: 2 | L62: 2
B63: Índice de Reposição para folgas e férias | C63: 1.234 | D63: =C63 -> 1.234 | E63: 1.234 | F63: 1.234 | G63: 1.234 | H63: 1.234 | I63: 1.234 | J63: 1.234 | K63: 1.234 | L63: 1.234
B64: Salários Com Encargos e Benefícios | C64: =(C65*C66*C67)+C68 -> 2927.5 | D64: =(D65*D66*D67)+D68 -> 2927.5 | E64: 2927.5 | F64: 2927.5 | G64: 2927.5 | H64: 2927.5 | I64: 2927.5 | J64: 2927.5 | K64: 2927.5 | L64: 2927.5
B65: Salário Base | C65: 1350 | D65: =C65 -> 1350 | E65: =D65 -> 1350 | F65: 1350 | G65: 1350 | H65: 1350 | I65: 1350 | J65: 1350 | K65: 1350 | L65: 1350
B66: Adicional Insalubridade | C66: 1 | D66: =C66 -> 1 | E66: 1 | F66: 1 | G66: 1 | H66: 1 | I66: 1 | J66: 1 | K66: 1 | L66: 1
B67: Encargos Sociais | C67: 1.65 | D67: =C67 -> 1.65 | E67: 1.65 | F67: 1.65 | G67: 1.65 | H67: 1.65 | I67: 1.65 | J67: 1.65 | K67: 1.65 | L67: 1.65
B68: Benefícios | C68: 700 | D68: =C68 -> 700 | E68: 700 | F68: 700 | G68: 700 | H68: 700 | I68: 700 | J68: 700 | K68: 700 | L68: 700
B70: Materiais | C70: =12*10000/10^6 -> 0.12 | D70: =C70 -> 0.12 | E70: =D70 -> 0.12 | F70: 0.12 | G70: 0.12 | H70: 0.12 | I70: 0.12 | J70: 0.12 | K70: 0.12 | L70: 0.12 | N70: =SUM(C70:L70) -> 1.2
B72: Custos Indiretos | C72: =(C73+C74)*C75 -> 0.4829504916 | D72: =(D73+D74)*D75 -> 0.4829504916 | E72: 0.4829504916 | F72: 0.4829504916 | G72: 0.4829504916 | H72: 0.4829504916 | I72: 0.4829504916 | J72: 0.4829504916 | K72: 0.4829504916 | L72: 0.4829504916 | M72: 0.1 | N72: =SUM(C72:L72) -> 4.829504916
B73: Custos com Pessoal (R$) | C73: =C14 -> 1.811801966 | D73: 1.811801966 | E73: 1.811801966 | F73: 1.811801966 | G73: 1.811801966 | H73: 1.811801966 | I73: 1.811801966 | J73: 1.811801966 | K73: 1.811801966 | L73: 1.811801966
B74: Custos com Materiais (R$) | C74: =C70 -> 0.12 | D74: =D70 -> 0.12 | E74: 0.12 | F74: 0.12 | G74: 0.12 | H74: 0.12 | I74: 0.12 | J74: 0.12 | K74: 0.12 | L74: 0.12
B75: Incidência (%) | C75: 0.25 | D75: 0.25 | E75: 0.25 | F75: 0.25 | G75: 0.25 | H75: 0.25 | I75: 0.25 | J75: 0.25 | K75: 0.25 | L75: 0.25
B77: Eletricidade, Água e Esgoto | C77: =12*16000/10^6 -> 0.192 | D77: =C77 -> 0.192 | E77: =D77 -> 0.192 | F77: 0.192 | G77: 0.192 | H77: 0.192 | I77: 0.192 | J77: 0.192 | K77: 0.192 | L77: 0.192 | M77: 0.1 | N77: =SUM(C77:L77) -> 1.92
B79: Terminal Uvaranas | C79: =(C81+C137+C139+C144)*(1+$P$10) -> 1.496481804 | D79: 1.496481804 | E79: 1.496481804 | F79: 1.496481804 | G79: 1.496481804 | H79: 1.496481804 | I79: 1.496481804 | J79: 1.496481804 | K79: 1.496481804 | L79: 1.496481804 | N79: =SUM(C79:L79) -> 14.96481804
B81: Mão de Obra | C81: =12*(C82+C91+C100+C109+C118+C127)/10^6 -> 1.060385443 | D81: =12*(D82+D91+D100+D109+D118+D127)/10^6 -> 1.060385443 | E81: =12*(E82+E91+E100+E109+E118+E127)/10^6 -> 1.060385443 | F81: =12*(F82+F91+F100+F109+F118+F127)/10^6 -> 1.060385443 | G81: =12*(G82+G91+G100+G109+G118+G127)/10^6 -> 1.060385443 | H81: =12*(H82+H91+H100+H109+H118+H127)/10^6 -> 1.060385443 | I81: =12*(I82+I91+I100+I109+I118+I127)/10^6 -> 1.060385443 | J81: =12*(J82+J91+J100+J109+J118+J127)/10^6 -> 1.060385443 | K81: =12*(K82+K91+K100+K109+K118+K127)/10^6 -> 1.060385443 | L81: =12*(L82+L91+L100+L109+L118+L127)/10^6 -> 1.060385443 | N81: =SUM(C81:L81) -> 10.60385443
B82: Líder Limpeza | C82: =C83*C86 -> 10963.3496 | D82: 10963.3496 | E82: 10963.3496 | F82: 10963.3496 | G82: 10963.3496 | H82: 10963.3496 | I82: 10963.3496 | J82: 10963.3496 | K82: 10963.3496 | L82: 10963.3496
B83: Funcionários Equivalentes | C83: =C84*C85 -> 2.468 | D83: =D84*D85 -> 2.468 | E83: 2.468 | F83: 2.468 | G83: 2.468 | H83: 2.468 | I83: 2.468 | J83: 2.468 | K83: 2.468 | L83: 2.468
B84: Quantidade de funcionários sem reposição | C84: 2 | D84: =C84 -> 2 | E84: =D84 -> 2 | F84: =E84 -> 2 | G84: =F84 -> 2 | H84: =G84 -> 2 | I84: =H84 -> 2 | J84: =I84 -> 2 | K84: =J84 -> 2 | L84: =K84 -> 2
B85: Índice de Reposição para folgas e férias | C85: 1.234 | D85: =C85 -> 1.234 | E85: 1.234 | F85: 1.234 | G85: 1.234 | H85: 1.234 | I85: 1.234 | J85: 1.234 | K85: 1.234 | L85: 1.234
B86: Salários Com Encargos e Benefícios | C86: =(C87*C88*C89)+C90 -> 4442.2 | D86: =(D87*D88*D89)+D90 -> 4442.2 | E86: 4442.2 | F86: 4442.2 | G86: 4442.2 | H86: 4442.2 | I86: 4442.2 | J86: 4442.2 | K86: 4442.2 | L86: 4442.2
B87: Salário Base | C87: 1620 | D87: =C87 -> 1620 | E87: =D87 -> 1620 | F87: =E87 -> 1620 | G87: =F87 -> 1620 | H87: =G87 -> 1620 | I87: =H87 -> 1620 | J87: =I87 -> 1620 | K87: =J87 -> 1620 | L87: =K87 -> 1620
B88: Adicional Insalubridade | C88: 1.4 | D88: =C88 -> 1.4 | E88: 1.4 | F88: 1.4 | G88: 1.4 | H88: 1.4 | I88: 1.4 | J88: 1.4 | K88: 1.4 | L88: 1.4
B89: Encargos Sociais | C89: 1.65 | D89: =C89 -> 1.65 | E89: 1.65 | F89: 1.65 | G89: 1.65 | H89: 1.65 | I89: 1.65 | J89: 1.65 | K89: 1.65 | L89: 1.65
B90: Benefícios | C90: 700 | D90: =C90 -> 700 | E90: 700 | F90: 700 | G90: 700 | H90: 700 | I90: 700 | J90: 700 | K90: 700 | L90: 700
B91: Auxiliar Limpeza | C91: =C92*C95 -> 28272.174 | D91: 28272.174 | E91: 28272.174 | F91: 28272.174 | G91: 28272.174 | H91: 28272.174 | I91: 28272.174 | J91: 28272.174 | K91: 28272.174 | L91: 28272.174
B92: Funcionários Equivalentes | C92: =C93*C94 -> 7.404 | D92: =D93*D94 -> 7.404 | E92: 7.404 | F92: 7.404 | G92: 7.404 | H92: 7.404 | I92: 7.404 | J92: 7.404 | K92: 7.404 | L92: 7.404
B93: Quantidade de funcionários sem reposição | C93: 6 | D93: =C93 -> 6 | E93: =D93 -> 6 | F93: =E93 -> 6 | G93: =F93 -> 6 | H93: =G93 -> 6 | I93: =H93 -> 6 | J93: =I93 -> 6 | K93: =J93 -> 6 | L93: =K93 -> 6
B94: Índice de Reposição para folgas e férias | C94: 1.234 | D94: =C94 -> 1.234 | E94: 1.234 | F94: 1.234 | G94: 1.234 | H94: 1.234 | I94: 1.234 | J94: 1.234 | K94: 1.234 | L94: 1.234
B95: Salários Com Encargos e Benefícios | C95: =(C96*C97*C98)+C99 -> 3818.5 | D95: =(D96*D97*D98)+D99 -> 3818.5 | E95: 3818.5 | F95: 3818.5 | G95: 3818.5 | H95: 3818.5 | I95: 3818.5 | J95: 3818.5 | K95: 3818.5 | L95: 3818.5
B96: Salário Base | C96: 1350 | D96: =C96 -> 1350 | E96: =D96 -> 1350 | F96: =E96 -> 1350 | G96: =F96 -> 1350 | H96: =G96 -> 1350 | I96: =H96 -> 1350 | J96: =I96 -> 1350 | K96: =J96 -> 1350 | L96: =K96 -> 1350
B97: Adicional Insalubridade | C97: 1.4 | D97: =C97 -> 1.4 | E97: 1.4 | F97: 1.4 | G97: 1.4 | H97: 1.4 | I97: 1.4 | J97: 1.4 | K97: 1.4 | L97: 1.4
B98: Encargos Sociais | C98: 1.65 | D98: =C98 -> 1.65 | E98: 1.65 | F98: 1.65 | G98: 1.65 | H98: 1.65 | I98: 1.65 | J98: 1.65 | K98: 1.65 | L98: 1.65
B99: Benefícios | C99: 700 | D99: =C99 -> 700 | E99: 700 | F99: 700 | G99: 700 | H99: 700 | I99: 700 | J99: 700 | K99: 700 | L99: 700
B100: Porteiro e Vigia | C100: =C101*C104 -> 14935.79 | D100: 14935.79 | E100: 14935.79 | F100: 14935.79 | G100: 14935.79 | H100: 14935.79 | I100: 14935.79 | J100: 14935.79 | K100: 14935.79 | L100: 14935.79
B101: Funcionários Equivalentes | C101: =C102*C103 -> 4.364 | D101: =D102*D103 -> 4.364 | E101: 4.364 | F101: 4.364 | G101: 4.364 | H101: 4.364 | I101: 4.364 | J101: 4.364 | K101: 4.364 | L101: 4.364
B102: Quantidade de funcionários sem reposição | C102: 4 | D102: =C102 -> 4 | E102: =D102 -> 4 | F102: =E102 -> 4 | G102: =F102 -> 4 | H102: =G102 -> 4 | I102: =H102 -> 4 | J102: =I102 -> 4 | K102: =J102 -> 4 | L102: =K102 -> 4
B103: Índice de Reposição para folgas e férias | C103: 1.091 | D103: =C103 -> 1.091 | E103: 1.091 | F103: 1.091 | G103: 1.091 | H103: 1.091 | I103: 1.091 | J103: 1.091 | K103: 1.091 | L103: 1.091
B104: Salários Com Encargos e Benefícios | C104: =(C105*C106*C107)+C108 -> 3422.5 | D104: =(D105*D106*D107)+D108 -> 3422.5 | E104: 3422.5 | F104: 3422.5 | G104: 3422.5 | H104: 3422.5 | I104: 3422.5 | J104: 3422.5 | K104: 3422.5 | L104: 3422.5
B105: Salário Base | C105: 1650 | D105: =C105 -> 1650 | E105: =D105 -> 1650 | F105: =E105 -> 1650 | G105: =F105 -> 1650 | H105: =G105 -> 1650 | I105: =H105 -> 1650 | J105: =I105 -> 1650 | K105: =J105 -> 1650 | L105: =K105 -> 1650
B106: Adicional Insalubridade | C106: 1 | D106: =C106 -> 1 | E106: 1 | F106: 1 | G106: 1 | H106: 1 | I106: 1 | J106: 1 | K106: 1 | L106: 1
B107: Encargos Sociais | C107: 1.65 | D107: =C107 -> 1.65 | E107: 1.65 | F107: 1.65 | G107: 1.65 | H107: 1.65 | I107: 1.65 | J107: 1.65 | K107: 1.65 | L107: 1.65
B108: Benefícios | C108: 700 | D108: =C108 -> 700 | E108: 700 | F108: 700 | G108: 700 | H108: 700 | I108: 700 | J108: 700 | K108: 700 | L108: 700
B109: Atendente | C109: =C110*C113 -> 8446.73 | D109: 8446.73 | E109: 8446.73 | F109: 8446.73 | G109: 8446.73 | H109: 8446.73 | I109: 8446.73 | J109: 8446.73 | K109: 8446.73 | L109: 8446.73
B110: Funcionários Equivalentes | C110: =C111*C112 -> 2.468 | D110: =D111*D112 -> 2.468 | E110: 2.468 | F110: 2.468 | G110: 2.468 | H110: 2.468 | I110: 2.468 | J110: 2.468 | K110: 2.468 | L110: 2.468
B111: Quantidade de funcionários sem reposição | C111: 2 | D111: =C111 -> 2 | E111: =D111 -> 2 | F111: =E111 -> 2 | G111: =F111 -> 2 | H111: =G111 -> 2 | I111: =H111 -> 2 | J111: =I111 -> 2 | K111: =J111 -> 2 | L111: =K111 -> 2
B112: Índice de Reposição para folgas e férias | C112: 1.234 | D112: =C112 -> 1.234 | E112: 1.234 | F112: 1.234 | G112: 1.234 | H112: 1.234 | I112: 1.234 | J112: 1.234 | K112: 1.234 | L112: 1.234
B113: Salários Com Encargos e Benefícios | C113: =(C114*C115*C116)+C117 -> 3422.5 | D113: =(D114*D115*D116)+D117 -> 3422.5 | E113: 3422.5 | F113: 3422.5 | G113: 3422.5 | H113: 3422.5 | I113: 3422.5 | J113: 3422.5 | K113: 3422.5 | L113: 3422.5
B114: Salário Base | C114: 1650 | D114: =C114 -> 1650 | E114: =D114 -> 1650 | F114: =E114 -> 1650 | G114: =F114 -> 1650 | H114: =G114 -> 1650 | I114: =H114 -> 1650 | J114: =I114 -> 1650 | K114: =J114 -> 1650 | L114: =K114 -> 1650
B115: Adicional Insalubridade | C115: 1 | D115: =C115 -> 1 | E115: 1 | F115: 1 | G115: 1 | H115: 1 | I115: 1 | J115: 1 | K115: 1 | L115: 1
B116: Encargos Sociais | C116: 1.65 | D116: =C116 -> 1.65 | E116: 1.65 | F116: 1.65 | G116: 1.65 | H116: 1.65 | I116: 1.65 | J116: 1.65 | K116: 1.65 | L116: 1.65
B117: Benefícios | C117: 700 | D117: =C117 -> 700 | E117: 700 | F117: 700 | G117: 700 | H117: 700 | I117: 700 | J117: 700 | K117: 700 | L117: 700
B118: Manutenção | C118: =C119*C122 -> 18522.34 | D118: 18522.34 | E118: 18522.34 | F118: 18522.34 | G118: 18522.34 | H118: 18522.34 | I118: 18522.34 | J118: 18522.34 | K118: 18522.34 | L118: 18522.34
B119: Funcionários Equivalentes | C119: =C120*C121 -> 4.936 | D119: =D120*D121 -> 4.936 | E119: 4.936 | F119: 4.936 | G119: 4.936 | H119: 4.936 | I119: 4.936 | J119: 4.936 | K119: 4.936 | L119: 4.936
B120: Quantidade de funcionários sem reposição | C120: 4 | D120: =C120 -> 4 | E120: =D120 -> 4 | F120: =E120 -> 4 | G120: =F120 -> 4 | H120: =G120 -> 4 | I120: =H120 -> 4 | J120: =I120 -> 4 | K120: =J120 -> 4 | L120: =K120 -> 4
B121: Índice de Reposição para folgas e férias | C121: 1.234 | D121: =C121 -> 1.234 | E121: 1.234 | F121: 1.234 | G121: 1.234 | H121: 1.234 | I121: 1.234 | J121: 1.234 | K121: 1.234 | L121: 1.234
B122: Salários Com Encargos e Benefícios | C122: =(C123*C124*C125)+C126 -> 3752.5 | D122: =(D123*D124*D125)+D126 -> 3752.5 | E122: 3752.5 | F122: 3752.5 | G122: 3752.5 | H122: 3752.5 | I122: 3752.5 | J122: 3752.5 | K122: 3752.5 | L122: 3752.5
B123: Salário Base | C123: 1850 | D123: =C123 -> 1850 | E123: =D123 -> 1850 | F123: =E123 -> 1850 | G123: =F123 -> 1850 | H123: =G123 -> 1850 | I123: =H123 -> 1850 | J123: =I123 -> 1850 | K123: =J123 -> 1850 | L123: =K123 -> 1850
B124: Adicional Insalubridade | C124: 1 | D124: =C124 -> 1 | E124: 1 | F124: 1 | G124: 1 | H124: 1 | I124: 1 | J124: 1 | K124: 1 | L124: 1
B125: Encargos Sociais | C125: 1.65 | D125: =C125 -> 1.65 | E125: 1.65 | F125: 1.65 | G125: 1.65 | H125: 1.65 | I125: 1.65 | J125: 1.65 | K125: 1.65 | L125: 1.65
B126: Benefícios | C126: 700 | D126: =C126 -> 700 | E126: 700 | F126: 700 | G126: 700 | H126: 700 | I126: 700 | J126: 700 | K126: 700 | L126: 700
B127: Jardineiro | C127: =C128*C131 -> 7225.07 | D127: 7225.07 | E127: 7225.07 | F127: 7225.07 | G127: 7225.07 | H127: 7225.07 | I127: 7225.07 | J127: 7225.07 | K127: 7225.07 | L127: 7225.07
B128: Funcionários Equivalentes | C128: =C129*C130 -> 2.468 | D128: =D129*D130 -> 2.468 | E128: 2.468 | F128: 2.468 | G128: 2.468 | H128: 2.468 | I128: 2.468 | J128: 2.468 | K128: 2.468 | L128: 2.468
B129: Quantidade de funcionários sem reposição | C129: 2 | D129: =C129 -> 2 | E129: =D129 -> 2 | F129: =E129 -> 2 | G129: =F129 -> 2 | H129: =G129 -> 2 | I129: =H129 -> 2 | J129: =I129 -> 2 | K129: =J129 -> 2 | L129: =K129 -> 2
B130: Índice de Reposição para folgas e férias | C130: 1.234 | D130: =C130 -> 1.234 | E130: 1.234 | F130: 1.234 | G130: 1.234 | H130: 1.234 | I130: 1.234 | J130: 1.234 | K130: 1.234 | L130: 1.234
B131: Salários Com Encargos e Benefícios | C131: =(C132*C133*C134)+C135 -> 2927.5 | D131: =(D132*D133*D134)+D135 -> 2927.5 | E131: 2927.5 | F131: 2927.5 | G131: 2927.5 | H131: 2927.5 | I131: 2927.5 | J131: 2927.5 | K131: 2927.5 | L131: 2927.5
B132: Salário Base | C132: 1350 | D132: =C132 -> 1350 | E132: =D132 -> 1350 | F132: =E132 -> 1350 | G132: =F132 -> 1350 | H132: =G132 -> 1350 | I132: =H132 -> 1350 | J132: =I132 -> 1350 | K132: =J132 -> 1350 | L132: =K132 -> 1350
B133: Adicional Insalubridade | C133: 1 | D133: =C133 -> 1 | E133: 1 | F133: 1 | G133: 1 | H133: 1 | I133: 1 | J133: 1 | K133: 1 | L133: 1
B134: Encargos Sociais | C134: 1.65 | D134: =C134 -> 1.65 | E134: 1.65 | F134: 1.65 | G134: 1.65 | H134: 1.65 | I134: 1.65 | J134: 1.65 | K134: 1.65 | L134: 1.65
B135: Benefícios | C135: 700 | D135: =C135 -> 700 | E135: 700 | F135: 700 | G135: 700 | H135: 700 | I135: 700 | J135: 700 | K135: 700 | L135: 700
B137: Materiais | C137: =12*5000/10^6 -> 0.06 | D137: =C137 -> 0.06 | E137: =D137 -> 0.06 | F137: 0.06 | G137: 0.06 | H137: 0.06 | I137: 0.06 | J137: 0.06 | K137: 0.06 | L137: 0.06 | N137: =SUM(C137:L137) -> 0.6
B139: Custos Indiretos | C139: =(C140+C141)*C142 -> 0.2800963608 | D139: =(D140+D141)*D142 -> 0.2800963608 | E139: =(E140+E141)*E142 -> 0.2800963608 | F139: =(F140+F141)*F142 -> 0.2800963608 | G139: =(G140+G141)*G142 -> 0.2800963608 | H139: =(H140+H141)*H142 -> 0.2800963608 | I139: =(I140+I141)*I142 -> 0.2800963608 | J139: =(J140+J141)*J142 -> 0.2800963608 | K139: =(K140+K141)*K142 -> 0.2800963608 | L139: =(L140+L141)*L142 -> 0.2800963608 | M139: 0.1 | N139: =SUM(C139:L139) -> 2.800963608
B140: Custos com Pessoal (R$) | C140: =C81 -> 1.060385443 | D140: 1.060385443 | E140: 1.060385443 | F140: 1.060385443 | G140: 1.060385443 | H140: 1.060385443 | I140: 1.060385443 | J140: 1.060385443 | K140: 1.060385443 | L140: 1.060385443
B141: Custos com Materiais (R$) | C141: =C137 -> 0.06 | D141: =D137 -> 0.06 | E141: 0.06 | F141: 0.06 | G141: 0.06 | H141: 0.06 | I141: 0.06 | J141: 0.06 | K141: 0.06 | L141: 0.06
B142: Incidência (%) | C142: 0.25 | D142: 0.25 | E142: 0.25 | F142: 0.25 | G142: 0.25 | H142: 0.25 | I142: 0.25 | J142: 0.25 | K142: 0.25 | L142: 0.25
B144: Eletricidade, Água e Esgoto | C144: =12*8000/10^6 -> 0.096 | D144: =C144 -> 0.096 | E144: =D144 -> 0.096 | F144: 0.096 | G144: 0.096 | H144: 0.096 | I144: 0.096 | J144: 0.096 | K144: 0.096 | L144: 0.096 | M144: 0.1 | N144: =SUM(C144:L144) -> 0.96
B146: Terminal Oficinas | C146: =(C148+C204+C206+C211)*(1+$P$10) -> 1.496481804 | D146: 1.496481804 | E146: 1.496481804 | F146: 1.496481804 | G146: 1.496481804 | H146: 1.496481804 | I146: 1.496481804 | J146: 1.496481804 | K146: 1.496481804 | L146: 1.496481804 | N146: =SUM(C146:L146) -> 14.96481804
B148: Mão de Obra | C148: =12*(C149+C158+C167+C176+C185+C194)/10^6 -> 1.060385443 | D148: =12*(D149+D158+D167+D176+D185+D194)/10^6 -> 1.060385443 | E148: =12*(E149+E158+E167+E176+E185+E194)/10^6 -> 1.060385443 | F148: =12*(F149+F158+F167+F176+F185+F194)/10^6 -> 1.060385443 | G148: =12*(G149+G158+G167+G176+G185+G194)/10^6 -> 1.060385443 | H148: =12*(H149+H158+H167+H176+H185+H194)/10^6 -> 1.060385443 | I148: =12*(I149+I158+I167+I176+I185+I194)/10^6 -> 1.060385443 | J148: =12*(J149+J158+J167+J176+J185+J194)/10^6 -> 1.060385443 | K148: =12*(K149+K158+K167+K176+K185+K194)/10^6 -> 1.060385443 | L148: =12*(L149+L158+L167+L176+L185+L194)/10^6 -> 1.060385443 | N148: =SUM(C148:L148) -> 10.60385443
B149: Líder Limpeza | C149: =C150*C153 -> 10963.3496 | D149: 10963.3496 | E149: 10963.3496 | F149: 10963.3496 | G149: 10963.3496 | H149: 10963.3496 | I149: 10963.3496 | J149: 10963.3496 | K149: 10963.3496 | L149: 10963.3496
B150: Funcionários Equivalentes | C150: =C151*C152 -> 2.468 | D150: =D151*D152 -> 2.468 | E150: 2.468 | F150: 2.468 | G150: 2.468 | H150: 2.468 | I150: 2.468 | J150: 2.468 | K150: 2.468 | L150: 2.468
B151: Quantidade de funcionários sem reposição | C151: 2 | D151: =C151 -> 2 | E151: =D151 -> 2 | F151: =E151 -> 2 | G151: =F151 -> 2 | H151: =G151 -> 2 | I151: =H151 -> 2 | J151: =I151 -> 2 | K151: =J151 -> 2 | L151: =K151 -> 2
B152: Índice de Reposição para folgas e férias | C152: 1.234 | D152: =C152 -> 1.234 | E152: 1.234 | F152: 1.234 | G152: 1.234 | H152: 1.234 | I152: 1.234 | J152: 1.234 | K152: 1.234 | L152: 1.234
B153: Salários Com Encargos e Benefícios | C153: =(C154*C155*C156)+C157 -> 4442.2 | D153: =(D154*D155*D156)+D157 -> 4442.2 | E153: 4442.2 | F153: 4442.2 | G153: 4442.2 | H153: 4442.2 | I153: 4442.2 | J153: 4442.2 | K153: 4442.2 | L153: 4442.2
B154: Salário Base | C154: 1620 | D154: =C154 -> 1620 | E154: =D154 -> 1620 | F154: =E154 -> 1620 | G154: =F154 -> 1620 | H154: =G154 -> 1620 | I154: =H154 -> 1620 | J154: =I154 -> 1620 | K154: =J154 -> 1620 | L154: =K154 -> 1620
B155: Adicional Insalubridade | C155: 1.4 | D155: =C155 -> 1.4 | E155: 1.4 | F155: 1.4 | G155: 1.4 | H155: 1.4 | I155: 1.4 | J155: 1.4 | K155: 1.4 | L155: 1.4
B156: Encargos Sociais | C156: 1.65 | D156: =C156 -> 1.65 | E156: 1.65 | F156: 1.65 | G156: 1.65 | H156: 1.65 | I156: 1.65 | J156: 1.65 | K156: 1.65 | L156: 1.65
B157: Benefícios | C157: 700 | D157: =C157 -> 700 | E157: 700 | F157: 700 | G157: 700 | H157: 700 | I157: 700 | J157: 700 | K157: 700 | L157: 700
B158: Auxiliar Limpeza | C158: =C159*C162 -> 28272.174 | D158: 28272.174 | E158: 28272.174 | F158: 28272.174 | G158: 28272.174 | H158: 28272.174 | I158: 28272.174 | J158: 28272.174 | K158: 28272.174 | L158: 28272.174
B159: Funcionários Equivalentes | C159: =C160*C161 -> 7.404 | D159: =D160*D161 -> 7.404 | E159: 7.404 | F159: 7.404 | G159: 7.404 | H159: 7.404 | I159: 7.404 | J159: 7.404 | K159: 7.404 | L159: 7.404
B160: Quantidade de funcionários sem reposição | C160: 6 | D160: =C160 -> 6 | E160: =D160 -> 6 | F160: =E160 -> 6 | G160: =F160 -> 6 | H160: =G160 -> 6 | I160: =H160 -> 6 | J160: =I160 -> 6 | K160: =J160 -> 6 | L160: =K160 -> 6
B161: Índice de Reposição para folgas e férias | C161: 1.234 | D161: =C161 -> 1.234 | E161: 1.234 | F161: 1.234 | G161: 1.234 | H161: 1.234 | I161: 1.234 | J161: 1.234 | K161: 1.234 | L161: 1.234
B162: Salários Com Encargos e Benefícios | C162: =(C163*C164*C165)+C166 -> 3818.5 | D162: =(D163*D164*D165)+D166 -> 3818.5 | E162: 3818.5 | F162: 3818.5 | G162: 3818.5 | H162: 3818.5 | I162: 3818.5 | J162: 3818.5 | K162: 3818.5 | L162: 3818.5
B163: Salário Base | C163: 1350 | D163: =C163 -> 1350 | E163: =D163 -> 1350 | F163: =E163 -> 1350 | G163: =F163 -> 1350 | H163: =G163 -> 1350 | I163: =H163 -> 1350 | J163: =I163 -> 1350 | K163: =J163 -> 1350 | L163: =K163 -> 1350
B164: Adicional Insalubridade | C164: 1.4 | D164: =C164 -> 1.4 | E164: 1.4 | F164: 1.4 | G164: 1.4 | H164: 1.4 | I164: 1.4 | J164: 1.4 | K164: 1.4 | L164: 1.4
B165: Encargos Sociais | C165: 1.65 | D165: =C165 -> 1.65 | E165: 1.65 | F165: 1.65 | G165: 1.65 | H165: 1.65 | I165: 1.65 | J165: 1.65 | K165: 1.65 | L165: 1.65
B166: Benefícios | C166: 700 | D166: =C166 -> 700 | E166: 700 | F166: 700 | G166: 700 | H166: 700 | I166: 700 | J166: 700 | K166: 700 | L166: 700
B167: Porteiro e Vigia | C167: =C168*C171 -> 14935.79 | D167: 14935.79 | E167: 14935.79 | F167: 14935.79 | G167: 14935.79 | H167: 14935.79 | I167: 14935.79 | J167: 14935.79 | K167: 14935.79 | L167: 14935.79
B168: Funcionários Equivalentes | C168: =C169*C170 -> 4.364 | D168: =D169*D170 -> 4.364 | E168: 4.364 | F168: 4.364 | G168: 4.364 | H168: 4.364 | I168: 4.364 | J168: 4.364 | K168: 4.364 | L168: 4.364
B169: Quantidade de funcionários sem reposição | C169: 4 | D169: =C169 -> 4 | E169: =D169 -> 4 | F169: =E169 -> 4 | G169: =F169 -> 4 | H169: =G169 -> 4 | I169: =H169 -> 4 | J169: =I169 -> 4 | K169: =J169 -> 4 | L169: =K169 -> 4
B170: Índice de Reposição para folgas e férias | C170: 1.091 | D170: =C170 -> 1.091 | E170: 1.091 | F170: 1.091 | G170: 1.091 | H170: 1.091 | I170: 1.091 | J170: 1.091 | K170: 1.091 | L170: 1.091
B171: Salários Com Encargos e Benefícios | C171: =(C172*C173*C174)+C175 -> 3422.5 | D171: =(D172*D173*D174)+D175 -> 3422.5 | E171: 3422.5 | F171: 3422.5 | G171: 3422.5 | H171: 3422.5 | I171: 3422.5 | J171: 3422.5 | K171: 3422.5 | L171: 3422.5
B172: Salário Base | C172: 1650 | D172: =C172 -> 1650 | E172: =D172 -> 1650 | F172: =E172 -> 1650 | G172: =F172 -> 1650 | H172: =G172 -> 1650 | I172: =H172 -> 1650 | J172: =I172 -> 1650 | K172: =J172 -> 1650 | L172: =K172 -> 1650
B173: Adicional Insalubridade | C173: 1 | D173: =C173 -> 1 | E173: 1 | F173: 1 | G173: 1 | H173: 1 | I173: 1 | J173: 1 | K173: 1 | L173: 1
B174: Encargos Sociais | C174: 1.65 | D174: =C174 -> 1.65 | E174: 1.65 | F174: 1.65 | G174: 1.65 | H174: 1.65 | I174: 1.65 | J174: 1.65 | K174: 1.65 | L174: 1.65
B175: Benefícios | C175: 700 | D175: =C175 -> 700 | E175: 700 | F175: 700 | G175: 700 | H175: 700 | I175: 700 | J175: 700 | K175: 700 | L175: 700
B176: Atendente | C176: =C177*C180 -> 8446.73 | D176: 8446.73 | E176: 8446.73 | F176: 8446.73 | G176: 8446.73 | H176: 8446.73 | I176: 8446.73 | J176: 8446.73 | K176: 8446.73 | L176: 8446.73
B177: Funcionários Equivalentes | C177: =C178*C179 -> 2.468 | D177: =D178*D179 -> 2.468 | E177: 2.468 | F177: 2.468 | G177: 2.468 | H177: 2.468 | I177: 2.468 | J177: 2.468 | K177: 2.468 | L177: 2.468
B178: Quantidade de funcionários sem reposição | C178: 2 | D178: =C178 -> 2 | E178: =D178 -> 2 | F178: =E178 -> 2 | G178: =F178 -> 2 | H178: =G178 -> 2 | I178: =H178 -> 2 | J178: =I178 -> 2 | K178: =J178 -> 2 | L178: =K178 -> 2
B179: Índice de Reposição para folgas e férias | C179: 1.234 | D179: =C179 -> 1.234 | E179: 1.234 | F179: 1.234 | G179: 1.234 | H179: 1.234 | I179: 1.234 | J179: 1.234 | K179: 1.234 | L179: 1.234
B180: Salários Com Encargos e Benefícios | C180: =(C181*C182*C183)+C184 -> 3422.5 | D180: =(D181*D182*D183)+D184 -> 3422.5 | E180: 3422.5 | F180: 3422.5 | G180: 3422.5 | H180: 3422.5 | I180: 3422.5 | J180: 3422.5 | K180: 3422.5 | L180: 3422.5
B181: Salário Base | C181: 1650 | D181: =C181 -> 1650 | E181: =D181 -> 1650 | F181: =E181 -> 1650 | G181: =F181 -> 1650 | H181: =G181 -> 1650 | I181: =H181 -> 1650 | J181: =I181 -> 1650 | K181: =J181 -> 1650 | L181: =K181 -> 1650
B182: Adicional Insalubridade | C182: 1 | D182: =C182 -> 1 | E182: 1 | F182: 1 | G182: 1 | H182: 1 | I182: 1 | J182: 1 | K182: 1 | L182: 1
B183: Encargos Sociais | C183: 1.65 | D183: =C183 -> 1.65 | E183: 1.65 | F183: 1.65 | G183: 1.65 | H183: 1.65 | I183: 1.65 | J183: 1.65 | K183: 1.65 | L183: 1.65
B184: Benefícios | C184: 700 | D184: =C184 -> 700 | E184: 700 | F184: 700 | G184: 700 | H184: 700 | I184: 700 | J184: 700 | K184: 700 | L184: 700
B185: Manutenção | C185: =C186*C189 -> 18522.34 | D185: 18522.34 | E185: 18522.34 | F185: 18522.34 | G185: 18522.34 | H185: 18522.34 | I185: 18522.34 | J185: 18522.34 | K185: 18522.34 | L185: 18522.34
B186: Funcionários Equivalentes | C186: =C187*C188 -> 4.936 | D186: =D187*D188 -> 4.936 | E186: 4.936 | F186: 4.936 | G186: 4.936 | H186: 4.936 | I186: 4.936 | J186: 4.936 | K186: 4.936 | L186: 4.936
B187: Quantidade de funcionários sem reposição | C187: 4 | D187: =C187 -> 4 | E187: =D187 -> 4 | F187: =E187 -> 4 | G187: =F187 -> 4 | H187: =G187 -> 4 | I187: =H187 -> 4 | J187: =I187 -> 4 | K187: =J187 -> 4 | L187: =K187 -> 4
B188: Índice de Reposição para folgas e férias | C188: 1.234 | D188: =C188 -> 1.234 | E188: 1.234 | F188: 1.234 | G188: 1.234 | H188: 1.234 | I188: 1.234 | J188: 1.234 | K188: 1.234 | L188: 1.234
B189: Salários Com Encargos e Benefícios | C189: =(C190*C191*C192)+C193 -> 3752.5 | D189: =(D190*D191*D192)+D193 -> 3752.5 | E189: 3752.5 | F189: 3752.5 | G189: 3752.5 | H189: 3752.5 | I189: 3752.5 | J189: 3752.5 | K189: 3752.5 | L189: 3752.5
B190: Salário Base | C190: 1850 | D190: =C190 -> 1850 | E190: =D190 -> 1850 | F190: =E190 -> 1850 | G190: =F190 -> 1850 | H190: =G190 -> 1850 | I190: =H190 -> 1850 | J190: =I190 -> 1850 | K190: =J190 -> 1850 | L190: =K190 -> 1850
B191: Adicional Insalubridade | C191: 1 | D191: =C191 -> 1 | E191: 1 | F191: 1 | G191: 1 | H191: 1 | I191: 1 | J191: 1 | K191: 1 | L191: 1
B192: Encargos Sociais | C192: 1.65 | D192: =C192 -> 1.65 | E192: 1.65 | F192: 1.65 | G192: 1.65 | H192: 1.65 | I192: 1.65 | J192: 1.65 | K192: 1.65 | L192: 1.65
B193: Benefícios | C193: 700 | D193: =C193 -> 700 | E193: 700 | F193: 700 | G193: 700 | H193: 700 | I193: 700 | J193: 700 | K193: 700 | L193: 700
B194: Jardineiro | C194: =C195*C198 -> 7225.07 | D194: 7225.07 | E194: 7225.07 | F194: 7225.07 | G194: 7225.07 | H194: 7225.07 | I194: 7225.07 | J194: 7225.07 | K194: 7225.07 | L194: 7225.07
B195: Funcionários Equivalentes | C195: =C196*C197 -> 2.468 | D195: =D196*D197 -> 2.468 | E195: 2.468 | F195: 2.468 | G195: 2.468 | H195: 2.468 | I195: 2.468 | J195: 2.468 | K195: 2.468 | L195: 2.468
B196: Quantidade de funcionários sem reposição | C196: 2 | D196: =C196 -> 2 | E196: =D196 -> 2 | F196: =E196 -> 2 | G196: =F196 -> 2 | H196: =G196 -> 2 | I196: =H196 -> 2 | J196: =I196 -> 2 | K196: =J196 -> 2 | L196: =K196 -> 2
B197: Índice de Reposição para folgas e férias | C197: 1.234 | D197: =C197 -> 1.234 | E197: 1.234 | F197: 1.234 | G197: 1.234 | H197: 1.234 | I197: 1.234 | J197: 1.234 | K197: 1.234 | L197: 1.234
B198: Salários Com Encargos e Benefícios | C198: =(C199*C200*C201)+C202 -> 2927.5 | D198: =(D199*D200*D201)+D202 -> 2927.5 | E198: 2927.5 | F198: 2927.5 | G198: 2927.5 | H198: 2927.5 | I198: 2927.5 | J198: 2927.5 | K198: 2927.5 | L198: 2927.5
B199: Salário Base | C199: 1350 | D199: =C199 -> 1350 | E199: =D199 -> 1350 | F199: =E199 -> 1350 | G199: =F199 -> 1350 | H199: =G199 -> 1350 | I199: =H199 -> 1350 | J199: =I199 -> 1350 | K199: =J199 -> 1350 | L199: =K199 -> 1350
B200: Adicional Insalubridade | C200: 1 | D200: =C200 -> 1 | E200: 1 | F200: 1 | G200: 1 | H200: 1 | I200: 1 | J200: 1 | K200: 1 | L200: 1
B201: Encargos Sociais | C201: 1.65 | D201: =C201 -> 1.65 | E201: 1.65 | F201: 1.65 | G201: 1.65 | H201: 1.65 | I201: 1.65 | J201: 1.65 | K201: 1.65 | L201: 1.65
B202: Benefícios | C202: 700 | D202: =C202 -> 700 | E202: 700 | F202: 700 | G202: 700 | H202: 700 | I202: 700 | J202: 700 | K202: 700 | L202: 700
B204: Materiais | C204: =12*5000/10^6 -> 0.06 | D204: =C204 -> 0.06 | E204: =D204 -> 0.06 | F204: 0.06 | G204: 0.06 | H204: 0.06 | I204: 0.06 | J204: 0.06 | K204: 0.06 | L204: 0.06 | N204: =SUM(C204:L204) -> 0.6
B206: Custos Indiretos | C206: =(C207+C208)*C209 -> 0.2800963608 | D206: =(D207+D208)*D209 -> 0.2800963608 | E206: =(E207+E208)*E209 -> 0.2800963608 | F206: =(F207+F208)*F209 -> 0.2800963608 | G206: =(G207+G208)*G209 -> 0.2800963608 | H206: =(H207+H208)*H209 -> 0.2800963608 | I206: =(I207+I208)*I209 -> 0.2800963608 | J206: =(J207+J208)*J209 -> 0.2800963608 | K206: =(K207+K208)*K209 -> 0.2800963608 | L206: =(L207+L208)*L209 -> 0.2800963608 | M206: 0.1 | N206: =SUM(C206:L206) -> 2.800963608
B207: Custos com Pessoal (R$) | C207: =C148 -> 1.060385443 | D207: 1.060385443 | E207: 1.060385443 | F207: 1.060385443 | G207: 1.060385443 | H207: 1.060385443 | I207: 1.060385443 | J207: 1.060385443 | K207: 1.060385443 | L207: 1.060385443
B208: Custos com Materiais (R$) | C208: =C204 -> 0.06 | D208: =D204 -> 0.06 | E208: 0.06 | F208: 0.06 | G208: 0.06 | H208: 0.06 | I208: 0.06 | J208: 0.06 | K208: 0.06 | L208: 0.06
B209: Incidência (%) | C209: 0.25 | D209: 0.25 | E209: 0.25 | F209: 0.25 | G209: 0.25 | H209: 0.25 | I209: 0.25 | J209: 0.25 | K209: 0.25 | L209: 0.25
B211: Eletricidade, Água e Esgoto | C211: =12*8000/10^6 -> 0.096 | D211: =C211 -> 0.096 | E211: =D211 -> 0.096 | F211: 0.096 | G211: 0.096 | H211: 0.096 | I211: 0.096 | J211: 0.096 | K211: 0.096 | L211: 0.096 | M211: 0.1 | N211: =SUM(C211:L211) -> 0.96
B213: Terminal Nova Rússia | C213: =(C215+C271+C273+C278)*(1+$P$10) -> 1.496481804 | D213: 1.496481804 | E213: 1.496481804 | F213: 1.496481804 | G213: 1.496481804 | H213: 1.496481804 | I213: 1.496481804 | J213: 1.496481804 | K213: 1.496481804 | L213: 1.496481804 | N213: =SUM(C213:L213) -> 14.96481804
B215: Mão de Obra | C215: =12*(C216+C225+C234+C243+C252+C261)/10^6 -> 1.060385443 | D215: =12*(D216+D225+D234+D243+D252+D261)/10^6 -> 1.060385443 | E215: =12*(E216+E225+E234+E243+E252+E261)/10^6 -> 1.060385443 | F215: =12*(F216+F225+F234+F243+F252+F261)/10^6 -> 1.060385443 | G215: =12*(G216+G225+G234+G243+G252+G261)/10^6 -> 1.060385443 | H215: =12*(H216+H225+H234+H243+H252+H261)/10^6 -> 1.060385443 | I215: =12*(I216+I225+I234+I243+I252+I261)/10^6 -> 1.060385443 | J215: =12*(J216+J225+J234+J243+J252+J261)/10^6 -> 1.060385443 | K215: =12*(K216+K225+K234+K243+K252+K261)/10^6 -> 1.060385443 | L215: =12*(L216+L225+L234+L243+L252+L261)/10^6 -> 1.060385443 | N215: =SUM(C215:L215) -> 10.60385443
B216: Líder Limpeza | C216: =C217*C220 -> 10963.3496 | D216: 10963.3496 | E216: 10963.3496 | F216: 10963.3496 | G216: 10963.3496 | H216: 10963.3496 | I216: 10963.3496 | J216: 10963.3496 | K216: 10963.3496 | L216: 10963.3496
B217: Funcionários Equivalentes | C217: =C218*C219 -> 2.468 | D217: =D218*D219 -> 2.468 | E217: 2.468 | F217: 2.468 | G217: 2.468 | H217: 2.468 | I217: 2.468 | J217: 2.468 | K217: 2.468 | L217: 2.468
B218: Quantidade de funcionários sem reposição | C218: 2 | D218: =C218 -> 2 | E218: =D218 -> 2 | F218: =E218 -> 2 | G218: =F218 -> 2 | H218: =G218 -> 2 | I218: =H218 -> 2 | J218: =I218 -> 2 | K218: =J218 -> 2 | L218: =K218 -> 2
B219: Índice de Reposição para folgas e férias | C219: 1.234 | D219: =C219 -> 1.234 | E219: 1.234 | F219: 1.234 | G219: 1.234 | H219: 1.234 | I219: 1.234 | J219: 1.234 | K219: 1.234 | L219: 1.234
B220: Salários Com Encargos e Benefícios | C220: =(C221*C222*C223)+C224 -> 4442.2 | D220: =(D221*D222*D223)+D224 -> 4442.2 | E220: 4442.2 | F220: 4442.2 | G220: 4442.2 | H220: 4442.2 | I220: 4442.2 | J220: 4442.2 | K220: 4442.2 | L220: 4442.2
B221: Salário Base | C221: 1620 | D221: =C221 -> 1620 | E221: =D221 -> 1620 | F221: =E221 -> 1620 | G221: =F221 -> 1620 | H221: =G221 -> 1620 | I221: =H221 -> 1620 | J221: =I221 -> 1620 | K221: =J221 -> 1620 | L221: =K221 -> 1620
B222: Adicional Insalubridade | C222: 1.4 | D222: =C222 -> 1.4 | E222: 1.4 | F222: 1.4 | G222: 1.4 | H222: 1.4 | I222: 1.4 | J222: 1.4 | K222: 1.4 | L222: 1.4
B223: Encargos Sociais | C223: 1.65 | D223: =C223 -> 1.65 | E223: 1.65 | F223: 1.65 | G223: 1.65 | H223: 1.65 | I223: 1.65 | J223: 1.65 | K223: 1.65 | L223: 1.65
B224: Benefícios | C224: 700 | D224: =C224 -> 700 | E224: 700 | F224: 700 | G224: 700 | H224: 700 | I224: 700 | J224: 700 | K224: 700 | L224: 700
... 157 more rows

Sheet 08. (a)TRIBUTOS LREAL
O1: REGIME | P1: PIS | Q1: COFINS | R1: IR | S1: CS | T1: ISS | U1: INSS | V1: RESEGE
O2: REAL | P2: 0 | Q2: 0 | R2: 0.25 | S2: 0.09 | T2: 0.02 | U2: 0 | V2: 0
B6: Tributos Agregados (R$ Milhões)
B8: ANO | C8: 1 | D8: 2 | E8: 3 | F8: 4 | G8: 5 | H8: 6 | I8: 7 | J8: 8 | K8: 9 | L8: 10 | N8: Total
B10: Receitas | C10: =C12+C13+C14+C15+C16+C17+C18 -> 8.348259756 | D10: =D12+D13+D14+D15+D16+D17+D18 -> 16.69651951 | E10: 16.69651951 | F10: 16.69651951 | G10: 16.69651951 | H10: 16.69651951 | I10: 16.69651951 | J10: 16.69651951 | K10: 16.69651951 | L10: 16.69651951 | N10: =SUM(C10:L10) -> 158.6169354
B12: Receita de Aluguel - Tarifária | C12: ='09. RECEITA'!C12 -> 8.348259756 | D12: ='09. RECEITA'!D12 -> 16.69651951 | E12: ='09. RECEITA'!E12 -> 16.69651951 | F12: ='09. RECEITA'!F12 -> 16.69651951 | G12: ='09. RECEITA'!G12 -> 16.69651951 | H12: ='09. RECEITA'!H12 -> 16.69651951 | I12: ='09. RECEITA'!I12 -> 16.69651951 | J12: ='09. RECEITA'!J12 -> 16.69651951 | K12: ='09. RECEITA'!K12 -> 16.69651951 | L12: ='09. RECEITA'!L12 -> 16.69651951 | N12: =SUM(C12:L12) -> 158.6169354
B13: Receita de Aluguel - Terminal Central | C13: ='09. RECEITA'!C19 -> 0 | D13: ='09. RECEITA'!D19 -> 0 | E13: ='09. RECEITA'!E19 -> 0 | F13: ='09. RECEITA'!F19 -> 0 | G13: ='09. RECEITA'!G19 -> 0 | H13: ='09. RECEITA'!H19 -> 0 | I13: ='09. RECEITA'!I19 -> 0 | J13: ='09. RECEITA'!J19 -> 0 | K13: ='09. RECEITA'!K19 -> 0 | L13: ='09. RECEITA'!L19 -> 0 | N13: 0
B14: Receita de Aluguel - Terminal Uvaranas | C14: ='09. RECEITA'!C31 -> 0 | D14: ='09. RECEITA'!D31 -> 0 | E14: ='09. RECEITA'!E31 -> 0 | F14: ='09. RECEITA'!F31 -> 0 | G14: ='09. RECEITA'!G31 -> 0 | H14: ='09. RECEITA'!H31 -> 0 | I14: ='09. RECEITA'!I31 -> 0 | J14: ='09. RECEITA'!J31 -> 0 | K14: ='09. RECEITA'!K31 -> 0 | L14: ='09. RECEITA'!L31 -> 0 | N14: 0
B15: Receita de Aluguel - Terminal Oficinas | C15: ='09. RECEITA'!C43 -> 0 | D15: ='09. RECEITA'!D43 -> 0 | E15: ='09. RECEITA'!E43 -> 0 | F15: ='09. RECEITA'!F43 -> 0 | G15: ='09. RECEITA'!G43 -> 0 | H15: ='09. RECEITA'!H43 -> 0 | I15: ='09. RECEITA'!I43 -> 0 | J15: ='09. RECEITA'!J43 -> 0 | K15: ='09. RECEITA'!K43 -> 0 | L15: ='09. RECEITA'!L43 -> 0 | N15: 0
B16: Receita de Aluguel - Terminal Nova Rússia | C16: ='09. RECEITA'!C55 -> 0 | D16: ='09. RECEITA'!D55 -> 0 | E16: ='09. RECEITA'!E55 -> 0 | F16: ='09. RECEITA'!F55 -> 0 | G16: ='09. RECEITA'!G55 -> 0 | H16: ='09. RECEITA'!H55 -> 0 | I16: ='09. RECEITA'!I55 -> 0 | J16: ='09. RECEITA'!J55 -> 0 | K16: ='09. RECEITA'!K55 -> 0 | L16: ='09. RECEITA'!L55 -> 0 | N16: 0
B17: Receita de Aluguel - Terminal Santa Paula | C17: ='09. RECEITA'!C67 -> 0 | D17: ='09. RECEITA'!D67 -> 0 | E17: ='09. RECEITA'!E67 -> 0 | F17: ='09. RECEITA'!F67 -> 0 | G17: ='09. RECEITA'!G67 -> 0 | H17: ='09. RECEITA'!H67 -> 0 | I17: ='09. RECEITA'!I67 -> 0 | J17: ='09. RECEITA'!J67 -> 0 | K17: ='09. RECEITA'!K67 -> 0 | L17: ='09. RECEITA'!L67 -> 0 | N17: 0
B18: Receita de Aluguel - TEI | C18: ='09. RECEITA'!C77 -> 0 | D18: ='09. RECEITA'!D77 -> 0 | E18: ='09. RECEITA'!E77 -> 0 | F18: ='09. RECEITA'!F77 -> 0 | G18: ='09. RECEITA'!G77 -> 0 | H18: ='09. RECEITA'!H77 -> 0 | I18: ='09. RECEITA'!I77 -> 0 | J18: ='09. RECEITA'!J77 -> 0 | K18: ='09. RECEITA'!K77 -> 0 | L18: ='09. RECEITA'!L77 -> 0 | N18: 0
B20: ISS | C20: =$T$2*C10 -> 0.1669651951 | D20: =$T$2*D10 -> 0.3339303903 | E20: 0.3339303903 | F20: 0.3339303903 | G20: 0.3339303903 | H20: 0.3339303903 | I20: 0.3339303903 | J20: 0.3339303903 | K20: 0.3339303903 | L20: 0.3339303903 | N20: =SUM(C20:L20) -> 3.172338707
B23: Opex Total | C23: ='07. OPEX'!C10 -> 7.37793099 | D23: ='07. OPEX'!D10 -> 8.874412794 | E23: ='07. OPEX'!E10 -> 8.874412794 | F23: ='07. OPEX'!F10 -> 8.874412794 | G23: ='07. OPEX'!G10 -> 8.874412794 | H23: ='07. OPEX'!H10 -> 8.874412794 | I23: ='07. OPEX'!I10 -> 8.874412794 | J23: ='07. OPEX'!J10 -> 8.874412794 | K23: ='07. OPEX'!K10 -> 8.874412794 | L23: ='07. OPEX'!L10 -> 8.874412794 | N23: =SUM(C23:L23) -> 87.24764614
B25: Depreciação Real | C25: ='04. D&A Fiscal'!C193 -> 3.686951338 | D25: ='04. D&A Fiscal'!D193 -> 3.57089718 | E25: ='04. D&A Fiscal'!E193 -> 3.466890466 | F25: ='04. D&A Fiscal'!F193 -> 3.365913073 | G25: ='04. D&A Fiscal'!G193 -> 3.26787677 | H25: ='04. D&A Fiscal'!H193 -> 3.172695894 | I25: ='04. D&A Fiscal'!I193 -> 3.080287275 | J25: ='04. D&A Fiscal'!J193 -> 2.99057017 | K25: ='04. D&A Fiscal'!K193 -> 2.903466185 | L25: ='04. D&A Fiscal'!L193 -> 2.818899208 | N25: =SUM(C25:L25) -> 32.32444756
B27: LAIR | C27: =C10-C25-C20-C23 -> -2.883587767 | D27: =D10-D25-D20-D23 -> 3.917279149 | E27: 4.021285863 | F27: 4.122263255 | G27: 4.220299558 | H27: 4.315480435 | I27: 4.407889053 | J27: 4.497606158 | K27: 4.584710144 | L27: 4.66927712 | N27: =SUM(C27:L27) -> 35.87250297
B29: ANO | C29: 1 | D29: 2 | E29: 3 | F29: 4 | G29: 5 | H29: 6 | I29: 7 | J29: 8 | K29: 9 | L29: 10 | N29: Total
B31: IRPJ/CSLL | C31: =IF(C27>0,C56-C54,0) -> 0 | D31: 0.9323124374 | E31: 0.9570660353 | F31: 1.281369298 | G31: 1.43490185 | H31: 1.467263348 | I31: 1.498682278 | J31: 1.529186094 | K31: 1.558801449 | L31: 1.587554221 | N31: =SUM(C31:L31) -> 12.24713701
B33: Alíquotas Efetivas (%) | C33: =IFERROR(IF(C27<0,0,C31/C27),0) -> 0 | D33: =IFERROR(IF(D27<0,0,D31/D27),0) -> 0.238 | E33: 0.238 | F33: 0.3108412099 | G33: 0.34 | H33: 0.34 | I33: 0.34 | J33: 0.34 | K33: 0.34 | L33: 0.34 | N33: =SUM(C33:L33) -> 2.82684121
B35: Criação de Crédito Tributário | C35: =IF(C27<0,-C27*($R$2+$S$2),0) -> 0.9804198407 | D35: 0 | E35: 0 | F35: 0 | G35: 0 | H35: 0 | I35: 0 | J35: 0 | K35: 0 | L35: 0 | N35: =SUM(C35:L35) -> 0.9804198407
B37: Estoque de Crédito Tributário | C37: =C39 -> 0.9804198407 | D37: =C37/(1+D58)^1+D39-D54 -> 0.5499966946 | E37: 0.1238062153 | F37: 0 | G37: 0 | H37: 0 | I37: 0 | J37: 0 | K37: 0 | L37: 0 | N37: =SUM(C37:L37) -> 1.654222751
B39: Crédito Tributário | C39: =SUM(C41:C50) -> 0.9804198407 | D39: 0 | E39: 0 | F39: 0 | G39: 0 | H39: 0 | I39: 0 | J39: 0 | K39: 0 | L39: 0 | N39: =SUM(C39:L39) -> 0.9804198407
B41: 1 | C41: =C$35 -> 0.9804198407 | N41: =SUM(C41:L41) -> 0.9804198407
B42: 2 | D42: =D$35 -> 0 | N42: 0
B43: 3 | E43: =E$35 -> 0 | N43: 0
B44: 4 | F44: =F$35 -> 0 | N44: 0
B45: 5 | G45: =G$35 -> 0 | N45: 0
B46: 6 | H46: =H$35 -> 0 | N46: 0
B47: 7 | I47: =I$35 -> 0 | N47: 0
B48: 8 | J48: =J$35 -> 0 | N48: 0
B49: 9 | K49: =K$35 -> 0 | N49: 0
B50: 10 | L50: =L$35 -> 0 | N50: 0
B52: Direito de Uso de Crédito Tributário | C52: =IF(C27>0,C27*($R$2+$S$2)*0.3,0) -> 0 | D52: 0.3995624732 | E52: 0.410171158 | F52: 0.420470852 | G52: 0.4304705549 | H52: 0.4401790044 | I52: 0.4496046834 | J52: 0.4587558281 | K52: 0.4676404347 | L52: 0.4762662662 | N52: =SUM(C52:L52) -> 3.953121255
B54: Uso de Crédito Tributário Real | C54: =IF(C27>0,0,C52) -> 0 | D54: =IF(D52>0,IF(C37/((1+D58)^1)>0,IF(D52-C37/((1+D58)^1)>0,C37/((1+D58)^1),D52),0),0) -> 0.3995624732 | E54: 0.410171158 | F54: 0.1202002091 | G54: 0 | H54: 0 | I54: 0 | J54: 0 | K54: 0 | L54: 0 | N54: =SUM(C54:L54) -> 0.9299338403
B56: Despesas Tributárias | C56: =IF(C27>0,C27*($R$2+$S$2),0) -> 0 | D56: 1.331874911 | E56: 1.367237193 | F56: 1.401569507 | G56: 1.43490185 | H56: 1.467263348 | I56: 1.498682278 | J56: 1.529186094 | K56: 1.558801449 | L56: 1.587554221 | N56: =SUM(C56:L56) -> 13.17707085
B58: Inflação Anual | C58: ='01. PC'!C45 -> 0.0501 | D58: ='01. PC'!D45 -> 0.0325 | E58: ='01. PC'!E45 -> 0.03 | F58: ='01. PC'!F45 -> 0.03 | G58: ='01. PC'!G45 -> 0.03 | H58: ='01. PC'!H45 -> 0.03 | I58: ='01. PC'!I45 -> 0.03 | J58: ='01. PC'!J45 -> 0.03 | K58: ='01. PC'!K45 -> 0.03 | L58: ='01. PC'!L45 -> 0.03
B60: Inflação Acumulada | C60: =C58 -> 0.0501 | D60: =(1+D58)*(1+C60)-1 -> 0.08422825 | E60: =(1+E58)*(1+D60)-1 -> 0.1167550975 | F60: 0.1502577504 | G60: 0.1847654829 | H60: 0.2203084474 | I60: 0.2569177008 | J60: 0.2946252319 | K60: 0.3334639888 | L60: 0.3734679085
B62: Simulação VPL - Regime Lucro Real - R$ Milhões
B64: Receita | C64: ='02 (a). FCL Agregado'!C12 -> 8.348259756 | D64: ='02 (a). FCL Agregado'!D12 -> 16.69651951 | E64: ='02 (a). FCL Agregado'!E12 -> 16.69651951 | F64: ='02 (a). FCL Agregado'!F12 -> 16.69651951 | G64: ='02 (a). FCL Agregado'!G12 -> 16.69651951 | H64: ='02 (a). FCL Agregado'!H12 -> 16.69651951 | I64: ='02 (a). FCL Agregado'!I12 -> 16.69651951 | J64: ='02 (a). FCL Agregado'!J12 -> 16.69651951 | K64: ='02 (a). FCL Agregado'!K12 -> 16.69651951 | L64: ='02 (a). FCL Agregado'!L12 -> 16.69651951 | N64: =SUM(C64:L64) -> 158.6169354
B66: Opex | C66: ='02 (a). FCL Agregado'!C22 -> -7.37793099 | D66: ='02 (a). FCL Agregado'!D22 -> -8.874412794 | E66: ='02 (a). FCL Agregado'!E22 -> -8.874412794 | F66: ='02 (a). FCL Agregado'!F22 -> -8.874412794 | G66: ='02 (a). FCL Agregado'!G22 -> -8.874412794 | H66: ='02 (a). FCL Agregado'!H22 -> -8.874412794 | I66: ='02 (a). FCL Agregado'!I22 -> -8.874412794 | J66: ='02 (a). FCL Agregado'!J22 -> -8.874412794 | K66: ='02 (a). FCL Agregado'!K22 -> -8.874412794 | L66: ='02 (a). FCL Agregado'!L22 -> -8.874412794 | N66: =SUM(C66:L66) -> -87.24764614
B68: CAPEX | C68: ='02 (a). FCL Agregado'!C31 -> -38.716676 | D68: ='02 (a). FCL Agregado'!D31 -> 0 | E68: ='02 (a). FCL Agregado'!E31 -> 0 | F68: ='02 (a). FCL Agregado'!F31 -> 0 | G68: ='02 (a). FCL Agregado'!G31 -> 0 | H68: ='02 (a). FCL Agregado'!H31 -> 0 | I68: ='02 (a). FCL Agregado'!I31 -> 0 | J68: ='02 (a). FCL Agregado'!J31 -> 0 | K68: ='02 (a). FCL Agregado'!K31 -> 0 | L68: ='02 (a). FCL Agregado'!L31 -> 0 | N68: =SUM(C68:L68) -> -38.716676
B70: Impostos Total | C70: =-(C20+C31) -> -0.1669651951 | D70: =-(D20+D31) -> -1.266242828 | E70: -1.290996426 | F70: -1.615299688 | G70: -1.76883224 | H70: -1.801193738 | I70: -1.832612668 | J70: -1.863116484 | K70: -1.892731839 | L70: -1.921484611 | N70: =SUM(C70:L70) -> -15.41947572
B72: NIG | C72: ='02 (a). FCL Agregado'!C46 -> 0 | D72: ='02 (a). FCL Agregado'!D46 -> 0 | E72: ='02 (a). FCL Agregado'!E46 -> 0 | F72: ='02 (a). FCL Agregado'!F46 -> 0 | G72: ='02 (a). FCL Agregado'!G46 -> 0 | H72: ='02 (a). FCL Agregado'!H46 -> 0 | I72: ='02 (a). FCL Agregado'!I46 -> 0 | J72: ='02 (a). FCL Agregado'!J46 -> 0 | K72: ='02 (a). FCL Agregado'!K46 -> 0 | L72: ='02 (a). FCL Agregado'!L46 -> 0 | N72: =SUM(C72:L72) -> 0
B74: Saldo Caixa | C74: =C64+C66+C68+C70+C72 -> -37.91331243 | D74: =D64+D66+D68+D70+D72 -> 6.555863891 | E74: 6.531110293 | F74: 6.206807031 | G74: 6.053274479 | H74: 6.020912981 | I74: 5.98949405 | J74: 5.958990235 | K74: 5.92937488 | L74: 5.900622108 | N74: =SUM(C74:L74) -> 17.23313752
B76: VPL - Ano 0 - Real | C76: =C74 -> -37.91331243 | D76: =D74/((1+D82)*(1+C86)) -> 5.57802851 | E76: 5.125818448 | F76: 4.493345836 | G76: 4.042196019 | H76: 3.70864065 | I76: 3.403046961 | J76: 3.123028005 | K76: 2.866404749 | L76: 2.631187567 | N76: =SUM(C76:L76) -> -2.941615684
B78: VPL - Ano 0 - Presumido | C78: ='08. (b)TRIBUTOS LPRESUMID'!C47 -> -38.82160309 | D78: ='08. (b)TRIBUTOS LPRESUMID'!D47 -> 4.730229475 | E78: ='08. (b)TRIBUTOS LPRESUMID'!E47 -> 4.363225016 | F78: ='08. (b)TRIBUTOS LPRESUMID'!F47 -> 4.024695343 | G78: ='08. (b)TRIBUTOS LPRESUMID'!G47 -> 3.712431182 | H78: ='08. (b)TRIBUTOS LPRESUMID'!H47 -> 3.42439467 | I78: ='08. (b)TRIBUTOS LPRESUMID'!I47 -> 3.158706056 | J78: ='08. (b)TRIBUTOS LPRESUMID'!J47 -> 2.913631433 | K78: ='08. (b)TRIBUTOS LPRESUMID'!K47 -> 2.687571421 | L78: ='08. (b)TRIBUTOS LPRESUMID'!L47 -> 2.479050735 | N78: =SUM(C78:L78) -> -7.327667757
B80: Regime escolhido | C80: =IF(C78>C76,"Pres.","Real") -> Real | D80: =IF(D78>D76,"Pres.","Real") -> Real | E80: Real | F80: Real | G80: Real | H80: Real | I80: Real | J80: Real | K80: Real | L80: Real
B82: WACC real | C82: ='01. PC'!$C$9 -> 0.08411311767 | D82: ='01. PC'!$C$9 -> 0.08411311767 | E82: ='01. PC'!$C$9 -> 0.08411311767 | F82: ='01. PC'!$C$9 -> 0.08411311767 | G82: ='01. PC'!$C$9 -> 0.08411311767 | H82: ='01. PC'!$C$9 -> 0.08411311767 | I82: ='01. PC'!$C$9 -> 0.08411311767 | J82: ='01. PC'!$C$9 -> 0.08411311767 | K82: ='01. PC'!$C$9 -> 0.08411311767 | L82: ='01. PC'!$C$9 -> 0.08411311767
B84: WACC Escohido | C84: =IF(C80="Real",C82,'08. (b)TRIBUTOS LPRESUMID'!C51) -> 0.08411311767 | D84: =IF(D80="Real",D82,'08. (b)TRIBUTOS LPRESUMID'!D51) -> 0.08411311767 | E84: =IF(E80="Real",E82,'08. (b)TRIBUTOS LPRESUMID'!E51) -> 0.08411311767 | F84: =IF(F80="Real",F82,'08. (b)TRIBUTOS LPRESUMID'!F51) -> 0.08411311767 | G84: =IF(G80="Real",G82,'08. (b)TRIBUTOS LPRESUMID'!G51) -> 0.08411311767 | H84: =IF(H80="Real",H82,'08. (b)TRIBUTOS LPRESUMID'!H51) -> 0.08411311767 | I84: =IF(I80="Real",I82,'08. (b)TRIBUTOS LPRESUMID'!I51) -> 0.08411311767 | J84: =IF(J80="Real",J82,'08. (b)TRIBUTOS LPRESUMID'!J51) -> 0.08411311767 | K84: =IF(K80="Real",K82,'08. (b)TRIBUTOS LPRESUMID'!K51) -> 0.08411311767 | L84: =IF(L80="Real",L82,'08. (b)TRIBUTOS LPRESUMID'!L51) -> 0.08411311767
B86: WACC Acumulado | C86: =IF(C80="Real",C82,'08. (b)TRIBUTOS LPRESUMID'!C55) -> 0.08411311767 | D86: =(1+C86)*(1+D84)-1 -> 0.1753012519 | E86: 0.2741595044 | F86: 0.3813330327 | G86: 0.4975212606 | H86: 0.6234824427 | I86: 0.7600386124 | J86: 0.9080809473 | K86: 1.068575585 | L86: 1.242569926

Sheet 08. (b)TRIBUTOS LPRESUMID
O1: REGIME | P1: PIS | Q1: COFINS | R1: IR | S1: CS | T1: ISS | U1: INSS | V1: RESEGE | W1: PRESUNÇÃO
O2: PRESUMIDO | P2: 0 | Q2: 0 | R2: 0.25 | S2: 0.09 | T2: 0.02 | U2: 0 | V2: 0 | W2: 0.32
B6: Tributos Agregados (R$ Milhões)
B8: ANO | C8: 1 | D8: 2 | E8: 3 | F8: 4 | G8: 5 | H8: 6 | I8: 7 | J8: 8 | K8: 9 | L8: 10 | N8: Total
B10: Receitas | C10: =SUM(C12:C18) -> 8.348259756 | D10: =SUM(D12:D18) -> 16.69651951 | E10: 16.69651951 | F10: 16.69651951 | G10: 16.69651951 | H10: 16.69651951 | I10: 16.69651951 | J10: 16.69651951 | K10: 16.69651951 | L10: 16.69651951 | N10: =SUM(C10:L10) -> 158.6169354
B12: Receita de Aluguel - Tarifária | C12: ='09. RECEITA'!C12 -> 8.348259756 | D12: ='09. RECEITA'!D12 -> 16.69651951 | E12: ='09. RECEITA'!E12 -> 16.69651951 | F12: ='09. RECEITA'!F12 -> 16.69651951 | G12: ='09. RECEITA'!G12 -> 16.69651951 | H12: ='09. RECEITA'!H12 -> 16.69651951 | I12: ='09. RECEITA'!I12 -> 16.69651951 | J12: ='09. RECEITA'!J12 -> 16.69651951 | K12: ='09. RECEITA'!K12 -> 16.69651951 | L12: ='09. RECEITA'!L12 -> 16.69651951
B13: Receita de Aluguel - Terminal Central | C13: ='09. RECEITA'!C19 -> 0 | D13: ='09. RECEITA'!D19 -> 0 | E13: ='09. RECEITA'!E19 -> 0 | F13: ='09. RECEITA'!F19 -> 0 | G13: ='09. RECEITA'!G19 -> 0 | H13: ='09. RECEITA'!H19 -> 0 | I13: ='09. RECEITA'!I19 -> 0 | J13: ='09. RECEITA'!J19 -> 0 | K13: ='09. RECEITA'!K19 -> 0 | L13: ='09. RECEITA'!L19 -> 0 | N13: =SUM(C13:L13) -> 0
B14: Receita de Aluguel - Terminal Uvaranas | C14: ='09. RECEITA'!C31 -> 0 | D14: ='09. RECEITA'!D31 -> 0 | E14: ='09. RECEITA'!E31 -> 0 | F14: ='09. RECEITA'!F31 -> 0 | G14: ='09. RECEITA'!G31 -> 0 | H14: ='09. RECEITA'!H31 -> 0 | I14: ='09. RECEITA'!I31 -> 0 | J14: ='09. RECEITA'!J31 -> 0 | K14: ='09. RECEITA'!K31 -> 0 | L14: ='09. RECEITA'!L31 -> 0 | N14: =SUM(C14:L14) -> 0
B15: Receita de Aluguel - Terminal Oficinas | C15: ='09. RECEITA'!C43 -> 0 | D15: ='09. RECEITA'!D43 -> 0 | E15: ='09. RECEITA'!E43 -> 0 | F15: ='09. RECEITA'!F43 -> 0 | G15: ='09. RECEITA'!G43 -> 0 | H15: ='09. RECEITA'!H43 -> 0 | I15: ='09. RECEITA'!I43 -> 0 | J15: ='09. RECEITA'!J43 -> 0 | K15: ='09. RECEITA'!K43 -> 0 | L15: ='09. RECEITA'!L43 -> 0 | N15: =SUM(C15:L15) -> 0
B16: Receita de Aluguel - Terminal Nova Rússia | C16: ='09. RECEITA'!C55 -> 0 | D16: ='09. RECEITA'!D55 -> 0 | E16: ='09. RECEITA'!E55 -> 0 | F16: ='09. RECEITA'!F55 -> 0 | G16: ='09. RECEITA'!G55 -> 0 | H16: ='09. RECEITA'!H55 -> 0 | I16: ='09. RECEITA'!I55 -> 0 | J16: ='09. RECEITA'!J55 -> 0 | K16: ='09. RECEITA'!K55 -> 0 | L16: ='09. RECEITA'!L55 -> 0 | N16: =SUM(C16:L16) -> 0
B17: Receita de Aluguel - Terminal Santa Paula | C17: ='09. RECEITA'!C67 -> 0 | D17: ='09. RECEITA'!D67 -> 0 | E17: ='09. RECEITA'!E67 -> 0 | F17: ='09. RECEITA'!F67 -> 0 | G17: ='09. RECEITA'!G67 -> 0 | H17: ='09. RECEITA'!H67 -> 0 | I17: ='09. RECEITA'!I67 -> 0 | J17: ='09. RECEITA'!J67 -> 0 | K17: ='09. RECEITA'!K67 -> 0 | L17: ='09. RECEITA'!L67 -> 0 | N17: =SUM(C17:L17) -> 0
B18: Receita de Aluguel - TEI | C18: ='09. RECEITA'!C77 -> 0 | D18: ='09. RECEITA'!D77 -> 0 | E18: ='09. RECEITA'!E77 -> 0 | F18: ='09. RECEITA'!F77 -> 0 | G18: ='09. RECEITA'!G77 -> 0 | H18: ='09. RECEITA'!H77 -> 0 | I18: ='09. RECEITA'!I77 -> 0 | J18: ='09. RECEITA'!J77 -> 0 | K18: ='09. RECEITA'!K77 -> 0 | L18: ='09. RECEITA'!L77 -> 0 | N18: =SUM(C18:L18) -> 0
B20: ISS | C20: =C12*$T$2 -> 0.1669651951 | D20: =D12*$T$2 -> 0.3339303903 | E20: 0.3339303903 | F20: 0.3339303903 | G20: 0.3339303903 | H20: 0.3339303903 | I20: 0.3339303903 | J20: 0.3339303903 | K20: 0.3339303903 | L20: 0.3339303903 | N20: =SUM(C20:L20) -> 3.172338707
B23: LAIR Presumido | C23: =C10*$W$2 -> 2.671443122 | D23: 5.342886244 | E23: 5.342886244 | F23: 5.342886244 | G23: 5.342886244 | H23: 5.342886244 | I23: 5.342886244 | J23: 5.342886244 | K23: 5.342886244 | L23: 5.342886244 | N23: =SUM(C23:L23) -> 50.75741932
B25: IRPJ/CSLL | C25: =IF(C23<=0,C23*0%,C23*($R$2+$S$2)) -> 0.9082906615 | D25: =IF(D23<=0,D23*0%,D23*($R$2+$S$2)) -> 1.816581323 | E25: 1.816581323 | F25: 1.816581323 | G25: 1.816581323 | H25: 1.816581323 | I25: 1.816581323 | J25: 1.816581323 | K25: 1.816581323 | L25: 1.816581323 | N25: =SUM(C25:L25) -> 17.25752257
B27: Total de Impostos (R$ Mil) | C27: =C25+C20 -> 1.075255857 | D27: =D25+D20 -> 2.150511713 | E27: 2.150511713 | F27: 2.150511713 | G27: 2.150511713 | H27: 2.150511713 | I27: 2.150511713 | J27: 2.150511713 | K27: 2.150511713 | L27: 2.150511713 | N27: =SUM(C27:L27) -> 20.42986128
B30: Simulação VPL - Regime Lucro Presumido - R$ Milhões
B33: Receita | C33: ='02 (a). FCL Agregado'!C12 -> 8.348259756 | D33: ='02 (a). FCL Agregado'!D12 -> 16.69651951 | E33: ='02 (a). FCL Agregado'!E12 -> 16.69651951 | F33: ='02 (a). FCL Agregado'!F12 -> 16.69651951 | G33: ='02 (a). FCL Agregado'!G12 -> 16.69651951 | H33: ='02 (a). FCL Agregado'!H12 -> 16.69651951 | I33: ='02 (a). FCL Agregado'!I12 -> 16.69651951 | J33: ='02 (a). FCL Agregado'!J12 -> 16.69651951 | K33: ='02 (a). FCL Agregado'!K12 -> 16.69651951 | L33: ='02 (a). FCL Agregado'!L12 -> 16.69651951 | N33: =SUM(C33:L33) -> 158.6169354
B35: Opex | C35: ='02 (a). FCL Agregado'!C22 -> -7.37793099 | D35: ='02 (a). FCL Agregado'!D22 -> -8.874412794 | E35: ='02 (a). FCL Agregado'!E22 -> -8.874412794 | F35: ='02 (a). FCL Agregado'!F22 -> -8.874412794 | G35: ='02 (a). FCL Agregado'!G22 -> -8.874412794 | H35: ='02 (a). FCL Agregado'!H22 -> -8.874412794 | I35: ='02 (a). FCL Agregado'!I22 -> -8.874412794 | J35: ='02 (a). FCL Agregado'!J22 -> -8.874412794 | K35: ='02 (a). FCL Agregado'!K22 -> -8.874412794 | L35: ='02 (a). FCL Agregado'!L22 -> -8.874412794 | N35: =SUM(C35:L35) -> -87.24764614
B37: CAPEX | C37: ='02 (a). FCL Agregado'!C31 -> -38.716676 | D37: ='02 (a). FCL Agregado'!D31 -> 0 | E37: ='02 (a). FCL Agregado'!E31 -> 0 | F37: ='02 (a). FCL Agregado'!F31 -> 0 | G37: ='02 (a). FCL Agregado'!G31 -> 0 | H37: ='02 (a). FCL Agregado'!H31 -> 0 | I37: ='02 (a). FCL Agregado'!I31 -> 0 | J37: ='02 (a). FCL Agregado'!J31 -> 0 | K37: ='02 (a). FCL Agregado'!K31 -> 0 | L37: ='02 (a). FCL Agregado'!L31 -> 0 | N37: =SUM(C37:L37) -> -38.716676
B39: Impostos Total | C39: =-C27 -> -1.075255857 | D39: =-D27 -> -2.150511713 | E39: -2.150511713 | F39: -2.150511713 | G39: -2.150511713 | H39: -2.150511713 | I39: -2.150511713 | J39: -2.150511713 | K39: -2.150511713 | L39: -2.150511713 | N39: =SUM(C39:L39) -> -20.42986128
B41: NIG | C41: ='02 (a). FCL Agregado'!C46 -> 0 | D41: ='02 (a). FCL Agregado'!D46 -> 0 | E41: ='02 (a). FCL Agregado'!E46 -> 0 | F41: ='02 (a). FCL Agregado'!F46 -> 0 | G41: ='02 (a). FCL Agregado'!G46 -> 0 | H41: ='02 (a). FCL Agregado'!H46 -> 0 | I41: ='02 (a). FCL Agregado'!I46 -> 0 | J41: ='02 (a). FCL Agregado'!J46 -> 0 | K41: ='02 (a). FCL Agregado'!K46 -> 0 | L41: ='02 (a). FCL Agregado'!L46 -> 0 | N41: =SUM(C41:L41) -> 0
B43: Saldo Caixa | C43: =C33+C35+C37+C39+C41 -> -38.82160309 | D43: =D33+D35+D37+D39+D41 -> 5.671595005 | E43: 5.671595005 | F43: 5.671595005 | G43: 5.671595005 | H43: 5.671595005 | I43: 5.671595005 | J43: 5.671595005 | K43: 5.671595005 | L43: 5.671595005 | N43: =SUM(C43:L43) -> 12.22275196
B45: VPL - Ano 0 - Real | C45: ='08. (a)TRIBUTOS LREAL'!C76 -> -37.91331243 | D45: ='08. (a)TRIBUTOS LREAL'!D76 -> 5.57802851 | E45: ='08. (a)TRIBUTOS LREAL'!E76 -> 5.125818448 | F45: ='08. (a)TRIBUTOS LREAL'!F76 -> 4.493345836 | G45: ='08. (a)TRIBUTOS LREAL'!G76 -> 4.042196019 | H45: ='08. (a)TRIBUTOS LREAL'!H76 -> 3.70864065 | I45: ='08. (a)TRIBUTOS LREAL'!I76 -> 3.403046961 | J45: ='08. (a)TRIBUTOS LREAL'!J76 -> 3.123028005 | K45: ='08. (a)TRIBUTOS LREAL'!K76 -> 2.866404749 | L45: ='08. (a)TRIBUTOS LREAL'!L76 -> 2.631187567 | N45: =SUM(C45:L45) -> -2.941615684
B47: VPL - Ano 0 - Presumido | C47: =C43 -> -38.82160309 | D47: =D43/((1+D51)*(1+C55)) -> 4.730229475 | E47: =E43/((1+E51)*(1+D55)) -> 4.363225016 | F47: 4.024695343 | G47: 3.712431182 | H47: 3.42439467 | I47: 3.158706056 | J47: 2.913631433 | K47: 2.687571421 | L47: 2.479050735 | N47: =SUM(C47:L47) -> -7.327667757
B49: Regime escolhido | C49: =IF(C47>C45,"Pres.","Real") -> Real | D49: =IF(D47>D45,"Pres.","Real") -> Real | E49: Real | F49: Real | G49: Real | H49: Real | I49: Real | J49: Real | K49: Real | L49: Real
B51: WACC presumido | C51: ='03. WACC '!G27 -> 0.105982874 | D51: =C51 -> 0.105982874 | E51: =D51 -> 0.105982874 | F51: 0.105982874 | G51: 0.105982874 | H51: 0.105982874 | I51: 0.105982874 | J51: 0.105982874 | K51: 0.105982874 | L51: 0.105982874
B53: WACC escolhido | C53: =IF(C49="real",'08. (a)TRIBUTOS LREAL'!C84,'08. (b)TRIBUTOS LPRESUMID'!C51) -> 0.08411311767 | D53: =IF(D49="real",'08. (a)TRIBUTOS LREAL'!D84,'08. (b)TRIBUTOS LPRESUMID'!D51) -> 0.08411311767 | E53: =IF(E49="real",'08. (a)TRIBUTOS LREAL'!E84,'08. (b)TRIBUTOS LPRESUMID'!E51) -> 0.08411311767 | F53: =IF(F49="real",'08. (a)TRIBUTOS LREAL'!F84,'08. (b)TRIBUTOS LPRESUMID'!F51) -> 0.08411311767 | G53: =IF(G49="real",'08. (a)TRIBUTOS LREAL'!G84,'08. (b)TRIBUTOS LPRESUMID'!G51) -> 0.08411311767 | H53: =IF(H49="real",'08. (a)TRIBUTOS LREAL'!H84,'08. (b)TRIBUTOS LPRESUMID'!H51) -> 0.08411311767 | I53: =IF(I49="real",'08. (a)TRIBUTOS LREAL'!I84,'08. (b)TRIBUTOS LPRESUMID'!I51) -> 0.08411311767 | J53: =IF(J49="real",'08. (a)TRIBUTOS LREAL'!J84,'08. (b)TRIBUTOS LPRESUMID'!J51) -> 0.08411311767 | K53: =IF(K49="real",'08. (a)TRIBUTOS LREAL'!K84,'08. (b)TRIBUTOS LPRESUMID'!K51) -> 0.08411311767 | L53: =IF(L49="real",'08. (a)TRIBUTOS LREAL'!L84,'08. (b)TRIBUTOS LPRESUMID'!L51) -> 0.08411311767
B55: WACC Acumulado | C55: =C53 -> 0.08411311767 | D55: =(1+D53)*(1+C55)-1 -> 0.1753012519 | E55: =(1+E53)*(1+D55)-1 -> 0.2741595044 | F55: 0.3813330327 | G55: 0.4975212606 | H55: 0.6234824427 | I55: 0.7600386124 | J55: 0.9080809473 | K55: 1.068575585 | L55: 1.242569926

Sheet 09. RECEITA
B6: Receita (R$ Milhões)
B8: Ano | C8: 1 | D8: =C8+1 -> 2 | E8: 3 | F8: 4 | G8: 5 | H8: 6 | I8: 7 | J8: 8 | K8: 9 | L8: 10 | N8: TOTAL | P8: RISCO
B10: Total Receita | C10: =C17+C29+C41+C53+C65+C12+C77 -> 8.348259756 | D10: =D17+D29+D41+D53+D65+D12+D77 -> 16.69651951 | E10: 16.69651951 | F10: 16.69651951 | G10: 16.69651951 | H10: 16.69651951 | I10: 16.69651951 | J10: 16.69651951 | K10: 16.69651951 | L10: 16.69651951 | N10: =SUM(C10:L10) -> 158.6169354 | P10: ='10. SENSIBILIDADE'!$C$12 -> 0
B12: Receita Tarifária | C12: =C14*(1-C15) -> 8.348259756 | D12: =D14*(1-D15) -> 16.69651951 | E12: 16.69651951 | F12: 16.69651951 | G12: 16.69651951 | H12: 16.69651951 | I12: 16.69651951 | J12: 16.69651951 | K12: 16.69651951 | L12: 16.69651951 | N12: =SUM(C12:L12) -> 158.6169354
B14: Receita Tarifária | C14: 16.69651951 | D14: =C14 -> 16.69651951 | E14: =D14 -> 16.69651951 | F14: 16.69651951 | G14: 16.69651951 | H14: 16.69651951 | I14: 16.69651951 | J14: 16.69651951 | K14: 16.69651951 | L14: 16.69651951
B15: Desconto (%) | C15: 0.5 | D15: 0 | E15: =D15 -> 0 | F15: =E15 -> 0 | G15: 0 | H15: 0 | I15: 0 | J15: 0 | K15: 0 | L15: 0
B17: Terminal Central | C17: =C19+C25 -> 0 | D17: 0 | E17: 0 | F17: 0 | G17: 0 | H17: 0 | I17: 0 | J17: 0 | K17: 0 | L17: 0 | N17: =SUM(C17:L17) -> 0 | P17: ='10. SENSIBILIDADE'!$C$14 -> 0
B19: Receita de Aluguel | C19: =(C20*C23)/10^6 -> 0 | D19: =(D20*D23)/10^6 -> 0 | E19: 0 | F19: 0 | G19: 0 | H19: 0 | I19: 0 | J19: 0 | K19: 0 | L19: 0 | N19: =SUM(C19:L19) -> 0
B20: Área Ocupada (M²) | C20: =C22*(1-C21) -> 68.64 | D20: =D22*(1-D21) -> 68.64 | E20: 68.64 | F20: 68.64 | G20: 68.64 | H20: 68.64 | I20: 68.64 | J20: 68.64 | K20: 68.64 | L20: 68.64
B21: Vacância (%) | C21: =(1+$P$10)*'01. PC'!$C$19 -> 0.04 | D21: =C21 -> 0.04 | E21: =D21 -> 0.04 | F21: 0.04 | G21: 0.04 | H21: 0.04 | I21: 0.04 | J21: 0.04 | K21: 0.04 | L21: 0.04
B22: Área Disponível para Aluguel (M²) | C22: 71.5 | D22: =C22 -> 71.5 | E22: 71.5 | F22: 71.5 | G22: 71.5 | H22: 71.5 | I22: 71.5 | J22: 71.5 | K22: 71.5 | L22: 71.5
B23: Preço do M² (R$) | D23: =C23 -> 0 | E23: 0 | F23: 0 | G23: 0 | H23: 0 | I23: 0 | J23: 0 | K23: 0 | L23: 0
B25: Inadimplência Aluguel | C25: =-C26*(C27) -> 0 | D25: =-D26*(D27) -> 0 | E25: 0 | F25: 0 | G25: 0 | H25: 0 | I25: 0 | J25: 0 | K25: 0 | L25: 0 | N25: =SUM(C25:L25) -> 0
B26: Receita de Aluguel - Total (R$) | C26: =C19 -> 0 | D26: 0 | E26: 0 | F26: 0 | G26: 0 | H26: 0 | I26: 0 | J26: 0 | K26: 0 | L26: 0
B27: Inadimplência (%) | C27: =(1+$P$17)*'01. PC'!$C$21 -> 0.09 | D27: =C27 -> 0.09 | E27: =D27 -> 0.09 | F27: 0.09 | G27: 0.09 | H27: 0.09 | I27: 0.09 | J27: 0.09 | K27: 0.09 | L27: 0.09
B29: Terminal Uvaranas | C29: =C31+C37 -> 0 | D29: 0 | E29: 0 | F29: 0 | G29: 0 | H29: 0 | I29: 0 | J29: 0 | K29: 0 | L29: 0 | N29: =SUM(C29:L29) -> 0
B31: Receita de Aluguel | C31: =(C32*C35)/10^6 -> 0 | D31: =(D32*D35)/10^6 -> 0 | E31: =(E32*E35)/10^6 -> 0 | F31: =(F32*F35)/10^6 -> 0 | G31: =(G32*G35)/10^6 -> 0 | H31: =(H32*H35)/10^6 -> 0 | I31: =(I32*I35)/10^6 -> 0 | J31: =(J32*J35)/10^6 -> 0 | K31: =(K32*K35)/10^6 -> 0 | L31: =(L32*L35)/10^6 -> 0 | N31: =SUM(C31:L31) -> 0
B32: Área Ocupada (M²) | C32: =C34*(1-C33) -> 0 | D32: =D34*(1-D33) -> 844.8 | E32: 844.8 | F32: 844.8 | G32: 844.8 | H32: 844.8 | I32: 844.8 | J32: 844.8 | K32: 844.8 | L32: 844.8
B33: Vacância (%) | C33: =(1+$P$10)*'01. PC'!$C$19 -> 0.04 | D33: =C33 -> 0.04 | E33: =D33 -> 0.04 | F33: =E33 -> 0.04 | G33: =F33 -> 0.04 | H33: =G33 -> 0.04 | I33: =H33 -> 0.04 | J33: =I33 -> 0.04 | K33: =J33 -> 0.04 | L33: =K33 -> 0.04
B34: Área Disponível para Aluguel (M²) | C34: 0 | D34: 880 | E34: 880 | F34: 880 | G34: 880 | H34: 880 | I34: 880 | J34: 880 | K34: 880 | L34: 880
B35: Preço do M² (R$) | D35: =C35 -> 0 | E35: 0 | F35: 0 | G35: 0 | H35: 0 | I35: 0 | J35: 0 | K35: 0 | L35: 0
B37: Inadimplência Aluguel | C37: =-C38*(C39) -> 0 | D37: =-D38*(D39) -> 0 | E37: =-E38*(E39) -> 0 | F37: =-F38*(F39) -> 0 | G37: =-G38*(G39) -> 0 | H37: =-H38*(H39) -> 0 | I37: =-I38*(I39) -> 0 | J37: =-J38*(J39) -> 0 | K37: =-K38*(K39) -> 0 | L37: =-L38*(L39) -> 0 | N37: =SUM(C37:L37) -> 0
B38: Receita de Aluguel - Total (R$) | C38: =C31 -> 0 | D38: 0 | E38: 0 | F38: 0 | G38: 0 | H38: 0 | I38: 0 | J38: 0 | K38: 0 | L38: 0
B39: Inadimplência (%) | C39: =(1+$P$17)*'01. PC'!$C$21 -> 0.09 | D39: =C39 -> 0.09 | E39: =D39 -> 0.09 | F39: =E39 -> 0.09 | G39: =F39 -> 0.09 | H39: =G39 -> 0.09 | I39: =H39 -> 0.09 | J39: =I39 -> 0.09 | K39: =J39 -> 0.09 | L39: =K39 -> 0.09
B41: Terminal Oficinas | C41: =C43+C49 -> 0 | D41: 0 | E41: 0 | F41: 0 | G41: 0 | H41: 0 | I41: 0 | J41: 0 | K41: 0 | L41: 0 | N41: =SUM(C41:L41) -> 0
B43: Receita de Aluguel | C43: =(C44*C47)/10^6 -> 0 | D43: =(D44*D47)/10^6 -> 0 | E43: =(E44*E47)/10^6 -> 0 | F43: =(F44*F47)/10^6 -> 0 | G43: =(G44*G47)/10^6 -> 0 | H43: =(H44*H47)/10^6 -> 0 | I43: =(I44*I47)/10^6 -> 0 | J43: =(J44*J47)/10^6 -> 0 | K43: =(K44*K47)/10^6 -> 0 | L43: =(L44*L47)/10^6 -> 0 | N43: =SUM(C43:L43) -> 0
B44: Área Ocupada (M²) | C44: =C46*(1-C45) -> 0 | D44: =D46*(1-D45) -> 604.8 | E44: 604.8 | F44: 604.8 | G44: 604.8 | H44: 604.8 | I44: 604.8 | J44: 604.8 | K44: 604.8 | L44: 604.8
B45: Vacância (%) | C45: =(1+$P$10)*'01. PC'!$C$19 -> 0.04 | D45: =C45 -> 0.04 | E45: =D45 -> 0.04 | F45: =E45 -> 0.04 | G45: =F45 -> 0.04 | H45: =G45 -> 0.04 | I45: =H45 -> 0.04 | J45: =I45 -> 0.04 | K45: =J45 -> 0.04 | L45: =K45 -> 0.04
B46: Área Disponível para Aluguel (M²) | C46: 0 | D46: 630 | E46: 630 | F46: 630 | G46: 630 | H46: 630 | I46: 630 | J46: 630 | K46: 630 | L46: 630
B47: Preço do M² (R$) | D47: =C47 -> 0 | E47: 0 | F47: 0 | G47: 0 | H47: 0 | I47: 0 | J47: 0 | K47: 0 | L47: 0
B49: Inadimplência Aluguel | C49: =-C50*(C51) -> 0 | D49: =-D50*(D51) -> 0 | E49: =-E50*(E51) -> 0 | F49: =-F50*(F51) -> 0 | G49: =-G50*(G51) -> 0 | H49: =-H50*(H51) -> 0 | I49: =-I50*(I51) -> 0 | J49: =-J50*(J51) -> 0 | K49: =-K50*(K51) -> 0 | L49: =-L50*(L51) -> 0 | N49: =SUM(C49:L49) -> 0
B50: Receita de Aluguel - Total (R$) | C50: =C43 -> 0 | D50: 0 | E50: 0 | F50: 0 | G50: 0 | H50: 0 | I50: 0 | J50: 0 | K50: 0 | L50: 0
B51: Inadimplência (%) | C51: =(1+$P$17)*'01. PC'!$C$21 -> 0.09 | D51: =C51 -> 0.09 | E51: =D51 -> 0.09 | F51: =E51 -> 0.09 | G51: =F51 -> 0.09 | H51: =G51 -> 0.09 | I51: =H51 -> 0.09 | J51: =I51 -> 0.09 | K51: =J51 -> 0.09 | L51: =K51 -> 0.09
B53: Terminal Nova Rússia | C53: =C55+C61 -> 0 | D53: 0 | E53: 0 | F53: 0 | G53: 0 | H53: 0 | I53: 0 | J53: 0 | K53: 0 | L53: 0 | N53: =SUM(C53:L53) -> 0
B55: Receita de Aluguel | C55: =(C56*C59)/10^6 -> 0 | D55: =(D56*D59)/10^6 -> 0 | E55: =(E56*E59)/10^6 -> 0 | F55: =(F56*F59)/10^6 -> 0 | G55: =(G56*G59)/10^6 -> 0 | H55: =(H56*H59)/10^6 -> 0 | I55: =(I56*I59)/10^6 -> 0 | J55: =(J56*J59)/10^6 -> 0 | K55: =(K56*K59)/10^6 -> 0 | L55: =(L56*L59)/10^6 -> 0 | N55: =SUM(C55:L55) -> 0
B56: Área Ocupada (M²) | C56: =C58*(1-C57) -> 23.04 | D56: =D58*(1-D57) -> 23.04 | E56: 23.04 | F56: 23.04 | G56: 23.04 | H56: 23.04 | I56: 23.04 | J56: 23.04 | K56: 23.04 | L56: 23.04
B57: Vacância (%) | C57: =(1+$P$10)*'01. PC'!$C$19 -> 0.04 | D57: =C57 -> 0.04 | E57: =D57 -> 0.04 | F57: =E57 -> 0.04 | G57: =F57 -> 0.04 | H57: =G57 -> 0.04 | I57: =H57 -> 0.04 | J57: =I57 -> 0.04 | K57: =J57 -> 0.04 | L57: =K57 -> 0.04
B58: Área Disponível para Aluguel (M²) | C58: 24 | D58: 24 | E58: 24 | F58: 24 | G58: 24 | H58: 24 | I58: 24 | J58: 24 | K58: 24 | L58: 24
B59: Preço do M² (R$) | D59: =C59 -> 0 | E59: 0 | F59: 0 | G59: 0 | H59: 0 | I59: 0 | J59: 0 | K59: 0 | L59: 0
B61: Inadimplência Aluguel | C61: =-C62*(C63) -> 0 | D61: =-D62*(D63) -> 0 | E61: =-E62*(E63) -> 0 | F61: =-F62*(F63) -> 0 | G61: =-G62*(G63) -> 0 | H61: =-H62*(H63) -> 0 | I61: =-I62*(I63) -> 0 | J61: =-J62*(J63) -> 0 | K61: =-K62*(K63) -> 0 | L61: =-L62*(L63) -> 0 | N61: =SUM(C61:L61) -> 0
B62: Receita de Aluguel - Total (R$) | C62: =C55 -> 0 | D62: 0 | E62: 0 | F62: 0 | G62: 0 | H62: 0 | I62: 0 | J62: 0 | K62: 0 | L62: 0
B63: Inadimplência (%) | C63: =(1+$P$17)*'01. PC'!$C$21 -> 0.09 | D63: =C63 -> 0.09 | E63: =D63 -> 0.09 | F63: =E63 -> 0.09 | G63: =F63 -> 0.09 | H63: =G63 -> 0.09 | I63: =H63 -> 0.09 | J63: =I63 -> 0.09 | K63: =J63 -> 0.09 | L63: =K63 -> 0.09
B65: Terminal Santa Paula | C65: =C67+C73 -> 0 | D65: 0 | E65: 0 | F65: 0 | G65: 0 | H65: 0 | I65: 0 | J65: 0 | K65: 0 | L65: 0 | N65: =SUM(C65:L65) -> 0
B67: Receita de Aluguel | C67: =(C68*C71)/10^6 -> 0 | D67: =(D68*D71)/10^6 -> 0 | E67: =(E68*E71)/10^6 -> 0 | F67: =(F68*F71)/10^6 -> 0 | G67: =(G68*G71)/10^6 -> 0 | H67: =(H68*H71)/10^6 -> 0 | I67: =(I68*I71)/10^6 -> 0 | J67: =(J68*J71)/10^6 -> 0 | K67: =(K68*K71)/10^6 -> 0 | L67: =(L68*L71)/10^6 -> 0 | N67: =SUM(C67:L67) -> 0
B68: Área Ocupada (M²) | C68: =C70*(1-C69) -> 0 | D68: =D70*(1-D69) -> 960 | E68: 960 | F68: 960 | G68: 960 | H68: 960 | I68: 960 | J68: 960 | K68: 960 | L68: 960
B69: Vacância (%) | C69: =(1+$P$10)*'01. PC'!$C$19 -> 0.04 | D69: =C69 -> 0.04 | E69: =D69 -> 0.04 | F69: =E69 -> 0.04 | G69: =F69 -> 0.04 | H69: =G69 -> 0.04 | I69: =H69 -> 0.04 | J69: =I69 -> 0.04 | K69: =J69 -> 0.04 | L69: =K69 -> 0.04
B70: Área Disponível para Aluguel (M²) | C70: 0 | D70: 1000 | E70: 1000 | F70: 1000 | G70: 1000 | H70: 1000 | I70: 1000 | J70: 1000 | K70: 1000 | L70: 1000
B71: Preço do M² (R$) | D71: =C71 -> 0 | E71: 0 | F71: 0 | G71: 0 | H71: 0 | I71: 0 | J71: 0 | K71: 0 | L71: 0
B73: Inadimplência Aluguel | C73: =-C74*(C75) -> 0 | D73: =-D74*(D75) -> 0 | E73: =-E74*(E75) -> 0 | F73: =-F74*(F75) -> 0 | G73: =-G74*(G75) -> 0 | H73: =-H74*(H75) -> 0 | I73: =-I74*(I75) -> 0 | J73: =-J74*(J75) -> 0 | K73: =-K74*(K75) -> 0 | L73: =-L74*(L75) -> 0 | N73: =SUM(C73:L73) -> 0
B74: Receita de Aluguel - Total (R$) | C74: =C67 -> 0 | D74: 0 | E74: 0 | F74: 0 | G74: 0 | H74: 0 | I74: 0 | J74: 0 | K74: 0 | L74: 0
B75: Inadimplência (%) | C75: =(1+$P$17)*'01. PC'!$C$21 -> 0.09 | D75: =C75 -> 0.09 | E75: =D75 -> 0.09 | F75: =E75 -> 0.09 | G75: =F75 -> 0.09 | H75: =G75 -> 0.09 | I75: =H75 -> 0.09 | J75: =I75 -> 0.09 | K75: =J75 -> 0.09 | L75: =K75 -> 0.09
B77: Terminais de Integração Eletrônica* | C77: =C79+C85 -> 0 | D77: 0 | E77: 0 | F77: 0 | G77: 0 | H77: 0 | I77: 0 | J77: 0 | K77: 0 | L77: 0 | N77: =SUM(C77:L77) -> 0
B79: Receita de Aluguel | C79: =(C80*C83)/10^6 -> 0 | D79: =(D80*D83)/10^6 -> 0 | E79: 0 | F79: 0 | G79: 0 | H79: 0 | I79: 0 | J79: 0 | K79: 0 | L79: 0 | N79: =SUM(C79:L79) -> 0
B80: Área Ocupada (M²) | C80: =C82*(1-C81) -> 0 | D80: =D82*(1-D81) -> 0.96 | E80: 1.92 | F80: 2.88 | G80: 3.84 | H80: 4.8 | I80: 5.76 | J80: 6.72 | K80: 7.68 | L80: 8.64
B81: Vacância (%) | C81: =(1+$P$10)*'01. PC'!$C$19 -> 0.04 | D81: =(1+$P$10)*'01. PC'!$C$19 -> 0.04 | E81: =(1+$P$10)*'01. PC'!$C$19 -> 0.04 | F81: =(1+$P$10)*'01. PC'!$C$19 -> 0.04 | G81: =(1+$P$10)*'01. PC'!$C$19 -> 0.04 | H81: =(1+$P$10)*'01. PC'!$C$19 -> 0.04 | I81: =(1+$P$10)*'01. PC'!$C$19 -> 0.04 | J81: =(1+$P$10)*'01. PC'!$C$19 -> 0.04 | K81: =(1+$P$10)*'01. PC'!$C$19 -> 0.04 | L81: =(1+$P$10)*'01. PC'!$C$19 -> 0.04
B82: Área Disponível para Aluguel (M²) | C82: 0 | D82: 1 | E82: 2 | F82: 3 | G82: 4 | H82: 5 | I82: 6 | J82: 7 | K82: 8 | L82: 9
B83: Preço do M² (R$)
B85: Inadimplência Aluguel | C85: =-C86*(C87) -> 0 | D85: =-D86*(D87) -> 0 | E85: 0 | F85: 0 | G85: 0 | H85: 0 | I85: 0 | J85: 0 | K85: 0 | L85: 0 | N85: =SUM(C85:L85) -> 0
B86: Receita de Aluguel - Total (R$) | C86: =C79 -> 0 | D86: 0 | E86: 0 | F86: 0 | G86: 0 | H86: 0 | I86: 0 | J86: 0 | K86: 0 | L86: 0
B87: Inadimplência (%) | C87: =(1+$P$17)*'01. PC'!$C$21 -> 0.09 | D87: =(1+$P$17)*'01. PC'!$C$21 -> 0.09 | E87: =(1+$P$17)*'01. PC'!$C$21 -> 0.09 | F87: =(1+$P$17)*'01. PC'!$C$21 -> 0.09 | G87: =(1+$P$17)*'01. PC'!$C$21 -> 0.09 | H87: =(1+$P$17)*'01. PC'!$C$21 -> 0.09 | I87: =(1+$P$17)*'01. PC'!$C$21 -> 0.09 | J87: =(1+$P$17)*'01. PC'!$C$21 -> 0.09 | K87: =(1+$P$17)*'01. PC'!$C$21 -> 0.09 | L87: =(1+$P$17)*'01. PC'!$C$21 -> 0.09

Sheet 10. SENSIBILIDADE
B8: Opex | C8: 0
B10: Capex | C10: 0
B12: Vacância | C12: 0
B14: Inadimplência | C14: 0
D17: Sensibilidade a TIR do Projeto | O17: Sensibilidade a TIR do Projeto
D18: Capex (Milhões) | N18: Vacância
C19: ='01. PC'!$C$11 -> 0.08411287413 | D19: -0.15 | E19: -0.1 | F19: -0.05 | G19: 0 | H19: 0.05 | I19: 0.1 | J19: 0.15 | M19: ='01. PC'!$C$11 -> 0.08411287413 | N19: -0.15 | O19: -0.1 | P19: -0.05 | Q19: 0 | R19: 0.05 | S19: 0.1 | T19: 0.15
B20: Opex (Milhões) | C20: -0.15 | D20: 0.1352921805 | E20: 0.1352921805 | F20: 0.1352921805 | G20: 0.1352921805 | H20: 0.1352921805 | I20: 0.1352921805 | J20: 0.1352921805 | L20: Inadimplência | M20: -0.15 | N20: 0.08411303066 | O20: 0.08411303066 | P20: 0.08411303066 | Q20: 0.08411303066 | R20: 0.08411303066 | S20: 0.08411303066 | T20: 0.08411303066
C21: -0.1 | D21: 0.1167339721 | E21: 0.1167339721 | F21: 0.1167339721 | G21: 0.1167339721 | H21: 0.1167339721 | I21: 0.1167339721 | J21: 0.1167339721 | M21: -0.1 | N21: 0.08411303066 | O21: 0.08411303066 | P21: 0.08411303066 | Q21: 0.08411303066 | R21: 0.08411303066 | S21: 0.08411303066 | T21: 0.08411303066
C22: -0.05 | D22: 0.09977474991 | E22: 0.09977474991 | F22: 0.09977474991 | G22: 0.09977474991 | H22: 0.09977474991 | I22: 0.09977474991 | J22: 0.09977474991 | M22: -0.05 | N22: 0.08411303066 | O22: 0.08411303066 | P22: 0.08411303066 | Q22: 0.08411303066 | R22: 0.08411303066 | S22: 0.08411303066 | T22: 0.08411303066
C23: 0 | D23: 0.08411303066 | E23: 0.08411303066 | F23: 0.08411303066 | G23: 0.08411303066 | H23: 0.08411303066 | I23: 0.08411303066 | J23: 0.08411303066 | M23: 0 | N23: 0.08411303066 | O23: 0.08411303066 | P23: 0.08411303066 | Q23: 0.08411303066 | R23: 0.08411303066 | S23: 0.08411303066 | T23: 0.08411303066
C24: 0.05 | D24: 0.07067474415 | E24: 0.07067474415 | F24: 0.07067474415 | G24: 0.07067474415 | H24: 0.07067474415 | I24: 0.07067474415 | J24: 0.07067474415 | M24: 0.05 | N24: 0.08411303066 | O24: 0.08411303066 | P24: 0.08411303066 | Q24: 0.08411303066 | R24: 0.08411303066 | S24: 0.08411303066 | T24: 0.08411303066
C25: 0.1 | D25: 0.05755519653 | E25: 0.05755519653 | F25: 0.05755519653 | G25: 0.05755519653 | H25: 0.05755519653 | I25: 0.05755519653 | J25: 0.05755519653 | M25: 0.1 | N25: 0.08411303066 | O25: 0.08411303066 | P25: 0.08411303066 | Q25: 0.08411303066 | R25: 0.08411303066 | S25: 0.08411303066 | T25: 0.08411303066
C26: 0.15 | D26: 0.04586013908 | E26: 0.04586013908 | F26: 0.04586013908 | G26: 0.04586013908 | H26: 0.04586013908 | I26: 0.04586013908 | J26: 0.04586013908 | M26: 0.15 | N26: 0.08411303066 | O26: 0.08411303066 | P26: 0.08411303066 | Q26: 0.08411303066 | R26: 0.08411303066 | S26: 0.08411303066 | T26: 0.08411303066

Sheet 11. ÍNDICES
C7: Ano | D7: 2001 | E7: Indice | F7: IPCA
C8: Projeções Consolidadas
C9: IPCA | D9: IGP-M | E9: IPCA15 | F9: IPA-M | G9: IPC-M | H9: INCC-M | I9: IGP-DI | J9: IPA-DI | K9: IPC-DI | L9: INCC-DI | M9: IPC Fipe
B10: 2001 | C10: 0.07673263015 | D10: 0.1037233156 | E10: 0.0751271385 | F10: 0.118803239 | G10: 0.07737887395 | H10: 0.09042990622 | I10: 0.08972415975 | J10: 0.1188366355 | K10: 0.08047355606 | L10: 0.08845299004 | M10: 0.07125524993
B11: 2002 | C11: 0.1253033708 | D11: 0.253038577 | E11: 0.1198681219 | F11: 0.3364443702 | G11: 0.1186746234 | H11: 0.1245403234 | I11: 0.2641184788 | J11: 0.3541363725 | K11: 0.1215131986 | L11: 0.1286755119 | M11: 0.09919885263
B12: 2003 | C12: 0.09299949329 | D12: 0.08691368015 | E12: 0.09861218248 | F12: 0.07644720549 | G12: 0.09334569445 | H12: 0.1474618317 | I12: 0.0766302882 | J12: 0.06273472341 | K12: 0.08920356656 | L12: 0.1441665148 | M12: 0.08166707842
B13: 2004 | C13: 0.07600644138 | D13: 0.1241998728 | E13: 0.07535458583 | F13: 0.1508283785 | G13: 0.0620625676 | H13: 0.1094275827 | I13: 0.121303303 | J13: 0.1468379574 | K13: 0.06278414715 | L13: 0.1104341283 | M13: 0.06565397393
B14: 2005 | C14: 0.05689733346 | D14: 0.01200760304 | E14: 0.05878553024 | F14: -0.009356394227 | G14: 0.04970564464 | H14: 0.06848829829 | I14: 0.01232126922 | J14: -0.009627299867 | K14: 0.04929061227 | L14: 0.06828444014 | M14: 0.04525429674
B15: 2006 | C15: 0.03141774968 | D15: 0.03847625996 | E15: 0.02957021293 | F15: 0.04386682559 | G15: 0.01882063383 | H15: 0.05045160461 | I15: 0.03797262724 | J15: 0.04315680159 | K15: 0.02064427618 | L15: 0.05035851759 | M15: 0.02542088124
B16: 2007 | C16: 0.04457330433 | D16: 0.07746273733 | E16: 0.04363711615 | F16: 0.09199722376 | G16: 0.04633253841 | H16: 0.06032378813 | I16: 0.07898405024 | J16: 0.09431272195 | K16: 0.0461305069 | L16: 0.06269150952 | M16: 0.04372264038
B17: 2008 | C17: 0.05902313418 | D17: 0.0980543128 | E17: 0.06101867606 | F17: 0.1084112636 | G17: 0.06066992251 | H17: 0.119673677 | I17: 0.09107305045 | J17: 0.09796319193 | K17: 0.06066361063 | L17: 0.1186015986 | M17: 0.06172905476
B18: 2009 | C18: 0.0431202833 | D18: -0.01712275357 | E18: 0.04186806677 | F18: -0.04412798834 | G18: 0.03968090489 | H18: 0.03206179204 | I18: -0.01436402006 | J18: -0.04085817757 | K18: 0.03926118401 | L18: 0.03247425758 | M18: 0.03648961447
B19: 2010 | C19: 0.05909068347 | D19: 0.1132201732 | E19: 0.05792513717 | F19: 0.1391244818 | G19: 0.06091983324 | H19: 0.07568334134 | I19: 0.1130579322 | J19: 0.1383355609 | K19: 0.06228122631 | L19: 0.07771734883 | M19: 0.0641294058
B20: 2011 | C20: 0.06503109041 | D20: 0.05097744614 | E20: 0.06555626233 | F20: 0.04359398057 | G20: 0.06159373746 | H20: 0.07584156842 | I20: 0.05012535922 | J20: 0.04115426436 | K20: 0.06359494366 | L20: 0.07481765155 | M20: 0.05804399189
B21: 2012 | C21: 0.05838568998 | D21: 0.07811928044 | E21: 0.05776087714 | F21: 0.08652072075 | G21: 0.05785199584 | H21: 0.0726218647 | I21: 0.08112065781 | J21: 0.09137184186 | K21: 0.05733242673 | L21: 0.07119740184 | M21: 0.05111606935
B22: 2013 | C22: 0.0591081808 | D22: 0.05525658421 | E22: 0.05848114629 | F22: 0.05123300789 | G22: 0.05509712114 | H22: 0.08069430928 | I22: 0.05527757994 | J22: 0.05064289481 | K22: 0.05635435965 | L22: 0.08087493555 | M22: 0.03890943859
B23: 2014 | C23: 0.06407616596 | D23: 0.03674882508 | E23: 0.06461048404 | F23: 0.02134657329 | G23: 0.06767043611 | H23: 0.0674004472 | I23: 0.03779997091 | J23: 0.02166280468 | K23: 0.06862618803 | L23: 0.06944929719 | M23: 0.05206396727
B24: 2015 | C24: 0.10673498 | D24: 0.1054429461 | E24: 0.107065071 | F24: 0.1119185012 | G24: 0.1023358604 | H24: 0.07216996411 | I24: 0.1067860742 | J24: 0.11318841 | K24: 0.1053775677 | L24: 0.07493890454 | M24: 0.1108003778
B25: 2016 | C25: 0.06288055054 | D25: 0.0719070751 | E25: 0.06583325421 | F25: 0.07627000343 | G25: 0.0626334606 | H25: 0.06337445332 | I25: 0.07153318977 | J25: 0.07733399421 | K25: 0.0618808086 | L25: 0.06112220745 | M25: 0.06549008707
B26: 2017 | C26: 0.02947349908 | D26: -0.005325890366 | E26: 0.02937093539 | F26: -0.02544774291 | G26: 0.03131700914 | H26: 0.04025352747 | I26: -0.004230711057 | J26: -0.02517394396 | K26: 0.0322274181 | L26: 0.04246236578 | M26: 0.02280608271
B27: 2018 | C27: 0.03745482122 | D27: 0.07552135634 | E27: 0.03860544807 | F27: 0.09417635255 | G27: 0.04121177735 | H27: 0.03968101206 | I27: 0.0710206239 | J27: 0.08730628365 | K27: 0.04337443551 | L27: 0.03832393341 | M27: 0.02993580541
B28: 2019 | C28: 0.04306039984 | D28: 0.07317908281 | E28: 0.03913212759 | F28: 0.09091735383 | G28: 0.03789212942 | H28: 0.04132997711 | I28: 0.07677588541 | J28: 0.09604711084 | K28: 0.04121298994 | L28: 0.04143242256 | M28: 0.04380824972
B29: 2020 | C29: 0.04517341501 | D29: 0.2313905404 | E29: 0.04227459099 | F29: 0.3164428285 | G29: 0.04821933886 | H29: 0.0868439462 | I29: 0.2307433448 | J29: 0.317304172 | K29: 0.05166328772 | L29: 0.08812907778 | M29: 0.05636113257
B30: 2021 | C30: 0.0718 | D30: 0.198 | E30: 0.06884860044 | F30: 0.2540579373 | G30: 0.07051435548 | H30: 0.1081649232 | I30: 0.1931001272 | J30: 0.2495689536 | K30: 0.07295289067 | L30: 0.1105833398 | M30: 0.06965146042
B31: 2022 | C31: 0.0392 | D31: 0.0499 | E31: 0.0396859767 | F31: 0.04590438743 | G31: 0.03671631122 | H31: 0.07084962443 | I31: 0.04423486096 | J31: 0.03874573327 | K31: 0.03677291782 | L31: 0.07238709509 | M31: 0.03643009604
B32: 2023 | C32: 0.0325 | D32: 0.04 | E32: 0.03179988418 | F32: 0.04006907497 | G32: 0.03185136844 | H32: 0.05327146662 | I32: 0.03918779856 | J32: 0.03863087079 | K32: 0.03314285626 | L32: 0.05390296065 | M32: 0.03067598421
B33: 2024 | C33: 0.031 | D33: 0.04 | E33: 0.02993782658 | F33: 0.04072204255 | G33: 0.03063658674 | H33: 0.04664684812 | I33: 0.03927209007 | J33: 0.03898838139 | K33: 0.03198749612 | L33: 0.04671733293 | M33: 0.02949375263
B34: 2025 | C34: 0.0301 | D34: 0.0362 | E34: 0.02901063868 | F34: 0.03532683575 | G34: 0.02979882327 | H34: 0.04320500271 | I34: 0.03541120666 | J34: 0.03346258726 | K34: 0.03114205134 | L34: 0.04293729674 | M34: 0.02859353709
B35: 2026 | C35: 0.03 | D35: 0.035 | E35: 0.02888731434 | F35: 0.03375003726 | G35: 0.02973726517 | H35: 0.04172859557 | I35: 0.03434145488 | J35: 0.03202778158 | K35: 0.0310958453 | L35: 0.04127401209 | M35: 0.02845663072
B36: 2027 | C36: 0.03 | D36: 0.035 | E36: 0.02888173096 | F36: 0.0338017335 | G36: 0.02974041539 | H36: 0.04122235005 | I36: 0.0343793875 | J36: 0.03211765666 | K36: 0.03109978014 | L36: 0.04067922384 | M36: 0.02845687333
B37: 2028 | C37: 0.03 | D37: 0.035 | E37: 0.02888147818 | F37: 0.03380003861 | G37: 0.02974025417 | H37: 0.04104876344 | I37: 0.03437804244 | J37: 0.03211202696 | K37: 0.03109944506 | L37: 0.0404665284 | M37: 0.0284568729
B38: 2029 | C38: 0.03 | D38: 0.035 | E38: 0.02888146674 | F38: 0.03380009418 | G38: 0.02974026242 | H38: 0.04098924229 | I38: 0.03437809013 | J38: 0.0321123796 | K38: 0.03109947359 | L38: 0.0403904688 | M38: 0.0284568729
B39: 2030 | C39: 0.03 | D39: 0.035 | E39: 0.02888146622 | F39: 0.03380009236 | G39: 0.029740262 | H39: 0.04096883307 | I39: 0.03437808844 | J39: 0.03211235751 | K39: 0.03109947116 | L39: 0.04036327 | M39: 0.0284568729
B40: 2031 | C40: 0.03 | D40: 0.035 | E40: 0.0288814662 | F40: 0.03380009242 | G40: 0.02974026202 | H40: 0.04096183495 | I40: 0.0343780885 | J40: 0.03211235889 | K40: 0.03109947137 | L40: 0.04035354375 | M40: 0.0284568729
B41: 2032 | C41: 0.03 | D41: 0.035 | E41: 0.02888146619 | F41: 0.03380009241 | G41: 0.02974026202 | H41: 0.04095943537 | I41: 0.0343780885 | J41: 0.03211235881 | K41: 0.03109947135 | L41: 0.04035006565 | M41: 0.0284568729
B42: 2033 | C42: 0.03 | D42: 0.035 | E42: 0.02888146619 | F42: 0.03380009241 | G42: 0.02974026202 | H42: 0.04095861257 | I42: 0.0343780885 | J42: 0.03211235881 | K42: 0.03109947136 | L42: 0.04034882189 | M42: 0.0284568729
B43: 2034 | C43: 0.03 | D43: 0.035 | E43: 0.02888146619 | F43: 0.03380009241 | G43: 0.02974026202 | H43: 0.04095833044 | I43: 0.0343780885 | J43: 0.03211235881 | K43: 0.03109947136 | L43: 0.04034837712 | M43: 0.0284568729
B44: 2035 | C44: 0.03 | D44: 0.035 | E44: 0.02888146619 | F44: 0.03380009241 | G44: 0.02974026202 | H44: 0.0409582337 | I44: 0.0343780885 | J44: 0.03211235881 | K44: 0.03109947136 | L44: 0.04034821808 | M44: 0.0284568729
B45: 2036 | C45: 0.03 | D45: 0.035 | E45: 0.02888146619 | F45: 0.03380009241 | G45: 0.02974026202 | H45: 0.04095820053 | I45: 0.0343780885 | J45: 0.03211235881 | K45: 0.03109947136 | L45: 0.0403481612 | M45: 0.0284568729
B46: 2037 | C46: 0.03 | D46: 0.035 | E46: 0.02888146619 | F46: 0.03380009241 | G46: 0.02974026202 | H46: 0.04095818916 | I46: 0.0343780885 | J46: 0.03211235881 | K46: 0.03109947136 | L46: 0.04034814086 | M46: 0.0284568729
B47: 2038 | C47: 0.03 | D47: 0.035 | E47: 0.02888146619 | F47: 0.03380009241 | G47: 0.02974026202 | H47: 0.04095818526 | I47: 0.0343780885 | J47: 0.03211235881 | K47: 0.03109947136 | L47: 0.04034813359 | M47: 0.0284568729
B48: 2039 | C48: 0.03 | D48: 0.035 | E48: 0.02888146619 | F48: 0.03380009241 | G48: 0.02974026202 | H48: 0.04095818392 | I48: 0.0343780885 | J48: 0.03211235881 | K48: 0.03109947136 | L48: 0.04034813099 | M48: 0.0284568729
B49: 2040 | C49: 0.03 | D49: 0.035 | E49: 0.02888146619 | F49: 0.03380009241 | G49: 0.02974026202 | H49: 0.04095818346 | I49: 0.0343780885 | J49: 0.03211235881 | K49: 0.03109947136 | L49: 0.04034813006 | M49: 0.0284568729
B50: 2041 | C50: 0.03 | D50: 0.035 | E50: 0.02888146619 | F50: 0.03380009241 | G50: 0.02974026202 | H50: 0.04095818331 | I50: 0.0343780885 | J50: 0.03211235881 | K50: 0.03109947136 | L50: 0.04034812973 | M50: 0.0284568729
B51: 2042 | C51: 0.03 | D51: 0.035 | E51: 0.02888146619 | F51: 0.03380009241 | G51: 0.02974026202 | H51: 0.04095818325 | I51: 0.0343780885 | J51: 0.03211235881 | K51: 0.03109947136 | L51: 0.04034812961 | M51: 0.0284568729
B52: 2043 | C52: 0.03 | D52: 0.035 | E52: 0.02888146619 | F52: 0.03380009241 | G52: 0.02974026202 | H52: 0.04095818323 | I52: 0.0343780885 | J52: 0.03211235881 | K52: 0.03109947136 | L52: 0.04034812956 | M52: 0.0284568729
B53: 2044 | C53: 0.03 | D53: 0.035 | E53: 0.02888146619 | F53: 0.03380009241 | G53: 0.02974026202 | H53: 0.04095818323 | I53: 0.0343780885 | J53: 0.03211235881 | K53: 0.03109947136 | L53: 0.04034812955 | M53: 0.0284568729
B54: 2045 | C54: 0.03 | D54: 0.035 | E54: 0.02888146619 | F54: 0.03380009241 | G54: 0.02974026202 | H54: 0.04095818322 | I54: 0.0343780885 | J54: 0.03211235881 | K54: 0.03109947136 | L54: 0.04034812954 | M54: 0.0284568729
B55: 2046 | C55: 0.03 | D55: 0.035 | E55: 0.02888146619 | F55: 0.03380009241 | G55: 0.02974026202 | H55: 0.04095818322 | I55: 0.0343780885 | J55: 0.03211235881 | K55: 0.03109947136 | L55: 0.04034812954 | M55: 0.0284568729
B56: 2047 | C56: 0.03 | D56: 0.035 | E56: 0.02888146619 | F56: 0.03380009241 | G56: 0.02974026202 | H56: 0.04095818322 | I56: 0.0343780885 | J56: 0.03211235881 | K56: 0.03109947136 | L56: 0.04034812954 | M56: 0.0284568729
B57: 2048 | C57: 0.03 | D57: 0.035 | E57: 0.02888146619 | F57: 0.03380009241 | G57: 0.02974026202 | H57: 0.04095818322 | I57: 0.0343780885 | J57: 0.03211235881 | K57: 0.03109947136 | L57: 0.04034812954 | M57: 0.0284568729
B58: 2049 | C58: 0.03 | D58: 0.035 | E58: 0.02888146619 | F58: 0.03380009241 | G58: 0.02974026202 | H58: 0.04095818322 | I58: 0.0343780885 | J58: 0.03211235881 | K58: 0.03109947136 | L58: 0.04034812954 | M58: 0.0284568729
B59: 2050 | C59: 0.03 | D59: 0.035 | E59: 0.02888146619 | F59: 0.03380009241 | G59: 0.02974026202 | H59: 0.04095818322 | I59: 0.0343780885 | J59: 0.03211235881 | K59: 0.03109947136 | L59: 0.04034812954 | M59: 0.0284568729
B60: 2051 | C60: 0.03 | D60: 0.035 | E60: 0.02888146619 | F60: 0.03380009241 | G60: 0.02974026202 | H60: 0.04095818322 | I60: 0.0343780885 | J60: 0.03211235881 | K60: 0.03109947136 | L60: 0.04034812954 | M60: 0.0284568729
B61: 2052 | C61: 0.03 | D61: 0.035 | E61: 0.02888146619 | F61: 0.03380009241 | G61: 0.02974026202 | H61: 0.04095818322 | I61: 0.0343780885 | J61: 0.03211235881 | K61: 0.03109947136 | L61: 0.04034812954 | M61: 0.0284568729
B62: 2053 | C62: 0.03 | D62: 0.035 | E62: 0.02888146619 | F62: 0.03380009241 | G62: 0.02974026202 | H62: 0.04095818322 | I62: 0.0343780885 | J62: 0.03211235881 | K62: 0.03109947136 | L62: 0.04034812954 | M62: 0.0284568729
B63: 2054 | C63: 0.03 | D63: 0.035 | E63: 0.02888146619 | F63: 0.03380009241 | G63: 0.02974026202 | H63: 0.04095818322 | I63: 0.0343780885 | J63: 0.03211235881 | K63: 0.03109947136 | L63: 0.04034812954 | M63: 0.0284568729
B64: 2055 | C64: 0.03 | D64: 0.035 | E64: 0.02888146619 | F64: 0.03380009241 | G64: 0.02974026202 | H64: 0.04095818322 | I64: 0.0343780885 | J64: 0.03211235881 | K64: 0.03109947136 | L64: 0.04034812954 | M64: 0.0284568729
B65: 2056 | C65: 0.03 | D65: 0.035 | E65: 0.02888146619 | F65: 0.03380009241 | G65: 0.02974026202 | H65: 0.04095818322 | I65: 0.0343780885 | J65: 0.03211235881 | K65: 0.03109947136 | L65: 0.04034812954 | M65: 0.0284568729
B66: 2057 | C66: 0.03 | D66: 0.035 | E66: 0.02888146619 | F66: 0.03380009241 | G66: 0.02974026202 | H66: 0.04095818322 | I66: 0.0343780885 | J66: 0.03211235881 | K66: 0.03109947136 | L66: 0.04034812954 | M66: 0.0284568729
B67: 2058 | C67: 0.03 | D67: 0.035 | E67: 0.02888146619 | F67: 0.03380009241 | G67: 0.02974026202 | H67: 0.04095818322 | I67: 0.0343780885 | J67: 0.03211235881 | K67: 0.03109947136 | L67: 0.04034812954 | M67: 0.0284568729
B68: 2059 | C68: 0.03 | D68: 0.035 | E68: 0.02888146619 | F68: 0.03380009241 | G68: 0.02974026202 | H68: 0.04095818322 | I68: 0.0343780885 | J68: 0.03211235881 | K68: 0.03109947136 | L68: 0.04034812954 | M68: 0.0284568729
B69: 2060 | C69: 0.03 | D69: 0.035 | E69: 0.02888146619 | F69: 0.03380009241 | G69: 0.02974026202 | H69: 0.04095818322 | I69: 0.0343780885 | J69: 0.03211235881 | K69: 0.03109947136 | L69: 0.04034812954 | M69: 0.0284568729
B70: 2061 | C70: 0.03 | D70: 0.035 | E70: 0.02888146619 | F70: 0.03380009241 | G70: 0.02974026202 | H70: 0.04095818322 | I70: 0.0343780885 | J70: 0.03211235881 | K70: 0.03109947136 | L70: 0.04034812954 | M70: 0.0284568729
B71: 2062 | C71: 0.03 | D71: 0.035 | E71: 0.02888146619 | F71: 0.03380009241 | G71: 0.02974026202 | H71: 0.04095818322 | I71: 0.0343780885 | J71: 0.03211235881 | K71: 0.03109947136 | L71: 0.04034812954 | M71: 0.0284568729
B72: 2063 | C72: 0.03 | D72: 0.035 | E72: 0.02888146619 | F72: 0.03380009241 | G72: 0.02974026202 | H72: 0.04095818322 | I72: 0.0343780885 | J72: 0.03211235881 | K72: 0.03109947136 | L72: 0.04034812954 | M72: 0.0284568729
B73: 2064 | C73: 0.03 | D73: 0.035 | E73: 0.02888146619 | F73: 0.03380009241 | G73: 0.02974026202 | H73: 0.04095818322 | I73: 0.0343780885 | J73: 0.03211235881 | K73: 0.03109947136 | L73: 0.04034812954 | M73: 0.0284568729
B74: 2065 | C74: 0.03 | D74: 0.035 | E74: 0.02888146619 | F74: 0.03380009241 | G74: 0.02974026202 | H74: 0.04095818322 | I74: 0.0343780885 | J74: 0.03211235881 | K74: 0.03109947136 | L74: 0.04034812954 | M74: 0.0284568729
B75: 2066 | C75: 0.03 | D75: 0.035 | E75: 0.02888146619 | F75: 0.03380009241 | G75: 0.02974026202 | H75: 0.04095818322 | I75: 0.0343780885 | J75: 0.03211235881 | K75: 0.03109947136 | L75: 0.04034812954 | M75: 0.0284568729
B76: 2067 | C76: 0.03 | D76: 0.035 | E76: 0.02888146619 | F76: 0.03380009241 | G76: 0.02974026202 | H76: 0.04095818322 | I76: 0.0343780885 | J76: 0.03211235881 | K76: 0.03109947136 | L76: 0.04034812954 | M76: 0.0284568729
B77: 2068 | C77: 0.03 | D77: 0.035 | E77: 0.02888146619 | F77: 0.03380009241 | G77: 0.02974026202 | H77: 0.04095818322 | I77: 0.0343780885 | J77: 0.03211235881 | K77: 0.03109947136 | L77: 0.04034812954 | M77: 0.0284568729
B78: 2069 | C78: 0.03 | D78: 0.035 | E78: 0.02888146619 | F78: 0.03380009241 | G78: 0.02974026202 | H78: 0.04095818322 | I78: 0.0343780885 | J78: 0.03211235881 | K78: 0.03109947136 | L78: 0.04034812954 | M78: 0.0284568729
B79: 2070 | C79: 0.03 | D79: 0.035 | E79: 0.02888146619 | F79: 0.03380009241 | G79: 0.02974026202 | H79: 0.04095818322 | I79: 0.0343780885 | J79: 0.03211235881 | K79: 0.03109947136 | L79: 0.04034812954 | M79: 0.0284568729
B80: 2071 | C80: 0.03 | D80: 0.035 | E80: 0.02888146619 | F80: 0.03380009241 | G80: 0.02974026202 | H80: 0.04095818322 | I80: 0.0343780885 | J80: 0.03211235881 | K80: 0.03109947136 | L80: 0.04034812954 | M80: 0.0284568729
B81: 2072 | C81: 0.03 | D81: 0.035 | E81: 0.02888146619 | F81: 0.03380009241 | G81: 0.02974026202 | H81: 0.04095818322 | I81: 0.0343780885 | J81: 0.03211235881 | K81: 0.03109947136 | L81: 0.04034812954 | M81: 0.0284568729
B82: 2073 | C82: 0.03 | D82: 0.035 | E82: 0.02888146619 | F82: 0.03380009241 | G82: 0.02974026202 | H82: 0.04095818322 | I82: 0.0343780885 | J82: 0.03211235881 | K82: 0.03109947136 | L82: 0.04034812954 | M82: 0.0284568729
B83: 2074 | C83: 0.03 | D83: 0.035 | E83: 0.02888146619 | F83: 0.03380009241 | G83: 0.02974026202 | H83: 0.04095818322 | I83: 0.0343780885 | J83: 0.03211235881 | K83: 0.03109947136 | L83: 0.04034812954 | M83: 0.0284568729
B84: 2075 | C84: 0.03 | D84: 0.035 | E84: 0.02888146619 | F84: 0.03380009241 | G84: 0.02974026202 | H84: 0.04095818322 | I84: 0.0343780885 | J84: 0.03211235881 | K84: 0.03109947136 | L84: 0.04034812954 | M84: 0.0284568729
B85: 2076 | C85: 0.03 | D85: 0.035 | E85: 0.02888146619 | F85: 0.03380009241 | G85: 0.02974026202 | H85: 0.04095818322 | I85: 0.0343780885 | J85: 0.03211235881 | K85: 0.03109947136 | L85: 0.04034812954 | M85: 0.0284568729
B86: 2077 | C86: 0.03 | D86: 0.035 | E86: 0.02888146619 | F86: 0.03380009241 | G86: 0.02974026202 | H86: 0.04095818322 | I86: 0.0343780885 | J86: 0.03211235881 | K86: 0.03109947136 | L86: 0.04034812954 | M86: 0.0284568729
B87: 2078 | C87: 0.03 | D87: 0.035 | E87: 0.02888146619 | F87: 0.03380009241 | G87: 0.02974026202 | H87: 0.04095818322 | I87: 0.0343780885 | J87: 0.03211235881 | K87: 0.03109947136 | L87: 0.04034812954 | M87: 0.0284568729
B88: 2079 | C88: 0.03 | D88: 0.035 | E88: 0.02888146619 | F88: 0.03380009241 | G88: 0.02974026202 | H88: 0.04095818322 | I88: 0.0343780885 | J88: 0.03211235881 | K88: 0.03109947136 | L88: 0.04034812954 | M88: 0.0284568729
B89: 2080 | C89: 0.03 | D89: 0.035 | E89: 0.02888146619 | F89: 0.03380009241 | G89: 0.02974026202 | H89: 0.04095818322 | I89: 0.0343780885 | J89: 0.03211235881 | K89: 0.03109947136 | L89: 0.04034812954 | M89: 0.0284568729
B90: 2081 | C90: 0.03 | D90: 0.035 | E90: 0.02888146619 | F90: 0.03380009241 | G90: 0.02974026202 | H90: 0.04095818322 | I90: 0.0343780885 | J90: 0.03211235881 | K90: 0.03109947136 | L90: 0.04034812954 | M90: 0.0284568729
